2CCN - Level 2 Cost Centre Name,,9CCN - Level 9 Cost Centre Name,9CCC - Level 9 Cost Centre Code,9AN - Level 9 Account Name,9AC - Level 9 Account Code,Transaction Description,Date Paid,Transaction Reference,Analysed Amount,2AC - Level 2 Account Codes,Supplier Name,Supplier Code
Gloucester City Council,23UE,Business Transformation & Tech,RT700,Computer Software Maintenance,5427,chris21 annual maintenance 2014/15,03/03/2014,376509,14662.24,NET,Frontier Software Plc,52154G
Gloucester City Council,23UE,Cemeteries,HC300,Maint Of Grounds - General,3030,Supply 15mts turf to Crem,03/03/2014,379817,33,NET,Aran Turf,56656L
Gloucester City Council,23UE,Cemeteries,HC300,Repair/Maint Of Monuments,3004,Easy Mix: Glos Cemetery,03/03/2014,379792,403.03,NET,Easy Mix Ltd,01403L
Gloucester City Council,23UE,Crematorium,HC200,Printing,5300,Crem: Collins A4 diary red,03/03/2014,379811,7.91,NET,Office Star Group Ltd,55874H
Gloucester City Council,23UE,Crematorium,HC200,Printing,5300,Crem: USB Flash drive 8GB,03/03/2014,379812,124.75,NET,Office Star Group Ltd,55874H
Gloucester City Council,23UE,Electrical Investigatory Works,RY142,Cap Repair/Maint Fixed Plant,14,remedial works re legionella assessment,03/03/2014,379575,3695,CAP,Hydro-X Water Treatment Ltd,11765C
Gloucester City Council,23UE,Folk Museum,LM210,Publications For Sale,5064,Book,03/03/2014,379793,27.45,NET,The History Press Ltd,07144D
Gloucester City Council,23UE,Hackney Carriages,HL100,Fees For Services Received,5350,DVLA checks,03/03/2014,377125,94.25,NET,Intelligent Data Systems (UK) Ltd,11067G
Gloucester City Council,23UE,Registration Of Electors,RS400,Fees For Services Received,5350,elections tax Apr2013 - Apr2014,03/03/2014,379866,16149.6,NET,HMRC,13670W
Gloucester City Council,23UE,Registration Of Electors,RS400,Printing,5300,"elect re: letters2non-responding 2,507",03/03/2014,379369,245,NET,Alpha Response Print & Mail Ltd,03029U
Gloucester City Council,23UE,Shop Gloucester,GY020,Contract Payments,20,Shop Gloucester campaign funding,03/03/2014,379431,30000,CAP,Marketing Gloucester Ltd,08925E
Gloucester City Council,23UE,Business Transformation & Tech,RT700,Basic Pay - Temporary Staff,2751,20 hours consultancy services,04/03/2014,379909,600,NET,Ffox Software Ltd,10665T
Gloucester City Council,23UE,Cctv Revenue Budget,FP501,Security Equipment Serv/Repair,3038,Maintenance of  CCTV systems,04/03/2014,379916,1726.67,NET,Quadrant Security Group Ltd,05109A
Gloucester City Council,23UE,Corporate Reporting /Financing,RC504,Consultants Fees,5349,Additional fee for 2012/3,04/03/2014,379802,55800,NET,KPMG,06498X
Gloucester City Council,23UE,Crematorium,HC200,Book Of Memory,5055,Crem inscriptions on site,04/03/2014,379915,99.48,NET,Hilton Cabinet Co Ltd,21910A
Gloucester City Council,23UE,Crematorium,HC200,Fees For Services Received,5350,Doctors fees February 2014,04/03/2014,379937,653.44,NET,REDACTED,REDACTED
Gloucester City Council,23UE,Docks Complex - Catering Servs,RB110,Catering Provisions -Food,5110,The Docks various foods,04/03/2014,379681,65.19,NET,Janes Pantry,24500W
Gloucester City Council,23UE,Emergency Out Of Hours Calls,RB301,Fees For Services Received,5350,Contact centre: monthly fee,04/03/2014,379840,226.69,NET,Office Response,09439K
Gloucester City Council,23UE,Financial Services,RT200,Fees For Services Received,5350,Payroll & Monthly charges for Jan 2014,04/03/2014,378882,3282.33,NET,Gloucestershire County Council,18650D
Gloucester City Council,23UE,Homelessness,CH120,Rent In Advance,5516,REDACTED,04/03/2014,379938,309.23,NET,REDACTED,REDACTED
Gloucester City Council,23UE,Homelessness Prevention,CH122,Fees For Services Received,5350,REDACTED,04/03/2014,379924,550,NET,REDACTED,REDACTED
Gloucester City Council,23UE,Housing Strategy & Enabling,CH110,Vocational Training,2970,REDACTED,04/03/2014,379813,399,NET,ILX Group Plc,10328R
Gloucester City Council,23UE,Licences,HE510,Licences,9301,PERSONAL LICENCE FEE REFUND - WRONG AREA,04/03/2014,379939,37,NET,REDACTED,REDACTED
Gloucester City Council,23UE,Licences,HE510,Licences,9301,PERSONAL LICENCE FEE REFUND - WRONG AREA,04/03/2014,379940,37,NET,REDACTED,REDACTED
Gloucester City Council,23UE,Registration Of Electors,RS400,Fees For Services Received,5350,Electoral reg: canvass based on response,04/03/2014,379806,1706.28,NET,Idox Group,07229U
Gloucester City Council,23UE,Stationery Services,RS150,Printing,5300,Business Supp:  Evolution 80gsm,04/03/2014,379803,451,NET,Premier Paper Group Ltd,09166Y
Gloucester City Council,23UE,Stationery Services,RS150,Stationery,5302,Business support: flipchart pads,04/03/2014,379810,36.35,NET,Lyreco UK Ltd,11746G
Gloucester City Council,23UE,Tourism Marketing,LT100,Operational Equipment <5000,5012,"goods regard fire, cleanliness etc",04/03/2014,379900,43.38,NET,Robert Hall Business Equipment Ltd,19925B
Gloucester City Council,23UE,Wake Room,HC501,Catering Provisions -Food,5110,Arbor: foods,04/03/2014,379901,20.78,NET,Total Produce Gloucester,12645E
Gloucester City Council,23UE,Wake Room,HC501,Catering Provisions -Food,5110,Arbor: foods,04/03/2014,379902,38.51,NET,Total Produce Gloucester,12645E
Gloucester City Council,23UE,Wake Room,HC501,Catering Provisions -Food,5110,Arbor: foods,04/03/2014,379903,22.91,NET,Total Produce Gloucester,12645E
Gloucester City Council,23UE,Wake Room,HC501,Catering Provisions -Food,5110,Arbor: foods,04/03/2014,379904,10.05,NET,Total Produce Gloucester,12645E
Gloucester City Council,23UE,Wake Room,HC501,Catering Provisions -Food,5110,Arbor: foods,04/03/2014,379905,13.84,NET,Total Produce Gloucester,12645E
Gloucester City Council,23UE,Wake Room,HC501,Catering Provisions -Food,5110,Arbor: foods,04/03/2014,379906,34.54,NET,Total Produce Gloucester,12645E
Gloucester City Council,23UE,Wake Room,HC501,Catering Provisions -Food,5110,Arbor: foods,04/03/2014,379907,15.35,NET,Total Produce Gloucester,12645E
Gloucester City Council,23UE,Wake Room,HC501,Catering Provisions -Food,5110,Arbor: foods,04/03/2014,379908,18.27,NET,Total Produce Gloucester,12645E
Gloucester City Council,23UE,Wake Room,HC501,Catering Provisions -Food,5110,Arbor: foods,04/03/2014,379917,8.93,NET,Total Produce Gloucester,12645E
Gloucester City Council,23UE,Wake Room,HC501,Catering Provisions -Food,5110,Arbor: foods,04/03/2014,379918,6.15,NET,Total Produce Gloucester,12645E
Gloucester City Council,23UE,Wake Room,HC501,Catering Provisions -Food,5110,Arbor: foods,04/03/2014,379919,24.68,NET,Total Produce Gloucester,12645E
Gloucester City Council,23UE,Wake Room,HC501,Catering Provisions -Food,5110,Arbor: foods,04/03/2014,379920,29.28,NET,Total Produce Gloucester,12645E
Gloucester City Council,23UE,Wake Room,HC501,Catering Provisions -Food,5110,Arbor: foods,04/03/2014,379921,11.48,NET,Total Produce Gloucester,12645E
Gloucester City Council,23UE,Wake Room,HC501,Catering Provisions -Food,5110,Arbor: foods,04/03/2014,379922,5.85,NET,Total Produce Gloucester,12645E
Gloucester City Council,23UE,Wake Room,HC501,Catering Provisions -Food,5110,Arbor: foods,04/03/2014,379923,19.53,NET,Total Produce Gloucester,12645E
Gloucester City Council,23UE,Wake Room,HC501,Catering Provisions -Food,5110,Arbor: foods,04/03/2014,379925,4.8,NET,Total Produce Gloucester,12645E
Gloucester City Council,23UE,Wake Room,HC501,Catering Provisions -Food,5110,Arbor: foods,04/03/2014,379927,13.27,NET,Total Produce Gloucester,12645E
Gloucester City Council,23UE,Wake Room,HC501,Catering Provisions -Food,5110,Arbor: foods,04/03/2014,379928,24.81,NET,Total Produce Gloucester,12645E
Gloucester City Council,23UE,Wake Room,HC501,Laundry,5210,Laundering of 8 large gold tablecloths,04/03/2014,379873,44,NET,REDACTED,REDACTED
Gloucester City Council,23UE,Wake Room,HC501,Laundry,5210,Laundering of 8 large table cloths,04/03/2014,379874,44,NET,REDACTED,REDACTED
Gloucester City Council,23UE,Allotments,HI104,Fees For Services Received,5350,PADLOCKS,05/03/2014,378845,35,NET,MPL Wrought Iron Llp,03907P
Gloucester City Council,23UE,Business Transformation & Tech,RT700,Computer Hardware <5000,5420,IT services: Supply&config2504Controller,05/03/2014,379268,3430.62,NET,Cablecom Networking Ltd,56318L
Gloucester City Council,23UE,City Museum And Art Gallery,LM200,Printing,5300,Gloucester Museum What's on Guide,05/03/2014,379787,1114.5,NET,Color Co,57707K
Gloucester City Council,23UE,Civica Admin Charges,RT105,Photocopying,5320,Photocopy charges 1/12/13-19/2/14,05/03/2014,379855,205.4,NET,Ricoh UK Ltd,07519F
Gloucester City Council,23UE,Development Management,PT200,Advertising And Publicity,5702,"Citizen, echo, this is - adverts 30/1/14",05/03/2014,379338,92.96,NET,Local World Ltd,08556P
Gloucester City Council,23UE,Docks Complex - Services,RB100,General Repair/Maint Buildings,3000,Herbert: fault in Intruder alarm,05/03/2014,379415,148.46,NET,Avon Alarms Ltd,02280T
Gloucester City Council,23UE,Flooding And Drainage,HE306,Maint Of Grounds - General,3030,"Lobleys Dr, abbeydale: Clear ditches",05/03/2014,379496,1095,NET,RJ Contracting (Environmental) Ltd,07429H
Gloucester City Council,23UE,Flooding And Drainage,HE306,Maint Of Grounds - General,3030,REDACTED,05/03/2014,378944,120,NET,Three Counties Drain Service,44033V
Gloucester City Council,23UE,Folk Museum,LM210,Printing,5300,Gloucester Museum What's on Guide,05/03/2014,379787,1114.5,NET,Color Co,57707K
Gloucester City Council,23UE,General Drainage Works,PY241,Contract Payments,20,Flood protect: Porchester road,05/03/2014,379980,1909.25,CAP,UK Flood Barriers Ltd,14321S
Gloucester City Council,23UE,General Drainage Works,PY241,Contract Payments,20,Remove York Rd footbridge,05/03/2014,379495,1385,CAP,RJ Contracting (Environmental) Ltd,07429H
Gloucester City Council,23UE,REDACTED,REDACTED,REDACTED,REDACTED,REDACTED,05/03/2014,REDACTED,230,NET,REDACTED,REDACTED
Gloucester City Council,23UE,REDACTED,REDACTED,REDACTED,REDACTED,REDACTED,05/03/2014,REDACTED,100,NET,REDACTED,REDACTED
Gloucester City Council,23UE,REDACTED,REDACTED,REDACTED,REDACTED,REDACTED,05/03/2014,REDACTED,17.4,NET,REDACTED,REDACTED
Gloucester City Council,23UE,REDACTED,REDACTED,REDACTED,REDACTED,REDACTED,05/03/2014,REDACTED,97,NET,REDACTED,REDACTED
Gloucester City Council,23UE,REDACTED,REDACTED,REDACTED,REDACTED,REDACTED,05/03/2014,REDACTED,154,NET,REDACTED,REDACTED
Gloucester City Council,23UE,REDACTED,REDACTED,REDACTED,REDACTED,REDACTED,05/03/2014,REDACTED,97,NET,REDACTED,REDACTED
Gloucester City Council,23UE,REDACTED,REDACTED,REDACTED,REDACTED,REDACTED,05/03/2014,REDACTED,100,NET,REDACTED,REDACTED
Gloucester City Council,23UE,Homelessness,CH120,Fees For Services Received,5350,homelessness medical questionnaire,05/03/2014,379981,20.5,NET,Gloucester City Health Centre,02093U
Gloucester City Council,23UE,Homelessness,CH120,Rent In Advance,5516,REDACTED,05/03/2014,380010,484.6,NET,TJ Properties,14666B
Gloucester City Council,23UE,Homelessness Prevention,CH122,Fees For Services Received,5350,REDACTED,05/03/2014,380010,555,NET,TJ Properties,14666B
Gloucester City Council,23UE,Retail Market - Landlord,HM300,General Repair/Maint Buildings,3000,"Eastgate Mkt:maintenance, leak tests etc",05/03/2014,379971,279.75,NET,Mitchells (Gloucester) Ltd,30160U
Gloucester City Council,23UE,Retail Market - Landlord,HM300,Window Cleaning,3610,Eastgate mkt: Monthly window clean,05/03/2014,379990,140,NET,Cornwall Cleaning Services,14050A
Gloucester City Council,23UE,Tea Room,HC500,Catering Provisions -Food,5110,Arbor: foods,05/03/2014,379986,123.75,NET,Janes Pantry,24500W
Gloucester City Council,23UE,Tea Room,HC500,Other Minor Supplies Services,5590,various flowers,05/03/2014,379988,37.25,NET,Carols Fruit & Flower Basket,01274X
Gloucester City Council,23UE,Tea Room,HC500,Other Minor Supplies Services,5590,various flowers,05/03/2014,379989,23.6,NET,Carols Fruit & Flower Basket,01274X
Gloucester City Council,23UE,Asbru - Other Funders,FP846,Other Minor Supplies Services,5590,REDACTED,06/03/2014,380062,581.62,NET,Travail Employment Ltd,49371W
Gloucester City Council,23UE,Asset Management,RS300,Basic Pay - Temporary Staff,2751,"consultancy to Asset Mgt, 5/2/2014",06/03/2014,380074,5475,NET,Ardley Associates,09369F
Gloucester City Council,23UE,Asset Management,RS300,Basic Pay - Temporary Staff,2751,REDACTED,06/03/2014,379377,479,NET,Abatec Ltd,14249Y
Gloucester City Council,23UE,Blackfriars,LA609,Advertising And Publicity,5702,1/2 page ad Gloucester visitors guide,06/03/2014,378205,200,NET,Marketing Gloucester Ltd,08925E
Gloucester City Council,23UE,Blackfriars,LA609,Fees For Services Received,5350,Cleaning at Blackfriars,06/03/2014,379815,170,NET,Gloucester Cleaning Service,17896B
Gloucester City Council,23UE,Civica Admin Charges,RT105,Photocopying,5320,"Revenue, Herb Wse: Copiers",06/03/2014,380079,87.68,NET,Ricoh UK Ltd,07519F
Gloucester City Council,23UE,Docks Complex - Catering Servs,RB110,Catering Provisions -Food,5110,Catering Dept: various foods,06/03/2014,380075,26.98,NET,Taynton Farm Foods,09653F
Gloucester City Council,23UE,Docks Complex - Services,RB100,Service Charges,3020,Docks service charge 1/1 to 31/3/14,06/03/2014,379547,13028.75,NET,Gloucester Quays Management Ltd,13497K
Gloucester City Council,23UE,Financial Services,RT200,Subscriptions,5600,CIPFA Tisonline Fub sub 4/14to3/15,06/03/2014,380085,2515,NET,Cipfa Business Limited,09260F
Gloucester City Council,23UE,General Works Fund,RY203,Consultants Fees,30,REDACTED,06/03/2014,379582,560.5,CAP,Find The Engineer Recruitment Ltd*,12977Z
Gloucester City Council,23UE,Gl1 Pool Air Handling System,LY152,Contract Payments,20,Contract review prof charges,06/03/2014,378526,1824,CAP,BPE Solicitors LLP,04982F
Gloucester City Council,23UE,Guildhall Events,LA200,Advertising And Publicity,5702,1/2 page ad Gloucester visitors guide,06/03/2014,378205,200,NET,Marketing Gloucester Ltd,08925E
Gloucester City Council,23UE,REDACTED,REDACTED,REDACTED,REDACTED,REDACTED,06/03/2014,REDACTED,17,NET,REDACTED,REDACTED
Gloucester City Council,23UE,REDACTED,REDACTED,REDACTED,REDACTED,REDACTED,06/03/2014,REDACTED,110.5,NET,REDACTED,REDACTED
Gloucester City Council,23UE,REDACTED,REDACTED,REDACTED,REDACTED,REDACTED,06/03/2014,REDACTED,233.75,NET,REDACTED,REDACTED
Gloucester City Council,23UE,REDACTED,REDACTED,REDACTED,REDACTED,REDACTED,06/03/2014,REDACTED,835.98,NET,REDACTED,REDACTED
Gloucester City Council,23UE,REDACTED,REDACTED,REDACTED,REDACTED,REDACTED,06/03/2014,REDACTED,131.75,NET,REDACTED,REDACTED
Gloucester City Council,23UE,REDACTED,REDACTED,REDACTED,REDACTED,REDACTED,06/03/2014,REDACTED,263.5,NET,REDACTED,REDACTED
Gloucester City Council,23UE,REDACTED,REDACTED,REDACTED,REDACTED,REDACTED,06/03/2014,REDACTED,1353.62,NET,REDACTED,REDACTED
Gloucester City Council,23UE,Homelessness,CH120,Rent In Advance,5516,REDACTED,06/03/2014,380089,350.2,NET,REDACTED,REDACTED
Gloucester City Council,23UE,Homelessness Prevention,CH122,Fees For Services Received,5350,REDACTED,06/03/2014,380089,500,NET,REDACTED,REDACTED
Gloucester City Council,23UE,Investment Property,RB500,Emergency Lighting,3055,2/1/14 engineer Emrgency lighting fault,06/03/2014,379363,344.5,NET,Adt Fire & Security PLC,54086D
Gloucester City Council,23UE,Investment Property,RB500,Fire Alarm Maintenance,3053,2/1/14 engineer work on Fire alarm sys,06/03/2014,379362,271,NET,Adt Fire & Security PLC,54086D
Gloucester City Council,23UE,Legal Services,RS200,Basic Pay - Temporary Staff,2751,REDACTED,06/03/2014,379994,293.04,NET,Premiere Employment Ltd,55468Z
Gloucester City Council,23UE,Off Street Car Parks,PP110,Rents,3200,Gt Western Rd: rent 25/3 to26/6,06/03/2014,379838,118.75,NET,Knight Frank LLP,59489B
Gloucester City Council,23UE,Postal Services,RS120,Postages,5400,royal mail - postage for Herbert Wse,06/03/2014,379857,161,NET,Royal Mail S.Wales & South West,35830S
Gloucester City Council,23UE,Stationery Services,RS150,Stationery,5302,Business support: stationery,06/03/2014,379842,106.14,NET,Lyreco UK Ltd,11746G
Gloucester City Council,23UE,Summer Festival,LT300,Advertising And Publicity,5702,50% production cost Summer in Glos leafl,06/03/2014,378533,772,NET,Marketing Gloucester Ltd,08925E
Gloucester City Council,23UE,Tourism Marketing,LT100,Uniforms,5201,Puffs & Cardigan,06/03/2014,380063,149.03,NET,Simon Jersey Ltd,40555W
Gloucester City Council,23UE,Website Rebuild,RY573,Consultants Fees,30,5 days on new daily rate IT solutions,06/03/2014,380088,1267,CAP,Patzone It Solutions Ltd,13059R
Gloucester City Council,23UE,Allotments,HI104,Water Supply,3400,ACCT 7890105225,07/03/2014,379844,2004.7,NET,Severn Trent Water,01823H
Gloucester City Council,23UE,Armscroft Park Flood Mit S106,LY153,Contract Payments,20,supply bridge & install,07/03/2014,379893,2120,CAP,ABC Bridges,01465M
Gloucester City Council,23UE,Blackfriars Priory,RY207,Capital General Repairs & Main,13,Blackfriars Priory commercial space,07/03/2014,379341,25.66,CAP,Riba Enterprises,09988U
Gloucester City Council,23UE,Building Control,PT400,Basic Pay - Temporary Staff,2751,REDACTED,07/03/2014,379808,1306.25,NET,BRG Interim Solutions,14065L
Gloucester City Council,23UE,Building Control,PT400,Basic Pay - Temporary Staff,2751,REDACTED,07/03/2014,379841,335.5,NET,BRG Interim Solutions,14065L
Gloucester City Council,23UE,Building Control,PT400,Basic Pay - Temporary Staff,2751,REDACTED,07/03/2014,379807,506.8,NET,BRG Interim Solutions,14065L
Gloucester City Council,23UE,Building Control,PT400,Basic Pay - Temporary Staff,2751,REDACTED,07/03/2014,379985,1306.25,NET,BRG Interim Solutions,14065L
Gloucester City Council,23UE,Building Control,PT400,Basic Pay - Temporary Staff,2751,REDACTED,07/03/2014,379984,2560.25,NET,BRG Interim Solutions,14065L
Gloucester City Council,23UE,Bus Station,RB400,Water Supply,3400,ACCT 7890105225,07/03/2014,379844,110.74,NET,Severn Trent Water,01823H
Gloucester City Council,23UE,City Museum And Art Gallery,LM200,Water Supply,3400,ACCT 7890105225,07/03/2014,379844,611.5,NET,Severn Trent Water,01823H
Gloucester City Council,23UE,Civil Parking Enforcement,PT741,Pcn Charges,9450,REDACTED,07/03/2014,380152,25,NET,REDACTED,REDACTED
Gloucester City Council,23UE,Client Revs & Bens Contract,RT240,Bailiffs Fees,5368,Vat only,07/03/2014,380084,0,NET,Bristow & Sutor,05450M
Gloucester City Council,23UE,Client Revs & Bens Contract,RT240,Bailiffs Fees,5368,VAT only,07/03/2014,380083,0,NET,Bristow & Sutor,05450M
Gloucester City Council,23UE,Client Revs & Bens Contract,RT240,Fees For Services Received,5350,Arrest&Detention: council tax,07/03/2014,379734,49.5,NET,Assevarate Ltd,11749A
Gloucester City Council,23UE,Council Streetcare Team,HI101,Water Supply,3400,ACCT 7890105225,07/03/2014,379844,549.76,NET,Severn Trent Water,01823H
Gloucester City Council,23UE,Countryside Unit,LP201,Publications,5060,1 yr subs to British Wildlife mag,07/03/2014,379835,25.95,NET,British Wildlife Publishing,04566A
Gloucester City Council,23UE,Countryside Unit,LP201,Water Supply,3400,ACCT 7890105225,07/03/2014,379844,128.16,NET,Severn Trent Water,01823H
Gloucester City Council,23UE,Crematorium,HC200,Water Supply,3400,ACCT 7890105225,07/03/2014,379844,24.67,NET,Severn Trent Water,01823H
Gloucester City Council,23UE,Docks Complex - Services,RB100,Repair/Maint Of Fixed Plant,3006,fault with AHU1 motor on 5th floor,07/03/2014,379549,35,NET,Hewer Facilities Mgt Ltd,05232A
Gloucester City Council,23UE,Docks Complex - Services,RB100,Repair/Maint Of Fixed Plant,3006,Maintenance of equip 01/02 to 30/4/14,07/03/2014,377987,556.21,NET,GEA Denco Ltd,57271C
Gloucester City Council,23UE,Docks Complex - Services,RB100,Repair/Maint Of Fixed Plant,3006,Mayor Parlour: turn on heating,07/03/2014,378873,47.5,NET,Hewer Facilities Mgt Ltd,05232A
Gloucester City Council,23UE,Docks Complex - Services,RB100,Water Supply,3400,ACCT 7890105225,07/03/2014,379844,2400.82,NET,Severn Trent Water,01823H
Gloucester City Council,23UE,Emergency Out Of Hours Calls,RB301,Fees For Services Received,5350,"additional calls, callouts, outbound cal",07/03/2014,378373,68.18,NET,Office Response,09439K
Gloucester City Council,23UE,Financial Services,RT200,Basic Pay - Temporary Staff,2751,REDACTED,07/03/2014,379804,534.13,NET,Robert Half Ltd,03959K
Gloucester City Council,23UE,Financial Services,RT200,Basic Pay - Temporary Staff,2751,REDACTED,07/03/2014,379849,550.12,NET,Robert Half Ltd,03959K
Gloucester City Council,23UE,Folk Museum,LM210,Water Supply,3400,ACCT 7890105225,07/03/2014,379844,612.8,NET,Severn Trent Water,01823H
Gloucester City Council,23UE,Food Safety,HE100,Fees For Services Received,5350,Level 2 award in Food Safety,07/03/2014,379809,603.95,NET,Chartered Institute Of Environmental Health,24227R
Gloucester City Council,23UE,General Drainage Works,PY241,Contract Payments,20,supply bridge & install,07/03/2014,379893,1335,CAP,ABC Bridges,01465M
Gloucester City Council,23UE,General Works Fund,RY203,Cap Repair/Maint Fixed Plant,14,Deep chemical clean of chiller: Herb Wse,07/03/2014,379976,273,CAP,Cooltherm,06087Z
Gloucester City Council,23UE,Gis Development Work,RY555,Contract Payments,20,REDACTED,07/03/2014,380057,1250,CAP,Badenoch & Clark,01536P
Gloucester City Council,23UE,Gloucester Guildhall,LA100,General Repair/Maint Buildings,3000,Guildhall-correctedDoorNotOpening,07/03/2014,378935,141,NET,Allegion (UK) Ltd*,06444X
Gloucester City Council,23UE,Gloucester Guildhall,LA100,Water Supply,3400,ACCT 7890105225,07/03/2014,379844,388.5,NET,Severn Trent Water,01823H
Gloucester City Council,23UE,Gloucester Partnership,FP106,Fees For Services Received,5350,Hire of Oxstalls sports park 8/1/14,07/03/2014,379542,54,NET,Aspire Sports & Cultural Trust,08135V
Gloucester City Council,23UE,Group Mgr Planning & Economy,GR101,Consultants Fees,5349,Structural calculations,07/03/2014,376060,270,NET,Bath & North East Somerset District Council,57875R
Gloucester City Council,23UE,Guildhall Events,LA200,Fees For Services Received,5350,NEWSPAPERS,07/03/2014,378813,19.4,NET,W H Smith Ltd,40860M
Gloucester City Council,23UE,Herbert Reception Upgrade,RY201,Contract Payments,20,Herbert refurb works,07/03/2014,379996,1050,CAP,Goddard Consulting LLP,10598G
Gloucester City Council,23UE,Homelessness,CH120,Board And Lodging,5515,REDACTED,07/03/2014,380138,60,NET,REDACTED,REDACTED
Gloucester City Council,23UE,Homelessness,CH120,Board And Lodging,5515,REDACTED,07/03/2014,380141,1905.73,NET,James Legge Property (Ltd),07844R
Gloucester City Council,23UE,Homelessness,CH120,Board And Lodging,5515,REDACTED,07/03/2014,380143,1126.4,NET,Carbrey Housing Ltd,11098G
Gloucester City Council,23UE,Homelessness,CH120,Board And Lodging,5515,REDACTED,07/03/2014,380137,1270.1,NET,Kalmwood Ltd,08568G
Gloucester City Council,23UE,Homelessness,CH120,Board And Lodging,5515,REDACTED,07/03/2014,380139,635.45,NET,Carbrey Housing Ltd,11098G
Gloucester City Council,23UE,Homelessness,CH120,Board And Lodging,5515,REDACTED,07/03/2014,380140,2520.25,NET,REDACTED,REDACTED
Gloucester City Council,23UE,Homelessness,CH120,Board And Lodging,5515,REDACTED,07/03/2014,380136,466.8,NET,Dorchester House Trust,12298D
Gloucester City Council,23UE,Homelessness,CH120,Rent In Advance,5516,REDACTED,07/03/2014,380151,364.6,NET,Falcon Ltd,13352P
Gloucester City Council,23UE,Housing Works In Default,HD500,Clearance And Cleansing Fees,5384,REDACTED,07/03/2014,379557,48,NET,Snape Construction Ltd,40958T
Gloucester City Council,23UE,Investment Property,RB500,Repair/Maint Of Fixed Plant,3006,24/2/14 North Wse: Engineer chiller,07/03/2014,379977,408,NET,Cooltherm,06087Z
Gloucester City Council,23UE,Investment Property,RB500,Repair/Maint Of Fixed Plant,3006,North Wse: Engineer for Geoclima chiller,07/03/2014,379978,210,NET,Cooltherm,06087Z
Gloucester City Council,23UE,Investment Property,RB500,Water Supply,3400,ACCT 6540022682,07/03/2014,379555,255.66,NET,Severn Trent Water,01823H
Gloucester City Council,23UE,Investment Property,RB500,Water Supply,3400,ACCT 7890105225,07/03/2014,379844,321.48,NET,Severn Trent Water,01823H
Gloucester City Council,23UE,Mortgage Rescue,CH128,Fees For Services Received,5350,REDACTED,07/03/2014,379797,387.6,NET,One To One Recruitment,04752H
Gloucester City Council,23UE,Off Street Car Parks,PP110,Water Supply,3400,ACCT 7890105225,07/03/2014,379844,2821.33,NET,Severn Trent Water,01823H
Gloucester City Council,23UE,Pollution Control,HE300,Maint Of Grounds - General,3030,"Sudbrook, Painswick rd: remove 3 trees",07/03/2014,380073,180,NET,Rdb Safety Boat Ltd,13507J
Gloucester City Council,23UE,Public Conveniences (Client),HI400,Water Supply,3400,ACCT 7890105225,07/03/2014,379844,2253.15,NET,Severn Trent Water,01823H
Gloucester City Council,23UE,Shopmobility,PE200,Water Supply,3400,ACCT 7890105225,07/03/2014,379844,104.54,NET,Severn Trent Water,01823H
Gloucester City Council,23UE,Tic Theatre Ticket Sales,LT107,Materials For Sale,5080,Commison inv sales of Charade 6-8Feb14,07/03/2014,379992,192,NET,Kings Theatre,54213X
Gloucester City Council,23UE,Tic Theatre Ticket Sales,LT107,Materials For Sale,5080,"Commison on sales of ""the Graduate""",07/03/2014,379991,488,NET,Kings Theatre,54213X
Gloucester City Council,23UE,Tic Theatre Ticket Sales,LT107,Sale Of Goods And Services,9230,Commison inv sales of Charade 6-8Feb14,07/03/2014,379992,-16,NET,Kings Theatre,54213X
Gloucester City Council,23UE,Tic Theatre Ticket Sales,LT107,Sale Of Goods And Services,9230,"Commison on sales of ""the Graduate""",07/03/2014,379991,-40.67,NET,Kings Theatre,54213X
Gloucester City Council,23UE,Tourism Marketing,LT100,Water Supply,3400,ACCT 7890105225,07/03/2014,379844,112.45,NET,Severn Trent Water,01823H
Gloucester City Council,23UE,Utilities,PT502,Electricity Supply,3110,ROBINSWOOD HILL,07/03/2014,380146,447.17,NET,Npower,55506T
Gloucester City Council,23UE,Utilities,PT502,Electricity Supply,3110,ROBINSWOOD HILL,07/03/2014,380147,11.27,NET,Npower,55506T
Gloucester City Council,23UE,Utilities,PT502,Electricity Supply,3110,ROBINSWOOD HILL,07/03/2014,380148,403.34,NET,Npower,55506T
Gloucester City Council,23UE,Utilities,PT502,Electricity Supply,3110,UTILITIES TO FEB 2014,07/03/2014,379382,34792.06,NET,West Mercia Energy,11669Z
Gloucester City Council,23UE,Utilities,PT502,Electricity Supply,3110,UTILITIES TO FEB 2014,07/03/2014,380145,5275.46,NET,West Mercia Energy,11669Z
Gloucester City Council,23UE,Utilities,PT502,Gas Supply,3100,UTILITIES TO FEB 2014,07/03/2014,379382,4972.44,NET,West Mercia Energy,11669Z
Gloucester City Council,23UE,Utilities,PT502,Gas Supply,3100,UTILITIES TO FEB 2014,07/03/2014,380145,5964.24,NET,West Mercia Energy,11669Z
Gloucester City Council,23UE,Aspire Admin Charges,LC105,Other Minor Income,9900,BAILIFF PAYMENTS 21/02/14,10/03/2014,380243,30,NET,Aspire Sports & Cultural Trust,08135V
Gloucester City Council,23UE,Asset Management,RS300,Basic Pay - Temporary Staff,2751,REDACTED,10/03/2014,379843,450.5,NET,Abatec Ltd,14249Y
Gloucester City Council,23UE,Blackfriars,LA609,Charges For Services,9300,BALANCE OF GALLERY SALES,10/03/2014,380178,12.75,NET,REDACTED,REDACTED
Gloucester City Council,23UE,Business Support,PT250,Routine R And M - Vehicles,4011,Ignition key sort out,10/03/2014,380158,80,NET,123 Car & Commercial,07651E
Gloucester City Council,23UE,Business Transformation & Tech,RT700,Computer Software <5000,5425,"Business rates, C Tax, NDR1&3",10/03/2014,379816,9650,NET,Civica UK Ltd,05200P
Gloucester City Council,23UE,Business Transformation & Tech,RT700,Computer Software Maintenance,5427,WhosOn Serv Monthly Subscription Mar-Apr,10/03/2014,380161,30,NET,Parker Software,14223T
Gloucester City Council,23UE,Cemeteries,HC300,Operational Materials,5070,Crem: Standard toilet rolls etc.,10/03/2014,379819,77.7,NET,Safpro Industrial Supply Co,39190W
Gloucester City Council,23UE,Cemeteries,HC300,Oper Leases - Equipment,5029,Crem: Standard toilet rolls etc.,10/03/2014,379819,25.6,NET,Safpro Industrial Supply Co,39190W
Gloucester City Council,23UE,Cemeteries,HC300,Routine R And M - Vehicles,4011,Crem: Garden machinery,10/03/2014,380181,45.73,NET,Garden Machinery Gloucester,55641K
Gloucester City Council,23UE,City Museum And Art Gallery,LM200,Basic Pay-Building Maint Staff,1301,Annual rental maintenance 1/2/14 to 1/15,10/03/2014,379337,185.24,NET,Secom PLC,51471A
Gloucester City Council,23UE,City Museum And Art Gallery,LM200,Basic Pay-Building Maint Staff,1301,City Museum: intruder monitoring &mainta,10/03/2014,379344,1245.46,NET,Secom PLC,51471A
Gloucester City Council,23UE,Civica Contract Revs & Bens,RT250,Contracted Services,6970,Pension excess reclaim for Jan 2014,10/03/2014,379285,10317.85,NET,Civica UK Ltd,10841X
Gloucester City Council,23UE,Civil Parking Enforcement,PT741,On Street Parking Charges,6550,"Cost of parking income, Jan 2014",10/03/2014,379667,63102.95,NET,Gloucestershire County Council,18650D
Gloucester City Council,23UE,Client Revs & Bens Contract,RT240,Bailiffs Fees,5368,VAT ONLY INVOICE,10/03/2014,378764,0,NET,Bristow & Sutor,05450M
Gloucester City Council,23UE,Contact Centre,RB300,Basic Pay -Admin /Prof Staff,2601,REDACTED,10/03/2014,379795,634.52,NET,One To One Recruitment,04752H
Gloucester City Council,23UE,Contact Centre,RB300,Basic Pay -Admin /Prof Staff,2601,REDACTED,10/03/2014,379796,449.5,NET,One To One Recruitment,04752H
Gloucester City Council,23UE,Contact Centre,RB300,Basic Pay -Admin /Prof Staff,2601,REDACTED,10/03/2014,379798,957,NET,One To One Recruitment,04752H
Gloucester City Council,23UE,Crematorium,HC200,Repair/Maint Of Fixed Plant,3006,4 boxes of wipes,10/03/2014,380076,79.96,NET,Brisol Ltd,04416X
Gloucester City Council,23UE,Dwelling Improvements,BY008,Contract Payments,20,DEC13 CAPITAL,10/03/2014,379799,807968.3,CAP,Gloucester City Homes,05244T
Gloucester City Council,23UE,Economic Development,FP300,Other Minor Supplies Services,5590,funding of Famers' Market Entertainment,10/03/2014,380156,680,NET,Marketing Gloucester Ltd,08925E
Gloucester City Council,23UE,Financial Services,RT200,Fees For Services Received,5350,Vat only,10/03/2014,379194,0,NET,Bristow & Sutor,05450M
Gloucester City Council,23UE,Gl1 Pool Air Handling System,LY152,Contract Payments,20,GL1 AHU CDM CO-ORDINATOR FEES,10/03/2014,379051,575,CAP,Goddard Consulting LLP,10598G
Gloucester City Council,23UE,Gl1 Pool Air Handling System,LY152,Contract Payments,20,GL1 Swimming pool maintenance,10/03/2014,380182,260,CAP,RPA,01710Y
Gloucester City Council,23UE,Grants To Voluntary Sector,FG100,Funding Vol&Com Grps-Sla'S,7100B,community grant 2013/14,10/03/2014,379791,63230.25,NET,Gloucester & District Citizens Advice Bureau,07709Y
Gloucester City Council,23UE,Hempsted Market/Car Boot,HM234,Hire Of Equipment,5020,Portable Office for March 2014,10/03/2014,380165,254.19,NET,Portable Offices (Hire ) Ltd*,06286R
Gloucester City Council,23UE,Hmo Licences,HE520,Operational Equipment <5000,5012,Insert into Market Trader,10/03/2014,380175,140,NET,The Worlds Fair Ltd,49321M
Gloucester City Council,23UE,Investment Property,RB500,Fire Alarms,3027,annual contract charges 22/4/14-21/4/15,10/03/2014,379361,1192.64,NET,Chubb Fire & Security Ltd,54582K
Gloucester City Council,23UE,Investment Property,RB500,Repair/Maint Of Fixed Plant,3006,Annual membership Cots Energy& Enivorn,10/03/2014,380168,150,NET,Cotswold Energy & Environment Group,50513V
Gloucester City Council,23UE,Legal Services,RS200,Basic Pay -Admin /Prof Staff,2601,REDACTED,10/03/2014,380160,653.58,NET,Sellick Partnership Group Ltd,11057C
Gloucester City Council,23UE,Legal Services,RS200,Basic Pay - Temporary Staff,2751,REDACTED,10/03/2014,379730,305.55,NET,Premiere Employment Ltd,55468Z
Gloucester City Council,23UE,Legal Services,RS200,Basic Pay - Temporary Staff,2751,REDACTED,10/03/2014,379098,487.29,NET,Premiere Employment Ltd,55468Z
Gloucester City Council,23UE,Legal Services,RS200,Basic Pay - Temporary Staff,2751,REDACTED,10/03/2014,379983,795.69,NET,Venn Group Ltd,04339P
Gloucester City Council,23UE,Legal Services,RS200,Basic Pay - Temporary Staff,2751,REDACTED,10/03/2014,379982,1401.93,NET,Venn Group Ltd,04339P
Gloucester City Council,23UE,Mortgage Rescue,CH128,Fees For Services Received,5350,REDACTED,10/03/2014,380179,387.6,NET,One To One Recruitment,04752H
Gloucester City Council,23UE,Museum Phase 2 Hlf,GY001,Contract Payments,20,REDACTED,10/03/2014,379581,494,CAP,Find The Engineer Recruitment Ltd*,12977Z
Gloucester City Council,23UE,National Express,LT105,Materials For Sale,5080,Coach tickets sales to public,10/03/2014,380204,10853.7,NET,National Express Ltd,31455K
Gloucester City Council,23UE,National Express,LT105,Sale Of Goods And Services,9230,Coach tickets sales to public,10/03/2014,380204,-1054.5,NET,National Express Ltd,31455K
Gloucester City Council,23UE,Off Street Car Parks,PP110,General Repair/Maint Buildings,3000,St Michael's Squ: Excavation work,10/03/2014,380198,1220,NET,Cotswold Drain Services,04496W
Gloucester City Council,23UE,Planning Policy,PT300,Basic Pay - Temporary Staff,2751,REDACTED,10/03/2014,379427,2143.43,NET,Randstad Cpe Ltd,13987L
Gloucester City Council,23UE,Planning Policy,PT300,Basic Pay - Temporary Staff,2751,REDACTED,10/03/2014,379345,1581.56,NET,Randstad Cpe Ltd,13987L
Gloucester City Council,23UE,Planning Policy,PT300,Basic Pay - Temporary Staff,2751,REDACTED,10/03/2014,379343,1976.95,NET,Randstad Cpe Ltd,13987L
Gloucester City Council,23UE,Planning Policy,PT300,Basic Pay - Temporary Staff,2751,REDACTED,10/03/2014,379342,1619.85,NET,Randstad Cpe Ltd,13987L
Gloucester City Council,23UE,Retail Market - Landlord,HM300,Trade Refuse Collection,3630,"6/2,13/2,20/2&27/2 waste collection",10/03/2014,380162,120,NET,B & S Pointon Ltd,06253G
Gloucester City Council,23UE,Shopmobility,PE200,Cleaning Materials,3600,OCS GROUP UK LIMITED TA CANNON,10/03/2014,379995,6.67,NET,Ocs Group UK Limited T/A Cannon,06506A
Gloucester City Council,23UE,Solace Project,FP843,Other Minor Supplies Services,5590,"Feb 13 salary, super &NI",10/03/2014,380087,3250,NET,Gloucester City Homes,05244T
Gloucester City Council,23UE,Tic Theatre Ticket Sales,LT107,Materials For Sale,5080,TICKET SALES RE 11/12/13 PERFORMANCE,10/03/2014,380177,2680,NET,Bbc Radio Gloucestershire,14597V
Gloucester City Council,23UE,Tic Theatre Ticket Sales,LT107,Sale Of Goods And Services,9230,TICKET SALES RE 11/12/13 PERFORMANCE,10/03/2014,380177,-554,NET,Bbc Radio Gloucestershire,14597V
Gloucester City Council,23UE,Tic Trading,LT110,Materials For Sale,5080,Gloucester in Old Film,10/03/2014,380166,30.96,NET,Screen Icon Ltd,04520B
Gloucester City Council,23UE,Wake Room,HC501,Catering Provisions -Food,5110,Arbor: food,10/03/2014,380200,200.12,NET,3663,55585U
Gloucester City Council,23UE,Wake Room,HC501,Catering Provisions -Food,5110,Arbor: food,10/03/2014,380201,102.1,NET,3663,55585U
Gloucester City Council,23UE,Wake Room,HC501,Catering Provisions -Food,5110,Arbor: food,10/03/2014,380202,142.1,NET,3663,55585U
Gloucester City Council,23UE,Wake Room,HC501,Catering Provisions -Food,5110,Arbor: food,10/03/2014,380203,420.41,NET,3663,55585U
Gloucester City Council,23UE,Aspire Admin Charges,LC105,Fees For Services Received,5350,sundry debtor invoice printing,11/03/2014,380351,445,NET,Civica UK Ltd,10841X
Gloucester City Council,23UE,Building Control,PT400,Application Fees,9312,OVERPAYMENT OF APPLICATION,11/03/2014,380303,234,NET,REDACTED,REDACTED
Gloucester City Council,23UE,Cemeteries,HC300,Maint Of Grounds - General,3030,turf,11/03/2014,380323,115,NET,Aran Turf,56656L
Gloucester City Council,23UE,Cemeteries,HC300,Operational Materials,5070,Safety Recondition cylinders,11/03/2014,380155,37.7,NET,Teleshore (UK) Ltd,56819G
Gloucester City Council,23UE,City Museum And Art Gallery,LM200,Exhibits And Collections,5038,Museum&Ar: Tess evoluton showcase,11/03/2014,379973,2739,NET,Tess Demountable,14396H
Gloucester City Council,23UE,Civica Contract Revs & Bens,RT250,Fees For Services Received,5350,business rates retention,11/03/2014,380352,1732.5,NET,Civica UK Ltd,10841X
Gloucester City Council,23UE,Client Revs & Bens Contract,RT240,Fees For Services Received,5350,10% checks shared costs,11/03/2014,380360,1089.12,NET,Civica UK Ltd,10841X
Gloucester City Council,23UE,Client Revs & Bens Contract,RT240,Fees For Services Received,5350,Under occupancy welfare benefits,11/03/2014,380358,3200,NET,Civica UK Ltd,10841X
Gloucester City Council,23UE,Contact Centre,RB300,Fees For Services Received,5350,Xmas counter cover,11/03/2014,380359,560,NET,Civica UK Ltd,10841X
Gloucester City Council,23UE,Corporate Reporting /Financing,RC504,Fees For Services Received,5350,Subsidy consultancy day,11/03/2014,380328,1200,NET,Civica UK Ltd,10841X
Gloucester City Council,23UE,Crematorium,HC200,Repair/Maint Of Fixed Plant,3006,Cremator call out repair,11/03/2014,380190,220.77,NET,Facultatieve Technologies Ltd,51210H
Gloucester City Council,23UE,Docks Complex - Services,RB100,Cleaning Materials,3600,Cleam Cleaner & Scouring pads (The docks,11/03/2014,379339,39.22,NET,Core Hygiene Ltd,03885P
Gloucester City Council,23UE,Docks Complex - Services,RB100,Cleaning Materials,3600,Cloths,11/03/2014,379914,30.56,NET,Core Hygiene Ltd,03885P
Gloucester City Council,23UE,Docks Complex - Services,RB100,General Repair/Maint Buildings,3000,Fe-Call out fee,11/03/2014,380050,115,NET,GEA Denco Ltd,57271C
Gloucester City Council,23UE,Economic Development,FP300,Other Minor Supplies Services,5590,"2014 full memb, Ass TownCentreMgt",11/03/2014,380163,495,NET,Atcm,04754X
Gloucester City Council,23UE,Financial Services,RT200,Subscriptions,5600,forum & helpline membership,11/03/2014,380164,1650,NET,Lavat Consulting Ltd,02836N
Gloucester City Council,23UE,Gis Development Work,RY555,Contract Payments,20,REDACTED,11/03/2014,380191,1250,CAP,Badenoch & Clark,01536P
Gloucester City Council,23UE,Health And Safety,HD300,Other Minor Supplies Services,5590,High bck airoperator Fixedarms blue,11/03/2014,377963,92,NET,Furniture@Work Ltd,01124U
Gloucester City Council,23UE,Hempsted Market/Car Boot,HM234,Hire Of Equipment,5020,Hempstead Meadows PORTABLE OFFICES HIRE,11/03/2014,378491,254.19,NET,Portable Offices (Hire ) Ltd*,06286R
Gloucester City Council,23UE,Hempsted Market/Car Boot,HM234,Maint Of Grounds - General,3030,Hempsted Meadows barrier works,11/03/2014,380167,1900,NET,Mpl Wrought Iron LLP,03907P
Gloucester City Council,23UE,Human Resources,EH100,Basic Pay -Admin /Prof Staff,2601,Management of apprentice scheme Feb 2014,11/03/2014,380071,3250,NET,Hr Consulting Ltd,12559Y
Gloucester City Council,23UE,King George V Pavilion,LY116,Contract Payments,20,Resurface rd to King George V play field,11/03/2014,380173,1094,CAP,Ken Pink Plant Hire Ltd,56884V
Gloucester City Council,23UE,Museum Phase 2 Hlf,GY001,Contract Payments,20,ciy Museum Art Gallery HLF consult 3rd,11/03/2014,379899,943,CAP,Andrew Meredith T/A Meredith Associates,14203Z
Gloucester City Council,23UE,Other Flooding,RO103,Fees For Services Received,5350,"Sand, snadbags&polythene for flood work",11/03/2014,379896,2300.14,NET,Enterprise (Aol) Ltd,06695G
Gloucester City Council,23UE,Stationery Services,RS150,Stationery,5302,Environment Supp services OCE OPaque,11/03/2014,380184,39.57,NET,Stanford Marsh Ltd*,51139M
Gloucester City Council,23UE,Treasury Management,VR110,Brokerage Fees,5951,BROKERS FEE,11/03/2014,380196,3764.39,NET,Martin Brokers (UK) PLC,51416J
Gloucester City Council,23UE,Wake Room,HC501,Catering Provisions -Food,5110,Arbour: Coffee making items,11/03/2014,380072,150.18,NET,Caffeica Ltd,11923J
Gloucester City Council,23UE,Business Support,PT250,Fuel,4012,fuel,12/03/2014,379979,254.69,NET,Allstar Business Solutions Ltd (Arval),06594A
Gloucester City Council,23UE,Business Support,PT250,Fuel,4012,fuel,12/03/2014,380102,215.34,NET,Allstar Business Solutions Ltd (Arval),06594A
Gloucester City Council,23UE,Business Support,PT250,Fuel,4012,fuel,12/03/2014,380103,343.11,NET,Allstar Business Solutions Ltd (Arval),06594A
Gloucester City Council,23UE,Business Support,PT250,Fuel,4012,fuel,12/03/2014,380313,47.51,NET,Allstar Business Solutions Ltd (Arval),06594A
Gloucester City Council,23UE,Business Transformation & Tech,RT700,Basic Pay - Temporary Staff,2751,REDACTED,12/03/2014,380378,3848,NET,Vector Resourcing Ltd,11664K
Gloucester City Council,23UE,Business Transformation & Tech,RT700,Basic Pay - Temporary Staff,2751,contractor services,12/03/2014,380318,600,NET,Ffox Software Ltd,10665T
Gloucester City Council,23UE,Business Transformation & Tech,RT700,Computer Software <5000,5425,LA data sharing costs.,12/03/2014,379820,3284.37,NET,Civica UK Ltd,10841X
Gloucester City Council,23UE,Cemeteries,HC300,Maint Of Grounds - General,3030,PANELS,12/03/2014,380380,230.56,NET,Millington & Ramstedt Ltd,29815S
Gloucester City Council,23UE,City Museum And Art Gallery,LM200,Advertising And Publicity,5702,ADVERTISING,12/03/2014,377970,90,NET,Traplet Publications,14461Y
Gloucester City Council,23UE,Client Revs & Bens Contract,RT240,Bailiffs Fees,5368,fees & VAT due,12/03/2014,380314,231.44,NET,Bristow & Sutor,05450M
Gloucester City Council,23UE,Client Revs & Bens Contract,RT240,Bailiffs Fees,5368,vat only invoice,12/03/2014,380315,0,NET,Bristow & Sutor,05450M
Gloucester City Council,23UE,Client Revs & Bens Contract,RT240,Bank Charges And Adjustments,5950,probate search,12/03/2014,380433,6,NET,Hm Courts & Tribunals Service,12497V
Gloucester City Council,23UE,Client Revs & Bens Contract,RT240,Fees For Services Received,5350,CTAX PAYMENT CARDS,12/03/2014,380424,866.45,NET,Thames Card Technology Ltd,54199N
Gloucester City Council,23UE,Contact Centre,RB300,Basic Pay -Admin /Prof Staff,2601,REDACTED,12/03/2014,379458,148.5,NET,One To One Recruitment,04752H
Gloucester City Council,23UE,Countryside Unit,LP201,Routine R And M - Vehicles,4011,spare parts,12/03/2014,380345,109.63,NET,Commercial Mower Supplies,06799D
Gloucester City Council,23UE,Development Management,PT200,Subscriptions,5600,DCP online renewal,12/03/2014,380327,1070,NET,Haymarket Media Group Ltd,56642Y
Gloucester City Council,23UE,Disabled Facilities Grants,CY013,Disabled Facility Grants,74,MDF5023,12/03/2014,380326,20127.65,CAP,Beard & Tandy,03160V
Gloucester City Council,23UE,Docks Complex - Services,RB100,General Repair/Maint Buildings,3000,"Fe-Revenue parking, Fe-Call out",12/03/2014,380051,117,NET,Gea Denco Ltd,57271C
Gloucester City Council,23UE,Docks Complex - Telephones,RB120,Mobile Phones,5409,CALLS FEB 2014,12/03/2014,380377,2099.25,NET,Everything Everywhere Ltd (T-Mobile),57543S
Gloucester City Council,23UE,Financial Services,RT200,Consultants Fees,5349,REDACTED,12/03/2014,379550,2175,NET,Robert Half Ltd,03959K
Gloucester City Council,23UE,Financial Services,RT200,Fees For Services Received,5350,VAT ONLY INVOICE,12/03/2014,380361,0,NET,Phoenix Commercial Collections Ltd,13435J
Gloucester City Council,23UE,Financial Services,RT200,Subscriptions,5600,CIPFA Benchmarking corp Serv 2014,12/03/2014,380066,950,NET,Cipfa Business Limited,09260F
Gloucester City Council,23UE,Folk Museum,LM210,Exhibits And Collections,5038,Folk Museum artifact movement,12/03/2014,380347,1125,NET,Advanced Removals & Storage Ltd,57142R
Gloucester City Council,23UE,Guildhall Bar And Caf�,LA210,Catering Provisions -Food,5110,Guildhall: foods,12/03/2014,379745,68.91,NET,Woodward Foodservice,10714F
Gloucester City Council,23UE,Guildhall Bar And Caf�,LA210,Catering Provisions -Food,5110,Guildhall: foods,12/03/2014,379746,173.33,NET,Woodward Foodservice,10714F
Gloucester City Council,23UE,Hackney Carriages,HL100,Fees For Services Received,5350,DBS checks 10/ to 27/2/2014,12/03/2014,380086,484,NET,Disclosure And Barring Service,00119W
Gloucester City Council,23UE,Hackney Carriages,HL100,Fees For Services Received,5350,Dec13 CRB checks,12/03/2014,376833,660,NET,Disclosure And Barring Service,00119W
Gloucester City Council,23UE,Hackney Carriages,HL100,Fees For Services Received,5350,JAN14 CRB checks,12/03/2014,378330,352,NET,Disclosure And Barring Service,00119W
Gloucester City Council,23UE,Homelessness,CH120,Board And Lodging,5515,REDACTED,12/03/2014,380340,5962.89,NET,Gloucester City Homes,05244T
Gloucester City Council,23UE,Homelessness,CH120,Board And Lodging,5515,REDACTED,12/03/2014,380341,8295.97,NET,Gloucester City Homes,05244T
Gloucester City Council,23UE,Homelessness,CH120,Board And Lodging,5515,REDACTED,12/03/2014,380343,7833.89,NET,Gloucester City Homes,05244T
Gloucester City Council,23UE,Homelessness Prevention,CH122,Advertising And Publicity,5702,ADVERT 08/03/14,12/03/2014,380376,900,NET,Local World Ltd,08556P
Gloucester City Council,23UE,Homelessness Prevention,CH122,Board And Lodging,5515,REDACTED,12/03/2014,380342,8414.76,NET,Gloucester City Homes,05244T
Gloucester City Council,23UE,Investment Property,RB500,Advertising And Publicity,5702,"St Oswalkd Pk land: ads, boards",12/03/2014,379538,472.5,NET,Alder King*,02367D
Gloucester City Council,23UE,Investment Property,RB500,Lift Maintenance,3051,GUILDHALL,12/03/2014,380382,112.62,NET,Pickerings Europe Ltd*,58816U
Gloucester City Council,23UE,Kings Quarter,RY146,Legal/Survey Fees -Land,2,GOLDEN EGG,12/03/2014,380430,41471.3,CAP,Wye Valley Demolition Ltd,07242C
Gloucester City Council,23UE,Legal Services,RS200,Basic Pay -Admin /Prof Staff,2601,REDACTED,12/03/2014,380383,534.96,NET,Sellick Partnership Group Ltd,11057C
Gloucester City Council,23UE,Legal Services,RS200,Basic Pay - Temporary Staff,2751,REDACTED,12/03/2014,380374,487.29,NET,Premiere Employment Ltd,55468Z
Gloucester City Council,23UE,Legal Services,RS200,Fees For Services Received,5350,professional charges 12/2-19/2/14,12/03/2014,380344,1349,NET,Bevan Brittan,06630Y
Gloucester City Council,23UE,Nms Contract,HI102,Contracted Services,6970,MAR 2014 CONTRACT,12/03/2014,380384,508825.75,NET,Enterprise (Aol) Ltd,06695G
Gloucester City Council,23UE,Other Flooding,RO103,Operational Equipment <5000,5012,TEWKESBURY RD,12/03/2014,380362,180,NET,Rdb Safety Boat Ltd,13507J
Gloucester City Council,23UE,Postal Services,RS120,Postages,5400,Regeneration postage,12/03/2014,380180,1633.65,NET,Royal Mail S.Wales & South West,35830S
Gloucester City Council,23UE,Retail Market - Landlord,HM300,General Repair/Maint Buildings,3000,Eastgate Mkt door repairs,12/03/2014,380316,141,NET,Allegion (UK) Ltd*,06444X
Gloucester City Council,23UE,Retail Market - Landlord,HM300,Operational Equipment <5000,5012,compactor rental,12/03/2014,380322,280.56,NET,System Rental UK Ltd,03239E
Gloucester City Council,23UE,Stationery Services,RS150,Stationery,5302,STATIONERY,12/03/2014,380427,31.36,NET,Lyreco UK Ltd,11746G
Gloucester City Council,23UE,Website Rebuild,RY573,Consultants Fees,30,REDACTED,12/03/2014,380367,1267,CAP,Patzone It Solutions Ltd,13059R
Gloucester City Council,23UE,Homelessness,CH120,Rent In Advance,5516,REDACTED,12/03/2014,380149,364.6,NET,2 Let Glos Ltd,07066Y
Gloucester City Council,23UE,Accelerator 1 Econ Challenge F,FP302,Other Minor Supplies Services,5590,CREDITED ON 380426,13/03/2014,372977,161.5,NET,University Of Gloucestershire,57991H
Gloucester City Council,23UE,Asbru - Other Funders,FP846,Other Minor Supplies Services,5590,REDACTED,13/03/2014,380386,520.2,NET,Travail Employment Ltd,49371W
Gloucester City Council,23UE,Asset Management,RS300,Basic Pay - Temporary Staff,2751,contractor services w/e 28/2/14,13/03/2014,380348,793,NET,Abatec Ltd,14249Y
Gloucester City Council,23UE,Asset Management,RS300,Basic Pay - Temporary Staff,2751,REDACTED,13/03/2014,380356,1211.5,NET,Hays Specialist Recruitment Ltd,55516P
Gloucester City Council,23UE,Asset Management,RS300,Basic Pay - Temporary Staff,2751,REDACTED,13/03/2014,380355,1263.08,NET,Hays Specialist Recruitment Ltd,55516P
Gloucester City Council,23UE,Asset Management,RS300,Basic Pay - Temporary Staff,2751,REDACTED,13/03/2014,380354,1307.05,NET,Hays Specialist Recruitment Ltd,55516P
Gloucester City Council,23UE,Asset Management,RS300,Licences,5703,KEL Sigma annual rental,13/03/2014,380311,1325,NET,KEL,13644X
Gloucester City Council,23UE,Blackfriars Priory,RY207,Capital General Repairs & Main,13,CREDITED ON 380428,13/03/2014,379340,25.66,CAP,Riba Enterprises,09988U
Gloucester City Council,23UE,Business Transformation & Tech,RT700,Computer Hardware Maintenance,5426,Lease charge Contex SD44SE scanner,13/03/2014,380061,321,NET,Stanford Marsh Ltd*,51139M
Gloucester City Council,23UE,Cemeteries,HC300,Maint Of Grounds - General,3030,4T type 1,13/03/2014,380507,115,NET,Allstone Sand & Gravel Aggregates Ltd,00940M
Gloucester City Council,23UE,Cemeteries,HC300,Maint Of Grounds - General,3030,70m turf,13/03/2014,380517,161,NET,Aran Turf,56656L
Gloucester City Council,23UE,Cemeteries,HC300,Maint Of Grounds - General,3030,safety specs,13/03/2014,380320,56.4,NET,Safpro Industrial Supply Co,39190W
Gloucester City Council,23UE,Cemeteries,HC300,Repair/Maint Of Monuments,3004,10T cambrian green,13/03/2014,380501,610,NET,Allstone Sand & Gravel Aggregates Ltd,00940M
Gloucester City Council,23UE,Cemeteries,HC300,Trade Refuse Tipping Fees,6297,dumper hire,13/03/2014,380508,380,NET,Allstone Sand & Gravel Aggregates Ltd,00940M
Gloucester City Council,23UE,Cemeteries,HC300,Trade Refuse Tipping Fees,6297,green waste skip,13/03/2014,380503,200,NET,Allstone Sand & Gravel Aggregates Ltd,00940M
Gloucester City Council,23UE,Cemeteries,HC300,Trade Refuse Tipping Fees,6297,inert waste skip,13/03/2014,380539,720,NET,Allstone Sand & Gravel Aggregates Ltd,00940M
Gloucester City Council,23UE,Cemeteries,HC300,Trade Refuse Tipping Fees,6297,mixed waste skip,13/03/2014,380502,185,NET,Allstone Sand & Gravel Aggregates Ltd,00940M
Gloucester City Council,23UE,City Museum And Art Gallery,LM200,Printing,5300,Museums: A5 booklet,13/03/2014,379788,299,NET,Color Co,57707K
Gloucester City Council,23UE,City Museum And Art Gallery,LM200,Uniforms,5201,Name badges (13),13/03/2014,380157,45.1,NET,Akorn Badges,51779S
Gloucester City Council,23UE,Client Revs & Bens Contract,RT240,Fees For Services Received,5350,REDACTED,13/03/2014,378930,190,NET,Gloucestershire County Council,18650D
Gloucester City Council,23UE,Crematorium,HC200,Cleaning Materials,3600,SANITARY UNITS,13/03/2014,380373,16.78,NET,Minster Cleaning Services,02158R
Gloucester City Council,23UE,Crematorium,HC200,Memorial Plaques,5053,Book tablet,13/03/2014,379839,50,NET,The Columbaria Company,55078T
Gloucester City Council,23UE,Crematorium,HC200,Memorial Plaques,5053,plaque,13/03/2014,380505,54,NET,Arkell & Hurcombe,59812T
Gloucester City Council,23UE,Crematorium,HC200,National Assist Act Burial Exp,5593,REDACTED,13/03/2014,380523,365,NET,Mr Kenneth J Tyler T/A Goodwins,03554T
Gloucester City Council,23UE,Crematorium,HC200,Repair/Maint Of Fixed Plant,3006,REDACTED,13/03/2014,380523,88,NET,Mr Kenneth J Tyler T/A Goodwins,03554T
Gloucester City Council,23UE,Crematorium,HC200,"Seeds, Trees, Plants, Shrubs",3028,yellow rose bush,13/03/2014,380336,7.99,NET,Highfield Garden Centres Ltd,48436C
Gloucester City Council,23UE,Development Management,PT200,Application Fees,9312,refund for returned application,13/03/2014,380489,110,NET,REDACTED,REDACTED
Gloucester City Council,23UE,Development Management,PT200,Consultants Fees,5349,Peel Centre work June13,13/03/2014,367556,800,NET,DPDS Ltd,05404V
Gloucester City Council,23UE,Disabled Facilities Grants,CY013,Disabled Facility Grants,74,CORRECT CIS DEDUCTIONS,13/03/2014,380246,6471,CAP,Pinetree (Gloucester) Ltd,53288Y
Gloucester City Council,23UE,Disabled Facilities Grants,CY013,Disabled Facility Grants,74,GRANT REF MDF5020,13/03/2014,380545,10000,CAP,Glynn Mann Construction,07264S
Gloucester City Council,23UE,Docks Complex - Catering Servs,RB110,Catering Provisions -Food,5110,FOOD,13/03/2014,380381,105.8,NET,3663,55585U
Gloucester City Council,23UE,Docks Complex - Catering Servs,RB110,Catering Provisions -Food,5110,Herbert: foods,13/03/2014,380077,75.71,NET,Janes Pantry,24500W
Gloucester City Council,23UE,Docks Complex - Services,RB100,Cleaning Materials,3600,cleaning materials,13/03/2014,380309,46.14,NET,Core Hygiene Ltd,03885P
Gloucester City Council,23UE,Docks Complex - Services,RB100,Cleaning Materials,3600,jumbo dispenser,13/03/2014,380310,50.88,NET,Core Hygiene Ltd,03885P
Gloucester City Council,23UE,Docks Complex - Services,RB100,Recycling,3631,FEB13 RECYCLING,13/03/2014,380350,155.8,NET,Printwaste Recycling,57114W
Gloucester City Council,23UE,Docks Complex - Telephones,RB120,Lease Lines,5411,leased lines MAR14,13/03/2014,380533,3948.11,NET,Gamma Business Communications,10260A
Gloucester City Council,23UE,Docks Complex - Telephones,RB120,Mobile Phones,5409,ACCT 683678256/00001,13/03/2014,380400,25.53,NET,Vodafone Ltd,53527D
Gloucester City Council,23UE,Docks Complex - Telephones,RB120,Telephones And Fax,5410,ACCT 504750303 LUGG,13/03/2014,380399,33,NET,Virgin Media Payments Ltd,09376J
Gloucester City Council,23UE,Docks Complex - Telephones,RB120,Telephones And Fax,5410,ACCT 511746301 JAMES,13/03/2014,380398,30,NET,Virgin Media Payments Ltd,09376J
Gloucester City Council,23UE,Docks Complex - Telephones,RB120,Telephones And Fax,5410,ACCT 511791401 RANDLE,13/03/2014,380397,30,NET,Virgin Media Payments Ltd,09376J
Gloucester City Council,23UE,Docks Complex - Telephones,RB120,Telephones And Fax,5410,ACCT 513231401,13/03/2014,380396,39,NET,Virgin Media Payments Ltd,09376J
Gloucester City Council,23UE,Environmental Planning,LM340,Clothing,5200,SHOES,13/03/2014,378849,68.25,NET,Safpro Industrial Supply Co,39190W
Gloucester City Council,23UE,Folk Museum,LM210,Operational Equipment <5000,5012,paint,13/03/2014,379076,5.99,NET,The Consortium,10365J
Gloucester City Council,23UE,General Drainage Works,PY241,Contract Payments,20,goods,13/03/2014,380306,41.35,CAP,Ermin Plant Hire & Services Ltd,14150V
Gloucester City Council,23UE,General Works Fund,RY203,Capital Lifts,24,Doors and fitting,13/03/2014,377966,2032.64,CAP,Chase Equipment Ltd,14260L
Gloucester City Council,23UE,Gloucester Guildhall,LA100,Fees For Services Received,5350,A5 booklet - What's on Guide,13/03/2014,379789,1280,NET,Color Co,57707K
Gloucester City Council,23UE,Gloucester Guildhall,LA100,General Repair/Maint Buildings,3000,Guildhall cinema lights,13/03/2014,380519,115,NET,Connect Electrical Contracting Ltd,12405D
Gloucester City Council,23UE,Green Garden Waste,HI105,Printing,5300,Garden Waste renewal invoices,13/03/2014,380521,5148.4,NET,Civica UK Ltd,10841X
Gloucester City Council,23UE,Green Transport Policy,PJ130,Overtime - Cleaners,2403,WP11OBP Smart Coupe: contract end 5/7/15,13/03/2014,380194,287.35,NET,Daimler Fleet Management,07828N
Gloucester City Council,23UE,Group Mgr Planning & Economy,GR101,Basic Pay - Temporary Staff,2751,REDACTED,13/03/2014,379426,2475,NET,Randstad Cpe Ltd,13987L
Gloucester City Council,23UE,Group Mgr Planning & Economy,GR101,Basic Pay - Temporary Staff,2751,REDACTED,13/03/2014,379794,2475,NET,Randstad Cpe Ltd,13987L
Gloucester City Council,23UE,Group Mgr Planning & Economy,GR101,Basic Pay - Temporary Staff,2751,REDACTED,13/03/2014,380104,2475,NET,Randstad Cpe Ltd,13987L
Gloucester City Council,23UE,Guildhall Bar And Caf�,LA210,Catering Provisions -Food,5110,Guildhall: foods,13/03/2014,380078,65.1,NET,Janes Pantry,24500W
Gloucester City Council,23UE,Guildhall Bar And Caf�,LA210,Catering Provisions -Liquor,5111,guildhall beergas,13/03/2014,380540,19.67,NET,BOC Ltd,59172L
Gloucester City Council,23UE,Hempsted Market/Car Boot,HM234,Maint Of Grounds - General,3030,hempsted meadows toilets,13/03/2014,380534,155,NET,Abbey Loos Limited,10787B
Gloucester City Council,23UE,Homelessness,CH120,Board And Lodging,5515,Emergency accommodation @ Premiere Inn,13/03/2014,379405,93.33,NET,Gloucestershire County Council,18650D
Gloucester City Council,23UE,Homelessness,CH120,Rent In Advance,5516,REDACTED,13/03/2014,380546,364.6,NET,REDACTED,REDACTED
Gloucester City Council,23UE,Homelessness Prevention,CH122,Fees For Services Received,5350,REDACTED,13/03/2014,380546,400,NET,REDACTED,REDACTED
Gloucester City Council,23UE,Housing Strategy & Enabling,CH110,Fees For Services Received,5350,REDACTED,13/03/2014,380535,800,NET,REDACTED,REDACTED
Gloucester City Council,23UE,Investment Property,RB500,Lift Maintenance,3051,Doors and fitting,13/03/2014,377966,200,NET,Chase Equipment Ltd,14260L
Gloucester City Council,23UE,Kings Quarter Redevelopment,RB600,Fees For Services Received,5350,valuation fees re Tesco lease,13/03/2014,380512,1500,NET,Cb Richard Ellis Ltd,12446N
Gloucester City Council,23UE,Land Searches,RO300,Fees For Services Received,5350,2012/13 Q4 land charges,13/03/2014,380516,1000,NET,Gloucestershire County Council,18650D
Gloucester City Council,23UE,National Express,LT105,Materials For Sale,5080,sales FEB14,13/03/2014,380499,110,NET,Wetm Ltd,05656Z
Gloucester City Council,23UE,National Express,LT105,Sale Of Goods And Services,9230,sales FEB14,13/03/2014,380499,-5.5,NET,Wetm Ltd,05656Z
Gloucester City Council,23UE,Off Street Car Parks,PP110,Rents,3200,38/46 Eastgate st Rent due,13/03/2014,380195,600,NET,Boots The Chemist,04540V
Gloucester City Council,23UE,Off Street Car Parks,PP110,Rents,3200,Kings Sq car park rent MAR-JUN14,13/03/2014,380307,46250,NET,Dtz,08367V
Gloucester City Council,23UE,Printing,RP103,Fees For Services Received,5350,FEB14 print room sales,13/03/2014,380536,654.71,NET,Alpha Colour Printers Ltd,00945B
Gloucester City Council,23UE,Stationery Services,RS150,Stationery,5302,STATIONERY,13/03/2014,380429,40.67,NET,Lyreco UK Ltd,11746G
Gloucester City Council,23UE,Taxi Marshalling Scheme,HL101,Taxi Marshals,5387,taxi marshalls,13/03/2014,380520,187.5,NET,Cuff Security Services Ltd,12073G
Gloucester City Council,23UE,Taxi Marshalling Scheme,HL101,Taxi Marshals,5387,taxi marshalls,13/03/2014,380531,187.5,NET,Cuff Security Services Ltd,12073G
Gloucester City Council,23UE,Taxi Marshalling Scheme,HL101,Taxi Marshals,5387,taxi marshalls,13/03/2014,380537,187.5,NET,Cuff Security Services Ltd,12073G
Gloucester City Council,23UE,Taxi Marshalling Scheme,HL101,Taxi Marshals,5387,taxi marshalls,13/03/2014,380538,187.5,NET,Cuff Security Services Ltd,12073G
Gloucester City Council,23UE,Taxi Marshalling Scheme,HL101,Taxi Marshals,5387,taxi marshalls,13/03/2014,380541,187.5,NET,Cuff Security Services Ltd,12073G
Gloucester City Council,23UE,Taxi Marshalling Scheme,HL101,Taxi Marshals,5387,taxi marshalls,13/03/2014,380542,187.5,NET,Cuff Security Services Ltd,12073G
Gloucester City Council,23UE,Taxi Marshalling Scheme,HL101,Taxi Marshals,5387,taxi marshalls,13/03/2014,380543,187.5,NET,Cuff Security Services Ltd,12073G
Gloucester City Council,23UE,Taxi Marshalling Scheme,HL101,Taxi Marshals,5387,txi marshalls,13/03/2014,380544,187.5,NET,Cuff Security Services Ltd,12073G
Gloucester City Council,23UE,Tic Trading,LT110,Publications For Sale,5064,goods for resale,13/03/2014,380526,219.6,NET,REDACTED,REDACTED
Gloucester City Council,23UE,Tourism Marketing,LT100,Exhibits And Collections,5038,display equipment,13/03/2014,380527,144.12,NET,Displaysense Ltd,05982W
Gloucester City Council,23UE,Training Schemes,ET100,Employee Related Advertising,2920,SkillsFEST 2014,13/03/2014,380513,125,NET,Gloucestershire College,06835B
Gloucester City Council,23UE,Tree Planting Grant Funded,LY150,Contract Payments,20,CANES,13/03/2014,380425,45,CAP,Mount Pleasant Trees,51352K
Gloucester City Council,23UE,Tree Planting Grant Funded,LY150,Contract Payments,20,TREES,13/03/2014,380385,864.7,CAP,Mount Pleasant Trees,51352K
Gloucester City Council,23UE,Tree Planting Grant Funded,LY150,Contract Payments,20,TREES,13/03/2014,380391,59.99,CAP,Mount Pleasant Trees,51352K
Gloucester City Council,23UE,Aspire Admin Charges,LC105,Other Minor Income,9900,BAILIFF PAYMENTS 28/02/14,14/03/2014,380657,169.2,NET,Aspire Sports & Cultural Trust,08135V
Gloucester City Council,23UE,Asset Management,RS300,Basic Pay - Temporary Staff,2751,REDACTED,14/03/2014,380522,1220.93,NET,Hays Specialist Recruitment Ltd,55516P
Gloucester City Council,23UE,Asset Management,RS300,Basic Pay - Temporary Staff,2751,REDACTED,14/03/2014,380510,1274.75,NET,Hays Specialist Recruitment Ltd,55516P
Gloucester City Council,23UE,Business Support,PT250,Microfilming / Cd-Rom Storage,5330,ARCHIVING,14/03/2014,380617,28.88,NET,Transmedia Technology Ltd,08635T
Gloucester City Council,23UE,Business Transformation & Tech,RT700,Computer Hardware <5000,5420,2GB DDR2,14/03/2014,380652,1212.5,NET,Qual Technology,56512N
Gloucester City Council,23UE,Bus Station,RB400,Water Supply,3400,ACCT 7890105225,14/03/2014,380395,200.39,NET,Severn Trent Water,01823H
Gloucester City Council,23UE,Cemeteries,HC300,Water Supply,3400,ACCT 3850367020,14/03/2014,380640,280.54,NET,Severn Trent Water,01823H
Gloucester City Council,23UE,City Museum And Art Gallery,LM200,Catering Provisions -Food,5110,FOOD,14/03/2014,380608,7.44,NET,Total Produce Gloucester,12645E
Gloucester City Council,23UE,City Museum And Art Gallery,LM200,Catering Provisions -Food,5110,FOOD,14/03/2014,380609,4.96,NET,Total Produce Gloucester,12645E
Gloucester City Council,23UE,City Museum And Art Gallery,LM200,Catering Provisions -Food,5110,FOOD,14/03/2014,380616,7.44,NET,Total Produce Gloucester,12645E
Gloucester City Council,23UE,City Museum And Art Gallery,LM200,Catering Provisions -Food,5110,FOOD,14/03/2014,380622,4.96,NET,Total Produce Gloucester,12645E
Gloucester City Council,23UE,City Museum And Art Gallery,LM200,Catering Provisions -Food,5110,FOOD,14/03/2014,380623,4.96,NET,Total Produce Gloucester,12645E
Gloucester City Council,23UE,City Museum And Art Gallery,LM200,Publications For Sale,5064,Book - women at war,14/03/2014,379805,32.44,NET,The History Press Ltd,07144D
Gloucester City Council,23UE,City Museum And Art Gallery,LM200,Publications For Sale,5064,goods for resale,14/03/2014,380504,404.35,NET,British Fossils,53280R
Gloucester City Council,23UE,City Museum And Art Gallery,LM200,Publications For Sale,5064,GOODS FOR RESALE,14/03/2014,380618,163.95,NET,The Playwrite Group,06703W
Gloucester City Council,23UE,City Museum And Art Gallery,LM200,Publications For Sale,5064,RICHARD III,14/03/2014,380632,120,NET,Richard III Society,14330R
Gloucester City Council,23UE,City Museum Catering,LM202,Catering Provisions -Food,5110,FOOD,14/03/2014,380628,98.01,NET,Woody's Fruit & Veg,11798L
Gloucester City Council,23UE,City Museum Catering,LM202,Catering Provisions -Food,5110,FOOD,14/03/2014,380637,74.98,NET,Woodward Foodservice,10714F
Gloucester City Council,23UE,City Museum Catering,LM202,Catering Provisions -Food,5110,FOOD,14/03/2014,380638,106.82,NET,Woodward Foodservice,10714F
Gloucester City Council,23UE,City Museum Catering,LM202,Catering Provisions -Food,5110,FOOD,14/03/2014,380639,159.18,NET,Woodward Foodservice,10714F
Gloucester City Council,23UE,City Museum Catering,LM202,Catering Provisions -Food,5110,FOOD,14/03/2014,380641,80.66,NET,Woodward Foodservice,10714F
Gloucester City Council,23UE,City Museum Catering,LM202,Catering Provisions -Food,5110,FOOD,14/03/2014,380642,167.57,NET,Woodward Foodservice,10714F
Gloucester City Council,23UE,City Museum Catering,LM202,Exhibits And Collections,5038,RICHARD III,14/03/2014,380632,6,NET,Richard III Society,14330R
Gloucester City Council,23UE,Civica Admin Charges,RT105,Postages,5400,Account mail,14/03/2014,378204,1275.09,NET,Royal Mail S.Wales & South West,35830S
Gloucester City Council,23UE,Council Streetcare Team,HI101,Water Supply,3400,ACCT 7890105225,14/03/2014,380395,123.13,NET,Severn Trent Water,01823H
Gloucester City Council,23UE,Countryside Unit,LP201,Clothing,5200,goods,14/03/2014,380305,69.92,NET,Countrywide Farmers*,55687J
Gloucester City Council,23UE,Countryside Unit,LP201,Livestock Foodstuff,5841,senior/ultra numberic replacement,14/03/2014,380494,2.3,NET,Allflex Europe (UK) Ltd,13351S
Gloucester City Council,23UE,Countryside Unit,LP201,Maint Of Grounds - General,3030,goods,14/03/2014,380305,15.82,NET,Countrywide Farmers*,55687J
Gloucester City Council,23UE,Countryside Unit,LP201,Safety Equipment,5013,goods,14/03/2014,380305,68.98,NET,Countrywide Farmers*,55687J
Gloucester City Council,23UE,Crematorium,HC200,Water Supply,3400,ACCT 7890105225,14/03/2014,380395,44.65,NET,Severn Trent Water,01823H
Gloucester City Council,23UE,Docks Complex - Catering Servs,RB110,Catering Provisions -Food,5110,FOOD,14/03/2014,380634,301.84,NET,3663,55585U
Gloucester City Council,23UE,Docks Complex - Services,RB100,Cleaning Materials,3600,cleaning materials,14/03/2014,380509,46.08,NET,Cleanmy Ltd,06971S
Gloucester City Council,23UE,Docks Complex - Services,RB100,General Repair/Maint Buildings,3000,call out,14/03/2014,380096,132.5,NET,Gea Denco Ltd,57271C
Gloucester City Council,23UE,Docks Complex - Services,RB100,Maint Agreements - Buildings,3010,call out,14/03/2014,380331,177,NET,Adt Fire & Security Plc,54086D
Gloucester City Council,23UE,Docks Complex - Services,RB100,Recycling,3631,"Guildhall - wste cans, bottles 4/2&18/2",14/03/2014,380193,37.4,NET,Printwaste Recycling,57114W
Gloucester City Council,23UE,Economic Development,FP300,Other Minor Supplies Services,5590,PUNCHLINE,14/03/2014,380631,500,NET,Moose Marketing & PR,03952A
Gloucester City Council,23UE,Financial Services,RT200,Basic Pay - Temporary Staff,2751,REDACTED,14/03/2014,380365,541.24,NET,Robert Half Ltd,03959K
Gloucester City Council,23UE,Financial Services,RT200,Consultants Fees,5349,REDACTED,14/03/2014,379847,2175,NET,Robert Half Ltd,03959K
Gloucester City Council,23UE,Financial Services,RT200,Consultants Fees,5349,REDACTED,14/03/2014,380364,2175,NET,Robert Half Ltd,03959K
Gloucester City Council,23UE,Folk Museum,LM210,Operational Equipment <5000,5012,Folk Museum: brush & paint,14/03/2014,378795,23.82,NET,The Consortium,10365J
Gloucester City Council,23UE,Folk Museum,LM210,Publications For Sale,5064,GOODS FOR RESALE,14/03/2014,380618,93.78,NET,The Playwrite Group,06703W
Gloucester City Council,23UE,Folk Museum Catering,LM211,Catering Provisions -Food,5110,food,14/03/2014,380626,7.29,NET,Woody's Fruit & Veg,11798L
Gloucester City Council,23UE,Group Mgr Planning & Economy,GR101,Consultants Fees,5349,Building Regs structural check 1.5h,14/03/2014,380080,67.5,NET,Bath & North East Somerset District Council,57875R
Gloucester City Council,23UE,Guildhall Bar And Caf�,LA210,Catering Provisions -Food,5110,food,14/03/2014,380627,145.16,NET,Woody's Fruit & Veg,11798L
Gloucester City Council,23UE,Guildhall Bar And Caf�,LA210,Catering Provisions -Food,5110,FOOD,14/03/2014,379723,4.96,NET,Total Produce Gloucester,12645E
Gloucester City Council,23UE,Guildhall Bar And Caf�,LA210,Catering Provisions -Food,5110,FOOD,14/03/2014,380603,4.96,NET,Total Produce Gloucester,12645E
Gloucester City Council,23UE,Guildhall Bar And Caf�,LA210,Catering Provisions -Food,5110,FOOD,14/03/2014,380604,4.96,NET,Total Produce Gloucester,12645E
Gloucester City Council,23UE,Guildhall Bar And Caf�,LA210,Catering Provisions -Food,5110,FOOD,14/03/2014,380605,4.96,NET,Total Produce Gloucester,12645E
Gloucester City Council,23UE,Guildhall Bar And Caf�,LA210,Catering Provisions -Food,5110,FOOD,14/03/2014,380606,4.96,NET,Total Produce Gloucester,12645E
Gloucester City Council,23UE,Guildhall Bar And Caf�,LA210,Catering Provisions -Food,5110,FOOD,14/03/2014,380607,4.96,NET,Total Produce Gloucester,12645E
Gloucester City Council,23UE,Guildhall Bar And Caf�,LA210,Catering Provisions -Food,5110,FOOD,14/03/2014,380615,4.96,NET,Total Produce Gloucester,12645E
Gloucester City Council,23UE,Guildhall Bar And Caf�,LA210,Catering Provisions -Food,5110,FOOD,14/03/2014,380635,4.96,NET,Total Produce Gloucester,12645E
Gloucester City Council,23UE,Guildhall Bar And Caf�,LA210,Catering Provisions -Food,5110,FOOD,14/03/2014,380636,4.96,NET,Total Produce Gloucester,12645E
Gloucester City Council,23UE,REDACTED,REDACTED,REDACTED,REDACTED,REDACTED,14/03/2014,REDACTED,100,NET,REDACTED,REDACTED
Gloucester City Council,23UE,REDACTED,REDACTED,REDACTED,REDACTED,REDACTED,14/03/2014,REDACTED,1788.83,NET,REDACTED,REDACTED
Gloucester City Council,23UE,Hackney Carriages,HL100,Fees For Services Received,5350,DVLA checks,14/03/2014,380154,63,NET,Intelligent Data Systems (UK) Ltd,11067G
Gloucester City Council,23UE,Hackney Carriages,HL100,Other Minor Supplies Services,5590,LICENCE PLATE SET,14/03/2014,380611,1762.9,NET,Mogo UK,56615B
Gloucester City Council,23UE,Hmo Licences,HE520,Other Minor Supplies Services,5590,goods,14/03/2014,380305,-25.01,NET,Countrywide Farmers*,55687J
Gloucester City Council,23UE,Investment Property,RB500,Advertising And Publicity,5702,DESIGN PROPOSAL,14/03/2014,380368,500,NET,Litchfield Morris,14305P
Gloucester City Council,23UE,Investment Property,RB500,Water Supply,3400,ACCT 7890105225,14/03/2014,380395,357.05,NET,Severn Trent Water,01823H
Gloucester City Council,23UE,Legal Services,RS200,Basic Pay -Admin /Prof Staff,2601,REDACTED,14/03/2014,380621,652.32,NET,Sellick Partnership Group Ltd,11057C
Gloucester City Council,23UE,Mortgage Rescue,CH128,Fees For Services Received,5350,REDACTED,14/03/2014,380647,387.6,NET,One To One Recruitment,04752H
Gloucester City Council,23UE,Off Street Car Parks,PP110,Water Supply,3400,ACCT 7890105225,14/03/2014,380395,2007.41,NET,Severn Trent Water,01823H
Gloucester City Council,23UE,Postal Services,RS120,Postages,5400,ENVELOPES,14/03/2014,380629,567.6,NET,Tompla UK Ltd,13782H
Gloucester City Council,23UE,Printing,RP103,Fees For Services Received,5350,various print jobs,14/03/2014,379929,3283,NET,Alpha Colour Printers Ltd,00945B
Gloucester City Council,23UE,Robinswoodhill Trading Account,LP203,Maint Of Grounds - General,3030,goods,14/03/2014,380305,29.99,NET,Countrywide Farmers*,55687J
Gloucester City Council,23UE,Senior Management Restructurin,RO200,Fees For Services Received,5350,Consult services and travel,14/03/2014,380070,2421.6,NET,Alexander Beaver Associates,06515Z
Gloucester City Council,23UE,Stationery Services,RS150,Stationery,5302,PAPER,14/03/2014,380625,33.73,NET,Premier Paper Group Ltd,09166Y
Gloucester City Council,23UE,Townscape Heritage Initiative,LY145,Contract Payments,20,advert 14/2/14,14/03/2014,380060,534.52,CAP,Local World Ltd,08556P
Gloucester City Council,23UE,Wake Room,HC501,Catering Provisions -Food,5110,DIFF ON INV GLO-59374,14/03/2014,380656,0.24,NET,Total Produce Gloucester,12645E
Gloucester City Council,23UE,Aspire Admin Charges,LC105,Other Minor Income,9900,MISSING 2013 PAYMENTS,17/03/2014,380730,391.4,NET,Aspire Sports & Cultural Trust,08135V
Gloucester City Council,23UE,Business Grants,GY007,Contract Payments,20,Growth Accellerator Grant,17/03/2014,380682,750,CAP,Allcap Ltd,54644N
Gloucester City Council,23UE,Cctv Revenue Budget,FP501,Other Minor Supplies Services,5590,REDACTED,17/03/2014,380742,500,NET,REDACTED,REDACTED
Gloucester City Council,23UE,Client Revs & Bens Contract,RT240,Computer Software <5000,5425,InCase annual licensE & support,17/03/2014,380664,2000,NET,Intec For Business Ltd,52896B
Gloucester City Council,23UE,Client Revs & Bens Contract,RT240,Court Fees,5358,WARRANT 25/02/14,17/03/2014,380150,75,NET,Hmcts,14364X
Gloucester City Council,23UE,Contact Centre,RB300,Basic Pay -Admin /Prof Staff,2601,REDACTED,17/03/2014,380727,600,NET,Hbhc Synergy Ltd,13363J
Gloucester City Council,23UE,Contact Centre,RB300,Basic Pay -Admin /Prof Staff,2601,REDACTED,17/03/2014,380663,814,NET,Hbhc Synergy Ltd,13363J
Gloucester City Council,23UE,Contact Centre,RB300,Basic Pay -Admin /Prof Staff,2601,STAFF W/E 07/03/14,17/03/2014,380648,1581.54,NET,One To One Recruitment,04752H
Gloucester City Council,23UE,Contact Centre,RB300,Basic Pay -Admin /Prof Staff,2601,STAFF W/E 07/03/14,17/03/2014,380649,429.2,NET,One To One Recruitment,04752H
Gloucester City Council,23UE,Council Streetcare Team,HI101,General Repair/Maint Buildings,3000,Kissing gate repairs Green Lane,17/03/2014,380672,156.72,NET,Greenfields Garden Services Ltd,48130G
Gloucester City Council,23UE,Council Streetcare Team,HI101,Maint Of Grounds - General,3030,Hedge works King George V playing field,17/03/2014,380674,746.4,NET,Greenfields Garden Services Ltd,48130G
Gloucester City Council,23UE,Crematorium,HC200,Memorial Plaques,5053,grave markers,17/03/2014,380506,612,NET,Arkell & Hurcombe,59812T
Gloucester City Council,23UE,Crematorium,HC200,Memorial Plaques,5053,sanctum tablet,17/03/2014,380685,90,NET,The Columbaria Company,55078T
Gloucester City Council,23UE,Docks Complex - Catering Servs,RB110,Catering Provisions -Food,5110,Docks food,17/03/2014,380530,88.74,NET,Janes Pantry,24500W
Gloucester City Council,23UE,Docks Complex - Telephones,RB120,Telephones And Fax,5410,ACCT 510738303 LIFT LINE,17/03/2014,380655,13.78,NET,Virgin Media Payments Ltd,09376J
Gloucester City Council,23UE,Docks Complex - Telephones,RB120,Telephones And Fax,5410,ACCT 510738402,17/03/2014,380645,33,NET,Virgin Media Payments Ltd,09376J
Gloucester City Council,23UE,Docks Complex - Telephones,RB120,Telephones And Fax,5410,ACCT 510989001 SMITH,17/03/2014,380646,33,NET,Virgin Media Payments Ltd,09376J
Gloucester City Council,23UE,Docks Complex - Telephones,RB120,Telephones And Fax,5410,ACCT 511159201,17/03/2014,380644,80,NET,Virgin Media Payments Ltd,09376J
Gloucester City Council,23UE,Docks Complex - Telephones,RB120,Telephones And Fax,5410,call charges MAR14,17/03/2014,380728,2386.06,NET,Gamma Business Communications,10260A
Gloucester City Council,23UE,Emergency Out Of Hours Calls,RB301,Fees For Services Received,5350,Recurring monthly facility fee Feb 2014,17/03/2014,378241,226.69,NET,Office Response,09439K
Gloucester City Council,23UE,External Communications,RC431,Printing,5300,CITY LIFE,17/03/2014,380619,2838.91,NET,Smart Distribution Solutions Ltd,12769J
Gloucester City Council,23UE,External Communications,RC431,Printing,5300,CITY LIFE,17/03/2014,380620,88.2,NET,Smart Distribution Solutions Ltd,12769J
Gloucester City Council,23UE,Folk Museum,LM210,Exhibits And Collections,5038,display equipment,17/03/2014,380679,267.67,NET,Displaysense Ltd,05982W
Gloucester City Council,23UE,Folk Museum,LM210,Furniture,5000,operators chair & clear box,17/03/2014,380686,68,NET,Key Industrial Equipment Ltd,51932J
Gloucester City Council,23UE,Folk Museum,LM210,Misc Fixtures And Fittings,3500,display equipment delivery charges,17/03/2014,380680,58.95,NET,Displaysense Ltd,05982W
Gloucester City Council,23UE,Food Safety,HE100,Fees For Services Received,5350,Translation E.coli advice to Chinese,17/03/2014,379851,250,NET,REDACTED,REDACTED
Gloucester City Council,23UE,Food Safety,HE100,Fees For Services Received,5350,Translation sevice - food hygiene 14/1,17/03/2014,379850,68,NET,REDACTED,REDACTED
Gloucester City Council,23UE,Guildhall Bar And Caf�,LA210,Catering Provisions -Liquor,5111,drinks,17/03/2014,380687,685.63,NET,Cellar Supplies Cheltenham Ltd,01563L
Gloucester City Council,23UE,REDACTED,REDACTED,REDACTED,REDACTED,REDACTED,17/03/2014,REDACTED,100,NET,REDACTED,REDACTED
Gloucester City Council,23UE,Herbert Reception Upgrade,RY201,Contract Payments,20,refurb/demolition survey,17/03/2014,380677,895,CAP,Enquin Environmental,00748F
Gloucester City Council,23UE,Heritage Trails,GY011,Contract Payments,20,Historic Trails web app,17/03/2014,380676,3813,CAP,Icon.Net,52505Z
Gloucester City Council,23UE,Homelessness,CH120,Photocopying,5320,medical report,17/03/2014,380683,20.5,NET,Kingsholm Surgery,11948S
Gloucester City Council,23UE,Homelessness,CH120,Rent In Advance,5516,REDACTED,17/03/2014,380740,259.6,NET,REDACTED,REDACTED
Gloucester City Council,23UE,Homelessness,CH120,Rent In Advance,5516,REDACTED,17/03/2014,380743,299.44,NET,REDACTED,REDACTED
Gloucester City Council,23UE,Homelessness Prevention,CH122,Fees For Services Received,5350,REDACTED,17/03/2014,380743,600,NET,REDACTED,REDACTED
Gloucester City Council,23UE,Investment Property,RB500,General Repair/Maint Buildings,3000,BARBICAN HOUSE,17/03/2014,380389,695,NET,Severnside Security Ltd,14661M
Gloucester City Council,23UE,Neighbourhood Partnerships,FP104,Funding Vol&Com Grps-Grants,7100C,LITTER PICKING EQUIPMENT,17/03/2014,380741,1000,NET,Kingsway Residents Association,12826T
Gloucester City Council,23UE,Play Area Refurbishment,LY071,Contract Payments,20,lockable steel goals,17/03/2014,380726,531.97,CAP,Broxap Ltd,01141U
Gloucester City Council,23UE,Play Area Refurbishment,LY071,Contract Payments,20,playground equipment,17/03/2014,379588,20007.5,CAP,Hags-Smp Ltd,00672P
Gloucester City Council,23UE,Postal Services,RS120,Postages,5400,Regeneration: 1st & 2nd class mail,17/03/2014,379370,2242.37,NET,Royal Mail S.Wales & South West,35830S
Gloucester City Council,23UE,Registration Of Electors,RS400,Fees For Services Received,5350,Storage of bolling booths,17/03/2014,380068,235,NET,Armstrong Removals,04632N
Gloucester City Council,23UE,Tourism Marketing,LT100,Exhibits And Collections,5038,TIC thermal tickets,17/03/2014,380524,1574,NET,Hague Computer Supplies Ltd,59713W
Gloucester City Council,23UE,Civica Admin Charges,RT105,Postages,5400,Postage - Revnenues section,18/03/2014,379858,1199.4,NET,Royal Mail S.Wales & South West,35830S
Gloucester City Council,23UE,Contact Centre,RB300,Basic Pay -Admin /Prof Staff,2601,REDACTED,18/03/2014,380199,1434.76,NET,One To One Recruitment,04752H
Gloucester City Council,23UE,Contact Centre,RB300,Basic Pay -Admin /Prof Staff,2601,REDACTED,18/03/2014,380197,443.12,NET,One To One Recruitment,04752H
Gloucester City Council,23UE,Development Management,PT200,Advertising And Publicity,5702,advert 27/2/14,18/03/2014,380054,116.86,NET,Local World Ltd,08556P
Gloucester City Council,23UE,Development Management,PT200,Advertising And Publicity,5702,Advert 6/2/14,18/03/2014,380059,92.96,NET,Local World Ltd,08556P
Gloucester City Council,23UE,Development Management,PT200,Contents Insurance,5700,"Citizen, Echo, ThisIsGlos, 20/2/14",18/03/2014,380056,92.96,NET,Local World Ltd,08556P
Gloucester City Council,23UE,Folk Museum Catering,LM211,Hire Of Equipment,5020,Folk Museum: Coffee Machine Rental,18/03/2014,380192,135,NET,La Spaziale UK Ltd,11823P
Gloucester City Council,23UE,Guildhall Bar And Caf�,LA210,Catering Provisions -Food,5110,FOOD,18/03/2014,380643,174.48,NET,Woodward Foodservice,10714F
Gloucester City Council,23UE,Homelessness,CH120,Rent In Advance,5516,REDACTED,18/03/2014,380781,484.6,NET,2 Let Glos Ltd,07066Y
Gloucester City Council,23UE,Homelessness Prevention,CH122,Fees For Services Received,5350,REDACTED,18/03/2014,380782,100,NET,REDACTED,REDACTED
Gloucester City Council,23UE,Homelessness Prevention,CH122,Fees For Services Received,5350,REDACTED,18/03/2014,380781,500,NET,2 Let Glos Ltd,07066Y
Gloucester City Council,23UE,Off Street Car Parks,PP110,Contracted Services,6970,Trade Waste APR-JUN14,18/03/2014,380317,284.7,NET,Enterprise (Aol) Ltd,06695G
Gloucester City Council,23UE,Off Street Car Parks,PP110,Fees For Services Received,5350,Services for Parking Equipment-Herbert,18/03/2014,379672,490.26,NET,Parkeon Ltd,03238G
Gloucester City Council,23UE,Parks Contract Management,LP100,Maint Of Grounds - General,3030,Play area repair,18/03/2014,379894,492.48,NET,Enterprise (Aol) Ltd,06695G
Gloucester City Council,23UE,Parks Contract Management,LP100,Maint Of Grounds - General,3030,Replace rope ladder & fixings for Titam,18/03/2014,379895,231.02,NET,Enterprise (Aol) Ltd,06695G
Gloucester City Council,23UE,Perennial Planting Enterprise,LY133,Contract Payments,20,Westgate st: supply/plant one planter,18/03/2014,379897,387,CAP,Enterprise (Aol) Ltd,06695G
Gloucester City Council,23UE,Postal Services,RS120,Postages,5400,ACCT 0252446000 W/E 06/03/14,18/03/2014,380624,1051.54,NET,Royal Mail S.Wales & South West,35830S
Gloucester City Council,23UE,Registration Of Electors,RS400,Advertising And Publicity,5702,Advert 19/2/14,18/03/2014,380055,185.92,NET,Local World Ltd,08556P
Gloucester City Council,23UE,Tea Room,HC500,Catering Provisions -Food,5110,Arbor food,18/03/2014,380529,75.68,NET,Janes Pantry,24500W
Gloucester City Council,23UE,Tourism Marketing,LT100,Rents,3200,"Rent 28 Southgate St, glos",18/03/2014,380081,5725,NET,P W Fido & Associates,01210A
Gloucester City Council,23UE,Vending Machine,RB111,Hire Of Equipment,5020,Lease rental-Melodia Classi&FacilityFee,18/03/2014,379740,311.57,NET,Siemens Financial Services Ltd,54427Z
Gloucester City Council,23UE,Wake Room,HC501,Catering Provisions -Food,5110,Arbor: various food (credit also raised),18/03/2014,379845,143.61,NET,3663,55585U
Gloucester City Council,23UE,Wake Room,HC501,Operational Equipment <5000,5012,Arbour:2 Sanitary Disposal units,18/03/2014,379041,33.56,NET,Minster Cleaning Services,02158R
Gloucester City Council,23UE,Wake Room,HC501,Operational Equipment <5000,5012,SANITARY UNITS,18/03/2014,380372,33.56,NET,Minster Cleaning Services,02158R
Gloucester City Council,23UE,Aspire Admin Charges,LC105,Contracted Services,6970,MAR14 management fees,19/03/2014,380490,79792.5,NET,Aspire Sports & Cultural Trust,08135V
Gloucester City Council,23UE,Blackfriars Priory,RY207,Capital General Repairs & Main,13,PUBLICATION,19/03/2014,380828,25.66,CAP,Riba Enterprises,09988U
Gloucester City Council,23UE,Business Transformation & Tech,RT700,Basic Pay - Temporary Staff,2751,20 software consulting hours,19/03/2014,380898,600,NET,Ffox Software Ltd,10665T
Gloucester City Council,23UE,Business Transformation & Tech,RT700,Basic Pay - Temporary Staff,2751,REDACTED,19/03/2014,380829,3774,NET,Vector Resourcing Ltd,11664K
Gloucester City Council,23UE,Cemeteries,HC300,Maint Of Grounds - General,3030,CREM,19/03/2014,380847,360,NET,Three Counties Drain Service,44033V
Gloucester City Council,23UE,Cemeteries,HC300,Maint Of Grounds - General,3030,Supply of 20 mts Turf to Glos Crem,19/03/2014,380893,46,NET,Aran Turf,56656L
Gloucester City Council,23UE,Cemeteries,HC300,Operational Materials,5070,CLEANING GOODS,19/03/2014,380799,11.15,NET,Safpro Industrial Supply Co,39190W
Gloucester City Council,23UE,Cemeteries,HC300,Operational Materials,5070,SWARFEGA,19/03/2014,380804,47.74,NET,Safpro Industrial Supply Co,39190W
Gloucester City Council,23UE,Cemeteries,HC300,Routine R And M - Vehicles,4011,Crem:ferriouse service,19/03/2014,380884,821.4,NET,Frank Sutton Ltd - Agric'L Engineer,42875D
Gloucester City Council,23UE,Cemeteries,HC300,Routine R And M - Vehicles,4011,Crem: Servicing of X740,19/03/2014,380901,274.61,NET,Frank Sutton Ltd - Agric'L Engineer,42875D
Gloucester City Council,23UE,Cemeteries,HC300,Routine R And M - Vehicles,4011,Crem: servicing of 4X2,19/03/2014,380902,142.66,NET,Frank Sutton Ltd - Agric'L Engineer,42875D
Gloucester City Council,23UE,Cemeteries,HC300,Routine R And M - Vehicles,4011,Crem: Servicing of 4X2,19/03/2014,380903,126.02,NET,Frank Sutton Ltd - Agric'L Engineer,42875D
Gloucester City Council,23UE,Cemeteries,HC300,Routine R And M - Vehicles,4011,Crem: Servicing of 4XE,19/03/2014,380886,107.03,NET,Frank Sutton Ltd - Agric'L Engineer,42875D
Gloucester City Council,23UE,Cemeteries,HC300,Routine R And M - Vehicles,4011,Crem: Servicing of Feris,19/03/2014,380899,782.07,NET,Frank Sutton Ltd - Agric'L Engineer,42875D
Gloucester City Council,23UE,Cemeteries,HC300,Routine R And M - Vehicles,4011,Crem: Servicing of Ferriouse,19/03/2014,380891,1006.75,NET,Frank Sutton Ltd - Agric'L Engineer,42875D
Gloucester City Council,23UE,Cemeteries,HC300,Routine R And M - Vehicles,4011,Crem: Servicing of model X740,19/03/2014,380885,354.34,NET,Frank Sutton Ltd - Agric'L Engineer,42875D
Gloucester City Council,23UE,Cemeteries,HC300,Routine R And M - Vehicles,4011,Crem: Servicing of Ransome,19/03/2014,380887,938.78,NET,Frank Sutton Ltd - Agric'L Engineer,42875D
Gloucester City Council,23UE,Cemeteries,HC300,Routine R And M - Vehicles,4011,Crem: Servicing of T4020 Ford,19/03/2014,380904,1671.04,NET,Frank Sutton Ltd - Agric'L Engineer,42875D
Gloucester City Council,23UE,Cemeteries,HC300,Routine R And M - Vehicles,4011,Servicing of X740,19/03/2014,380900,400.28,NET,Frank Sutton Ltd - Agric'L Engineer,42875D
Gloucester City Council,23UE,City Museum Catering,LM202,Catering Provisions -Food,5110,FOOD,19/03/2014,380839,6.2,NET,Total Produce Gloucester,12645E
Gloucester City Council,23UE,Community Safety Projects,FP500,Other Minor Supplies Services,5590,COMMUNITY VAN,19/03/2014,380805,5000,NET,"Police & Crime Commissioner, Gloucestershire",49521B
Gloucester City Council,23UE,Countryside Unit,LP201,Vet Fees,5842,Membership Gloucester Cattle Society,19/03/2014,380896,45,NET,Gloucester Cattle Society,56263L
Gloucester City Council,23UE,Docks Complex - Catering Servs,RB110,Catering Provisions -Food,5110,food,19/03/2014,380860,95.8,NET,3663,55585U
Gloucester City Council,23UE,Docks Complex - Catering Servs,RB110,Catering Provisions -Food,5110,food,19/03/2014,380861,701.33,NET,3663,55585U
Gloucester City Council,23UE,Docks Complex - Catering Servs,RB110,Catering Provisions -Food,5110,FOOD,19/03/2014,380613,34.08,NET,Taynton Farm Foods,09653F
Gloucester City Council,23UE,Docks Complex - Services,RB100,Lift Maintenance,3051,HERBERT WAREHOUSE,19/03/2014,380837,75.08,NET,Pickerings Europe Ltd*,58816U
Gloucester City Council,23UE,Emergency Out Of Hours Calls,RB301,Fees For Services Received,5350,CALLS FEB 2014,19/03/2014,380815,156.52,NET,Office Response,09439K
Gloucester City Council,23UE,Gloucester Guildhall,LA100,Service Charges,3020,WIFI ADSL 01452 305812,19/03/2014,380498,29.99,NET,Connexus Networks Ltd,07090B
Gloucester City Council,23UE,Guildhall Bar And Caf�,LA210,Catering Provisions -Food,5110,FOOD,19/03/2014,380844,4.96,NET,Total Produce Gloucester,12645E
Gloucester City Council,23UE,Guildhall Bar And Caf�,LA210,Catering Provisions -Food,5110,guildhall: food,19/03/2014,380878,4.96,NET,Total Produce Gloucester,12645E
Gloucester City Council,23UE,Guildhall Bar And Caf�,LA210,Catering Provisions -Food,5110,Guildhall: food,19/03/2014,380877,4.96,NET,Total Produce Gloucester,12645E
Gloucester City Council,23UE,Guildhall Bar And Caf�,LA210,Catering Provisions -Food,5110,Guildhall: green top milk,19/03/2014,380882,4.96,NET,Total Produce Gloucester,12645E
Gloucester City Council,23UE,Guildhall Bar And Caf�,LA210,Catering Provisions -Food,5110,Guildhall: milk,19/03/2014,380879,4.96,NET,Total Produce Gloucester,12645E
Gloucester City Council,23UE,Guildhall Bar And Caf�,LA210,Catering Provisions -Food,5110,Guildhall: milk,19/03/2014,380880,4.96,NET,Total Produce Gloucester,12645E
Gloucester City Council,23UE,Guildhall Bar And Caf�,LA210,Catering Provisions -Food,5110,Guildhall: milk,19/03/2014,380881,4.96,NET,Total Produce Gloucester,12645E
Gloucester City Council,23UE,Guildhall Bar And Caf�,LA210,Catering Provisions -Food,5110,Guildhall: various foods,19/03/2014,380892,34.5,NET,Taynton Farm Foods,09653F
Gloucester City Council,23UE,REDACTED,REDACTED,REDACTED,REDACTED,REDACTED,19/03/2014,REDACTED,1250,NET,REDACTED,REDACTED
Gloucester City Council,23UE,REDACTED,REDACTED,REDACTED,REDACTED,REDACTED,19/03/2014,REDACTED,110,NET,REDACTED,REDACTED
Gloucester City Council,23UE,REDACTED,REDACTED,REDACTED,REDACTED,REDACTED,19/03/2014,REDACTED,110,NET,REDACTED,REDACTED
Gloucester City Council,23UE,REDACTED,REDACTED,REDACTED,REDACTED,REDACTED,19/03/2014,REDACTED,157.21,NET,REDACTED,REDACTED
Gloucester City Council,23UE,REDACTED,REDACTED,REDACTED,REDACTED,REDACTED,19/03/2014,REDACTED,100,NET,REDACTED,REDACTED
Gloucester City Council,23UE,REDACTED,REDACTED,REDACTED,REDACTED,REDACTED,19/03/2014,REDACTED,380,NET,REDACTED,REDACTED
Gloucester City Council,23UE,Herbert Reception Upgrade,RY201,Contract Payments,20,CREDITED ON 20324,19/03/2014,380346,49470.6,CAP,Pj Engineering Consultants Ltd,14428W
Gloucester City Council,23UE,Herbert Reception Upgrade,RY201,Contract Payments,20,HERBERT WAREHOUSE,19/03/2014,380862,46997.07,CAP,Pj Engineering Consultants Ltd,14428W
Gloucester City Council,23UE,Herbert Reception Upgrade,RY201,Contract Payments,20,NORTH WAREHOUSE,19/03/2014,380823,6036.2,CAP,Regus,13861L
Gloucester City Council,23UE,Homelessness,CH120,Board And Lodging,5515,REDACTED,19/03/2014,380810,644.78,NET,Riverside Group Ltd,52301RV
Gloucester City Council,23UE,Homelessness,CH120,Rent In Advance,5516,REDACTED,19/03/2014,380907,130.36,NET,REDACTED,REDACTED
Gloucester City Council,23UE,Homelessness,CH120,Rent In Advance,5516,REDACTED,19/03/2014,380981,484.6,NET,Taylors Lettings,12574C
Gloucester City Council,23UE,Homelessness Prevention,CH122,Fees For Services Received,5350,REDACTED,19/03/2014,380981,500,NET,Taylors Lettings,12574C
Gloucester City Council,23UE,Housing Works In Default,HD500,Clearance And Cleansing Fees,5384,CEILING WORK,19/03/2014,380840,1280,NET,L Coward & Son Ltd,47989M
Gloucester City Council,23UE,Legal Services,RS200,Basic Pay -Admin /Prof Staff,2601,REDACTED,19/03/2014,380851,701.64,NET,Sellick Partnership Group Ltd,11057C
Gloucester City Council,23UE,Legal Services,RS200,Basic Pay -Admin /Prof Staff,2601,REDACTED,19/03/2014,380811,962.5,NET,Michael Page International Recruitment Ltd,06601P
Gloucester City Council,23UE,Legal Services,RS200,Basic Pay -Admin /Prof Staff,2601,REDACTED,19/03/2014,380813,971.25,NET,Michael Page International Recruitment Ltd,06601P
Gloucester City Council,23UE,Legal Services,RS200,Basic Pay -Admin /Prof Staff,2601,REDACTED,19/03/2014,380858,1015,NET,Michael Page International Recruitment Ltd,06601P
Gloucester City Council,23UE,Legal Services,RS200,Basic Pay -Admin /Prof Staff,2601,REDACTED,19/03/2014,380812,840,NET,Michael Page International Recruitment Ltd,06601P
Gloucester City Council,23UE,Museum Phase 2 Hlf,GY001,Contract Payments,20,city museum,19/03/2014,380817,3150,CAP,Ravenhill Design,13928D
Gloucester City Council,23UE,Neighbourhood Partnerships,FP104,Funding Vol&Com Grps-Grants,7100C,GRANT 2013/14,19/03/2014,380855,1840,NET,White City Residents Association,00638P
Gloucester City Council,23UE,Off Street Car Parks,PP110,Contracted Services,6970,Parking & Traffic reg,19/03/2014,377740,1121.4,NET,Patrol,09431C
Gloucester City Council,23UE,Procurement Management,RP100,Vocational Training,2970,Supply chain management NVQ,19/03/2014,380888,500,NET,Commercial Skills,11922L
Gloucester City Council,23UE,Rehousing,CH111,Fees For Services Received,5350,MEDICAL REPORT,19/03/2014,380843,20.5,NET,Longlevens Surgery,57415C
Gloucester City Council,23UE,Rehousing,CH111,Fees For Services Received,5350,MEDICAL REPORT,19/03/2014,380845,20.5,NET,St Lukes Medical Centre,14647F
Gloucester City Council,23UE,Retail Market - Landlord,HM300,Water Supply,3400,ACCT 6500437006 2014/15,19/03/2014,380833,18648.75,NET,Severn Trent Water,01823H
Gloucester City Council,23UE,Stationery Services,RS150,Stationery,5302,STATIONERY,19/03/2014,380800,35.78,NET,Lyreco UK Ltd,11746G
Gloucester City Council,23UE,Utilities,PT502,Electricity Supply,3110,BARBICAN HOUSE,19/03/2014,380803,210.03,NET,West Mercia Energy,11669Z
Gloucester City Council,23UE,Wake Room,HC501,Catering Provisions -Food,5110,Guildhall: food,19/03/2014,380824,15.46,NET,Total Produce Gloucester,12645E
Gloucester City Council,23UE,Website Rebuild,RY573,Consultants Fees,30,REDACTED,19/03/2014,380814,1267,CAP,Patzone It Solutions Ltd,13059R
Gloucester City Council,23UE,Aspire Admin Charges,LC105,Other Minor Income,9900,BAILIFFS 18/03/14,20/03/2014,380994,84.5,NET,Aspire Sports & Cultural Trust,08135V
Gloucester City Council,23UE,Blackfriars,LA609,Publications For Sale,5064,SALES MAR 2014,20/03/2014,380993,100,NET,REDACTED,REDACTED
Gloucester City Council,23UE,Blackfriars,LA609,Sale Of Goods And Services,9230,SALES MAR 2014,20/03/2014,380993,-12.5,NET,REDACTED,REDACTED
Gloucester City Council,23UE,Business Grants,GY007,Contract Payments,20,Growth Accelerator grant,20/03/2014,380966,750,CAP,JSM Business Gifts,55226U
Gloucester City Council,23UE,Business Grants,GY007,Contract Payments,20,Growth accelerator grant,20/03/2014,380987,750,CAP,Power Direct Ltd,71267RV
Gloucester City Council,23UE,Business Rent Grant Scheme,FP306,Business Grant,7116,Business Rent grant,20/03/2014,380967,500,NET,Biz+ Stationery Superstores Ltd,34998RV
Gloucester City Council,23UE,City Museum And Art Gallery,LM200,Events,5952,TRAVEL EXP,20/03/2014,380988,107.45,NET,REDACTED,REDACTED
Gloucester City Council,23UE,City Museum And Art Gallery,LM200,Publications For Sale,5064,BOOKS,20/03/2014,380990,510.6,NET,REDACTED,REDACTED
Gloucester City Council,23UE,City Museum And Art Gallery,LM200,Publications For Sale,5064,LEAFLETS,20/03/2014,380989,126,NET,REDACTED,REDACTED
Gloucester City Council,23UE,City Museum And Art Gallery,LM200,Publications For Sale,5064,SALES MAR 2014,20/03/2014,380991,174,NET,REDACTED,REDACTED
Gloucester City Council,23UE,City Museum And Art Gallery,LM200,Publications For Sale,5064,SALES MAR 2014,20/03/2014,380992,174,NET,REDACTED,REDACTED
Gloucester City Council,23UE,City Museum And Art Gallery,LM200,Sale Of Goods And Services,9230,SALES MAR 2014,20/03/2014,380991,-36.25,NET,REDACTED,REDACTED
Gloucester City Council,23UE,City Museum And Art Gallery,LM200,Sale Of Goods And Services,9230,SALES MAR 2014,20/03/2014,380992,-130.5,NET,REDACTED,REDACTED
Gloucester City Council,23UE,Civica Admin Charges,RT105,Fees For Services Received,5350,CHD subscription advance,20/03/2014,380325,4,NET,Companies House,58954E
Gloucester City Council,23UE,Contact Centre,RB300,Basic Pay -Admin /Prof Staff,2601,REDACTED,20/03/2014,380729,710,NET,Cps Anystaff Recruitment Ltd,13945D
Gloucester City Council,23UE,Guildhall Bar And Caf�,LA210,Catering Provisions -Food,5110,Guildhall - various foods,20/03/2014,380894,158.88,NET,Woodward Foodservice,10714F
Gloucester City Council,23UE,Guildhall Bar And Caf�,LA210,Hire Of Equipment,5020,TABLE TOPS,20/03/2014,380835,147.96,NET,Nisbets,55372P
Gloucester City Council,23UE,REDACTED,REDACTED,REDACTED,REDACTED,REDACTED,20/03/2014,REDACTED,650,NET,REDACTED,REDACTED
Gloucester City Council,23UE,Homelessness,CH120,Board And Lodging,5515,REDACTED,20/03/2014,380968,105,NET,Connolly And Callaghan Ltd,07565Y
Gloucester City Council,23UE,Licences,HE510,Fees For Services Received,5350,BARN OWL CENTRE,20/03/2014,380985,468.03,NET,Homer Forbes International,14374U
Gloucester City Council,23UE,Asbru - Other Funders,FP846,Other Minor Supplies Services,5590,promotional goods,21/03/2014,380688,1210,NET,Icontact Advertising,05548T
Gloucester City Council,23UE,Building Control,PT400,Basic Pay - Temporary Staff,2751,REDACTED,21/03/2014,381054,3266.25,NET,Thatcher Associates Ltd,14060X
Gloucester City Council,23UE,Business Support,PT250,Tyres,4014,various car parts/repairs,21/03/2014,381061,88.25,NET,Ats Euromaster Ltd,06005E
Gloucester City Council,23UE,Business Transformation & Tech,RT700,Computer Software Maintenance,5427,Safeworld 2008 supp renwal& silver supp,21/03/2014,381017,10778.75,NET,Net-Ctrl Limited,12283T
Gloucester City Council,23UE,Cemeteries,HC300,Operational Materials,5070,Crem: fibres & waiting time,21/03/2014,381053,97.5,NET,Easy Mix Ltd,01403L
Gloucester City Council,23UE,Cemeteries,HC300,Repair/Maint Of Monuments,3004,Crem: fibres & waiting time,21/03/2014,381053,400,NET,Easy Mix Ltd,01403L
Gloucester City Council,23UE,City Museum And Art Gallery,LM200,Publications For Sale,5064,Folk Museum: Microwaveable animals,21/03/2014,380889,131.4,NET,Intelex Group UK Ltd,14369L
Gloucester City Council,23UE,City Museum And Art Gallery,LM200,Publications For Sale,5064,Various dolls,21/03/2014,381021,76,NET,English Village Designs,53053E
Gloucester City Council,23UE,Civic Admin And Hospitality,RC210,Hire Of Taxis,4053,Sherriff to S Gloshire College -15/11/13,21/03/2014,381050,150,NET,REDACTED,REDACTED
Gloucester City Council,23UE,Council Streetcare Team,HI101,Window Cleaning,3610,Eastgate viewing chamber cleaning Feb14,21/03/2014,380329,120,NET,Poles Apart Window Cleaning,11636R
Gloucester City Council,23UE,Crematorium,HC200,Repair/Maint Of Fixed Plant,3006,Crematorium - Carbon regent Factivate20,21/03/2014,378197,1642.8,NET,Facultatieve Technologies Ltd,51210H
Gloucester City Council,23UE,Crematorium,HC200,Repair/Maint Of Monuments,3004,Crem: honeycomb granite,21/03/2014,381026,2690,NET,The Columbaria Company,55078T
Gloucester City Council,23UE,Daniels Brook S106,LY120,Contract Payments,20,BODIAM AVENUE,21/03/2014,381071,3235.92,CAP,Anderson Civil Engineering UK Ltd,09083D
Gloucester City Council,23UE,Daniels Brook S106,LY120,Contract Payments,20,"Bodiam Ave Footbridge, final payment",21/03/2014,381063,1000,CAP,Mpl Wrought Iron Llp,03907P
Gloucester City Council,23UE,Development Management,PT200,Application Fees,9312,OVERPAYMENT,21/03/2014,381075,18,NET,REDACTED,REDACTED
Gloucester City Council,23UE,Docks Complex - Services,RB100,General Repair/Maint Buildings,3000, General waste skip,21/03/2014,381051,180,NET,Archer Recycling,11021G
Gloucester City Council,23UE,Docks Complex - Services,RB100,General Repair/Maint Buildings,3000,General waste skip,21/03/2014,381052,210,NET,Archer Recycling,11021G
Gloucester City Council,23UE,Docks Complex - Services,RB100,General Repair/Maint Buildings,3000,Herbert W:Replace spring in combo locks,21/03/2014,381047,95,NET,Severnside Security Ltd,14661M
Gloucester City Council,23UE,Docks Complex - Services,RB100,General Repair/Maint Buildings,3000,"Install Borg lock,replace varous others",21/03/2014,381045,300,NET,Severnside Security Ltd,14661M
Gloucester City Council,23UE,Docks Complex - Services,RB100,General Repair/Maint Buildings,3000,Open safe in cash room,21/03/2014,381046,132.5,NET,Severnside Security Ltd,14661M
Gloucester City Council,23UE,Docks Complex - Services,RB100,General Repair/Maint Buildings,3000,Supply cut various keys,21/03/2014,381048,122.5,NET,Severnside Security Ltd,14661M
Gloucester City Council,23UE,Electrical Investigatory Works,RY142,Contract Payments,20,REDACTED,21/03/2014,381057,715,CAP,Mss Group,14469F
Gloucester City Council,23UE,Financial Services,RT200,Computer Software Maintenance,5427,Fixed Asset module consultancy,21/03/2014,380337,1700,NET,Advanced Business Solutions,06072N
Gloucester City Council,23UE,Folk Museum,LM210,Publications For Sale,5064,Folk Museum: Microwaveable animals,21/03/2014,380889,131.4,NET,Intelex Group UK Ltd,14369L
Gloucester City Council,23UE,Folk Museum,LM210,Publications For Sale,5064,Folk Museum: Various replica packs.,21/03/2014,380897,243,NET,Memorabilia Pack Company,04100E
Gloucester City Council,23UE,Folk Museum,LM210,Publications For Sale,5064,Various dolls,21/03/2014,381021,57,NET,English Village Designs,53053E
Gloucester City Council,23UE,Guildhall Works,RY155,Contract Payments,20,Guildhall toilet refurbishment works,21/03/2014,381062,1490.71,CAP,Dribuild,13474Y
Gloucester City Council,23UE,Homelessness,CH120,Removal And Storage Fees,5513,REDACTED,21/03/2014,381020,274.71,NET,Advanced Removals & Storage Ltd,57142R
Gloucester City Council,23UE,Homelessness,CH120,Removal And Storage Fees,5513,REDACTED,21/03/2014,381015,382.5,NET,Advanced Removals & Storage Ltd,57142R
Gloucester City Council,23UE,Homelessness,CH120,Rent In Advance,5516,REDACTED,21/03/2014,381073,507.68,NET,REDACTED,REDACTED
Gloucester City Council,23UE,Homelessness Prevention,CH122,Basic Pay - Temporary Staff,2751,REDACTED,21/03/2014,381043,616.5,NET,James Andrews Recruitment Solutions,13636W
Gloucester City Council,23UE,Homelessness Prevention,CH122,Basic Pay - Temporary Staff,2751,REDACTED,21/03/2014,381044,684,NET,James Andrews Recruitment Solutions,13636W
Gloucester City Council,23UE,Homelessness Prevention,CH122,Fees For Services Received,5350,REDACTED,21/03/2014,381073,650,NET,REDACTED,REDACTED
Gloucester City Council,23UE,Mortgage Rescue,CH128,Fees For Services Received,5350,REDACTED,21/03/2014,380979,387.6,NET,One To One Recruitment,04752H
Gloucester City Council,23UE,Off Street Car Parks,PP110,Buildings Insurance,3800,CAR PARK OFFICE,21/03/2014,374472,17.91,NET,Workman Llp,11021M
Gloucester City Council,23UE,Off Street Car Parks,PP110,Rents,3200,CAR PARK OFFICE,21/03/2014,380853,125,NET,Workman Llp,11021M
Gloucester City Council,23UE,Off Street Car Parks,PP110,Service Charges,3020,CAR PARK OFFICE,21/03/2014,380853,267.75,NET,Workman Llp,11021M
Gloucester City Council,23UE,Off Street Car Parks,PP110,Service Charges,3020,PEDESTRIAN ACCESS,21/03/2014,380830,982.25,NET,Workman Llp,11021M
Gloucester City Council,23UE,Printing,RP103,Fees For Services Received,5350,PRINTING,21/03/2014,372392,480,NET,Alpha Colour Printers Ltd,00945B
Gloucester City Council,23UE,Shopmobility,PE200,Maintenance Of Equipment,5030,shopmobility - various repairs 21/1-18/2,21/03/2014,379658,1033.5,NET,Disabled Care & Mobility,12675V
Gloucester City Council,23UE,Stationery Services,RS150,Printing,5300,Business support: Cloth tape,21/03/2014,381024,46.14,NET,Lyreco UK Ltd,11746G
Gloucester City Council,23UE,Stationery Services,RS150,Stationery,5302,Business support: hand santiser,21/03/2014,381023,5.74,NET,Lyreco UK Ltd,11746G
Gloucester City Council,23UE,Stationery Services,RS150,Stationery,5302,Photocopier suppliers,21/03/2014,381019,41.98,NET,Stanford Marsh Ltd*,51139M
Gloucester City Council,23UE,Stationery Services,RS150,Stationery,5302,stationary for business support,21/03/2014,381022,56.65,NET,Lyreco UK Ltd,11746G
Gloucester City Council,23UE,Taxi Marshalling Scheme,HL101,Taxi Marshals,5387,taxi marshalls,21/03/2014,380491,337.5,NET,Cuff Security Services Ltd,12073G
Gloucester City Council,23UE,Taxi Marshalling Scheme,HL101,Taxi Marshals,5387,taxi marshalls,21/03/2014,380492,337.5,NET,Cuff Security Services Ltd,12073G
Gloucester City Council,23UE,Taxi Marshalling Scheme,HL101,Taxi Marshals,5387,Taxi marshalls 28/2 & 1/3,21/03/2014,381018,187.5,NET,Cuff Security Services Ltd,12073G
Gloucester City Council,23UE,Tic Relocation,GY005,Contract Payments,20,REDACTED,21/03/2014,381066,320,CAP,Gloucester Asbestos Ltd,00496K
Gloucester City Council,23UE,Allotments,HI104,Fees For Services Received,5350,estcourt Close allotments fencing,24/03/2014,380673,472.6,NET,Greenfields Garden Services Ltd,48130G
Gloucester City Council,23UE,Alney Island,PY128,Contract Payments,20,Robinswood Hill Dec13 consultancy,24/03/2014,377587,581,CAP,Gloucestershire Wildlife Trust,49628F
Gloucester City Council,23UE,Blackfriars Priory,RY207,Capital General Repairs & Main,13,BLACKFRIARS,24/03/2014,380819,13846,CAP,Pinetree (Gloucester) Ltd,53288Y
Gloucester City Council,23UE,Business Support,PT250,Fuel,4012,fuel,24/03/2014,380500,215.52,NET,Allstar Business Solutions Ltd (Arval),06594A
Gloucester City Council,23UE,Business Support,PT250,Publications,5060,newspapers FEB14,24/03/2014,380487,146.1,NET,Keelings Newsagents,55281U
Gloucester City Council,23UE,City Museum Catering,LM202,Catering Provisions -Food,5110,coffee,24/03/2014,380725,84.25,NET,James Gourmet Coffee Co.,55049A
Gloucester City Council,23UE,Client Revs & Bens Contract,RT240,Fees For Services Received,5350,Re-imbursement consultancy,24/03/2014,379860,875,NET,Stroud District Council,42500D
Gloucester City Council,23UE,Contact Centre,RB300,Subscriptions,5600,Corporate memb - Renewal  1/3/14-29/2/16,24/03/2014,381139,5000,NET,Institute Of Customer Service,03321V
Gloucester City Council,23UE,Countryside Unit,LP201,Maint Of Grounds - General,3030,"Robinswood Hill:Report, meetings, travel",24/03/2014,381152,2410,NET,Wildworks Ecology,56216W
Gloucester City Council,23UE,Crematorium,HC200,Memorial Plaques,5053,Crem: Brass plaque and stem,24/03/2014,381162,54,NET,Arkell & Hurcombe,59812T
Gloucester City Council,23UE,Crematorium,HC200,Memorial Plaques,5053,Crem: Bronze Cast Plaque,24/03/2014,381160,144,NET,Arkell & Hurcombe,59812T
Gloucester City Council,23UE,Crematorium,HC200,Memorial Plaques,5053,Crem: Bronze Plaque,24/03/2014,381163,58,NET,Arkell & Hurcombe,59812T
Gloucester City Council,23UE,Crematorium,HC200,Memorial Plaques,5053,"Crem: Plaque Kerb, Tree & Brass Stem",24/03/2014,381161,102,NET,Arkell & Hurcombe,59812T
Gloucester City Council,23UE,Dclg High St Renewal Fund,FP308,Other Minor Supplies Services,5590,Advert,24/03/2014,377806,200,NET,Expo Management Ltd,14164H
Gloucester City Council,23UE,Development Management,PT200,Consultants Fees,5349,retail impact assessment,24/03/2014,377819,2170,NET,Dpds Ltd,05404V
Gloucester City Council,23UE,Docks Complex - Services,RB100,Emergency Lighting,3055,Engineer attend. Emergency lgihting,24/03/2014,379332,177,NET,Adt Fire & Security Plc,54086D
Gloucester City Council,23UE,Docks Complex - Services,RB100,General Repair/Maint Buildings,3000,equipment service,24/03/2014,380670,455.3,NET,Gea Denco Ltd,57271C
Gloucester City Council,23UE,Docks Complex - Services,RB100,General Repair/Maint Buildings,3000,Replace fan belts,24/03/2014,379375,117.5,NET,Hewer Facilities Mgt Ltd,05232A
Gloucester City Council,23UE,Docks Complex - Services,RB100,Operational Equipment <5000,5012,Herbert: information stand,24/03/2014,381155,105,NET,Furniture@Work Ltd,01124U
Gloucester City Council,23UE,Docks Complex - Services,RB100,Repair/Maint Of Fixed Plant,3006,Investigate heating further,24/03/2014,379999,82.5,NET,Hewer Facilities Mgt Ltd,05232A
Gloucester City Council,23UE,Dwelling Acquisitions,BY006,Purchase Cost -Buildings,10,REDACTED,24/03/2014,381133,110,CAP,The Survey Centre,05476T
Gloucester City Council,23UE,Eastgate Rooftop Emerg Works,RY159,Contract Payments,20,Eastgate Centre Phrase 3,24/03/2014,381149,830,CAP,Waylett Property Inspections,12810P
Gloucester City Council,23UE,External Communications,RC431,Publications,5060,"Corporate: Residents mag 59,000 copies",24/03/2014,381127,7995.52,NET,Stephens & George Ltd,13959S
Gloucester City Council,23UE,Financial Services,RT200,Consultants Fees,5349,REDACTED,24/03/2014,380807,2175,NET,Robert Half Ltd,03959K
Gloucester City Council,23UE,General Works Fund,RY203,Capital General Repairs & Main,13,replace pipe lagging,24/03/2014,376209,185.03,CAP,Hewer Facilities Mgt Ltd,05232A
Gloucester City Council,23UE,Investment Property,RB500,Fire Alarm Maintenance,3053,Main&MonitorIntruderAlarm,24/03/2014,378388,58.75,NET,Adt Fire & Security Plc,54086D
Gloucester City Council,23UE,Investment Property,RB500,Lift Maintenance,3051,Eastgate Market: lift inspections.,24/03/2014,381167,284.28,NET,Pickerings Europe Ltd*,58816U
Gloucester City Council,23UE,Investment Property,RB500,Repair/Maint Of Fixed Plant,3006,FAULT DETAILS 1/4 CHECKS,24/03/2014,378771,2128.76,NET,Hewer Facilities Mgt Ltd,05232A
Gloucester City Council,23UE,Legal Services,RS200,Basic Pay - Temporary Staff,2751,REDACTED,24/03/2014,380822,487.29,NET,Premiere Employment Ltd,55468Z
Gloucester City Council,23UE,Legal Services,RS200,Basic Pay - Temporary Staff,2751,REDACTED,24/03/2014,380834,1515.6,NET,Venn Group Ltd,04339P
Gloucester City Council,23UE,Legal Services,RS200,Basic Pay - Temporary Staff,2751,REDACTED,24/03/2014,380321,1073.42,NET,Venn Group Ltd,04339P
Gloucester City Council,23UE,National Express,LT105,Materials For Sale,5080,MARCHANTS COACHES -FEB2014,24/03/2014,380971,1489,NET,Marchants Coaches Ltd,48151Y
Gloucester City Council,23UE,Nms Contract,HI102,Additional Non-Tender Items,6973,PENSION DEC 2013,24/03/2014,377717,9478.38,NET,Enterprise (Aol) Ltd,06695G
Gloucester City Council,23UE,Nms Contract,HI102,Additional Non-Tender Items,6973,Pension Jan 2014,24/03/2014,379853,9537.24,NET,Enterprise (Aol) Ltd,06695G
Gloucester City Council,23UE,Nms Contract,HI102,Additional Non-Tender Items,6973,RECYCLING BOXES,24/03/2014,378830,8292.58,NET,Enterprise (Aol) Ltd,06695G
Gloucester City Council,23UE,Other Flooding,RO103,Fees For Services Received,5350,emergency tree works,24/03/2014,380319,700,NET,Greenfields Garden Services Ltd,48130G
Gloucester City Council,23UE,Play Area Refurbishment,LY071,Contract Payments,20,Cycle stand,24/03/2014,381150,122,CAP,Broxap Ltd,01141U
Gloucester City Council,23UE,Pollution Control,HE300,Fees For Services Received,5350,BARTON ST AIR QUALITY 2012,24/03/2014,378794,495,NET,Air Quality Data Management,11734P
Gloucester City Council,23UE,Ranger Centre/Netheridge Wks,RY167,Contract Payments,20,Ranger Centre Phase 2:: Property inspect,24/03/2014,381132,750,CAP,Waylett Property Inspections,12810P
Gloucester City Council,23UE,Tea Room,HC500,Other Minor Supplies Services,5590,Flowers,24/03/2014,381137,48.8,NET,Carols Fruit & Flower Basket,01274X
Gloucester City Council,23UE,Tic Rovercard Sales,LT101,Materials For Sale,5080,13 week ticket total,24/03/2014,380970,5736,NET,Stagecoach Services Ltd*,56554W
Gloucester City Council,23UE,Tic Rovercard Sales,LT101,Sale Of Goods And Services,9230,13 week ticket total,24/03/2014,380970,-478,NET,Stagecoach Services Ltd*,56554W
Gloucester City Council,23UE,Tic Trading,LT110,Materials For Sale,5080,Gloucester TIc various foods,24/03/2014,381164,259.18,NET,Farrahs Of Harrogate,14360F
Gloucester City Council,23UE,Wake Room,HC501,Catering Provisions -Food,5110,Abor: foods,24/03/2014,381170,25.25,NET,3663,55585U
Gloucester City Council,23UE,Wake Room,HC501,Catering Provisions -Food,5110,Arbor: foods,24/03/2014,381171,644.63,NET,3663,55585U
Gloucester City Council,23UE,Wake Room,HC501,Catering Provisions -Food,5110,Arbor: foods,24/03/2014,381172,206.18,NET,3663,55585U
Gloucester City Council,23UE,Wake Room,HC501,Catering Provisions -Liquor,5111,The Arbor: various,24/03/2014,381134,266.6,NET,Cellar Supplies Cheltenham Ltd,01563L
Gloucester City Council,23UE,Wake Room,HC501,Other Minor Supplies Services,5590,Arbor: Disposal of old appliance,24/03/2014,381136,115,NET,Rs Maintenance,14314N
Gloucester City Council,23UE,Homelessness,CH120,Board And Lodging,5515,REDACTED,24/03/2014,380135,798.54,NET,REDACTED,REDACTED
Gloucester City Council,23UE,Building Control,PT400,Basic Pay - Temporary Staff,2751,REDACTED,25/03/2014,381166,935.45,NET,Brg Interim Solutions,14065L
Gloucester City Council,23UE,Business Transformation & Tech,RT700,Computer Software Maintenance,5427,BT&T NBS building full service,25/03/2014,381138,6174,NET,Riba Enterprises,09988U
Gloucester City Council,23UE,City Museum And Art Gallery,LM200,Publications For Sale,5064,Astronaut food - CityMuseum&Art,25/03/2014,377924,103,NET,Edu-Sci Ltd,14383T
Gloucester City Council,23UE,City Museum And Art Gallery,LM200,Publications For Sale,5064,RICHARD III,25/03/2014,380842,318.45,NET,University Of Leicester,53393A
Gloucester City Council,23UE,City Museum And Art Gallery,LM200,Publications For Sale,5064,Various minerals,25/03/2014,377744,184.3,NET,Moussa Direct Ltd,12527M
Gloucester City Council,23UE,Cleansing Services Admin,HI100,General Repair/Maint Buildings,3000,recycled plastic musketeer,25/03/2014,380338,490.93,NET,Fitzpatrick Woolmer Design & Publishing Ltd,04091D
Gloucester City Council,23UE,Docks Complex - Catering Servs,RB110,Catering Provisions -Food,5110,Docks: food,25/03/2014,381233,119.88,NET,Janes Pantry,24500W
Gloucester City Council,23UE,Docks Complex - Catering Servs,RB110,Catering Provisions -Food,5110,Herbert Warehouse:food,25/03/2014,380973,71.02,NET,Janes Pantry,24500W
Gloucester City Council,23UE,Environmental Planning,LM340,Repair/Maint Of Monuments,3004,contribution to stage 2 HLF funded proj,25/03/2014,381221,2000,NET,Discover De Crypt,14588W
Gloucester City Council,23UE,Financial Services,RT200,Consultants Fees,5349,REDACTED,25/03/2014,380808,3975,NET,Robert Half Ltd,03959K
Gloucester City Council,23UE,Financial Services,RT200,Consultants Fees,5349,REDACTED,25/03/2014,380363,3975,NET,Robert Half Ltd,03959K
Gloucester City Council,23UE,Financial Services,RT200,Consultants Fees,5349,REDACTED,25/03/2014,379536,3975,NET,Robert Half Ltd,03959K
Gloucester City Council,23UE,Financial Services,RT200,Consultants Fees,5349,REDACTED,25/03/2014,379846,3975,NET,Robert Half Ltd,03959K
Gloucester City Council,23UE,Folk Museum,LM210,Publications For Sale,5064,Various minerals,25/03/2014,377744,110,NET,Moussa Direct Ltd,12527M
Gloucester City Council,23UE,Food Safety,HE100,Fees For Services Received,5350,Translation: Food hygience visit 9/1/04,25/03/2014,379852,68,NET,REDACTED,REDACTED
Gloucester City Council,23UE,Guildhall Digital Cinema,LY154,Contract Payments,20,Guildhall: goods & inc Sound processor,25/03/2014,379732,15922.5,CAP,Arts Alliance Media Ltd,14477G
Gloucester City Council,23UE,REDACTED,REDACTED,REDACTED,REDACTED,REDACTED,25/03/2014,REDACTED,115.86,NET,REDACTED,REDACTED
Gloucester City Council,23UE,Homelessness,CH120,Board And Lodging,5515,VARIOUS TENANTS,25/03/2014,381215,798.54,NET,REDACTED,REDACTED
Gloucester City Council,23UE,Homelessness Prevention,CH122,Fees For Services Received,5350,REDACTED,25/03/2014,381253,500,NET,Cgt Lettings Ltd,09004C
Gloucester City Council,23UE,Investment Property,RB500,Lift Maintenance,3051,Herbert&Philipots: inspection of lifts,25/03/2014,381147,416.01,NET,Pickerings Europe Ltd*,58816U
Gloucester City Council,23UE,Organisational Health,RC160,Fees For Services Received,5350,Phillpots: water cooler etc,25/03/2014,378934,3708,NET,Greenworks Solutions Ltd,05909G
Gloucester City Council,23UE,Tree Planting Grant Funded,LY150,Contract Payments,20,TREE PROTECTORS,25/03/2014,380820,2085.64,CAP,Maxwell Amenity Ltd,00960F
Gloucester City Council,23UE,Asbru - Other Funders,FP846,Other Minor Supplies Services,5590,REDACTED,26/03/2014,381304,526.13,NET,Travail Employment Ltd,49371W
Gloucester City Council,23UE,Blackfriars Priory,RY207,Contract Payments,20,Blackfriars: table,26/03/2014,381251,3331.13,CAP,Forbes Group,14400V
Gloucester City Council,23UE,Business Support,PT250,Fuel,4012,fuel,26/03/2014,381144,217.42,NET,Allstar Business Solutions Ltd (Arval),06594A
Gloucester City Council,23UE,Business Transformation & Tech,RT700,Basic Pay - Temporary Staff,2751,Software Consultancy 20 hours,26/03/2014,381243,600,NET,Ffox Software Ltd,10665T
Gloucester City Council,23UE,Business Transformation & Tech,RT700,Computer Consumables,5422,Hardware: 15 x Optical mouse,26/03/2014,381240,58.8,NET,Dell Computers Corporation Ltd,55920C
Gloucester City Council,23UE,Cctv Revenue Budget,FP501,Other Minor Supplies Services,5590,CCTV,26/03/2014,381290,1137.5,NET,Wireless Cctv Ltd,02059U
Gloucester City Council,23UE,Cemeteries,HC300,Maint Of Grounds - General,3030,Clips,26/03/2014,381299,7.1,NET,Teleshore (UK) Ltd,56819G
Gloucester City Council,23UE,City Museum And Art Gallery,LM200,Conservation Fees,5354,City Museum: White foamboard,26/03/2014,381274,89,NET,Conservation By Design,04282D
Gloucester City Council,23UE,City Museum And Art Gallery,LM200,Subscriptions,5600,Subscription 2014,26/03/2014,381310,30,NET,Natural Sciences Collections Association,11025L
Gloucester City Council,23UE,Civil Parking Enforcement,PT741,Contracted Services,6970,February 2014 variable services,26/03/2014,380668,23689.38,NET,Apcoa Parking (UK) Ltd,09954M
Gloucester City Council,23UE,Civil Parking Enforcement,PT741,Contracted Services,6970,variable services Jan14 - CREDITED,26/03/2014,380187,44164.28,NET,Apcoa Parking (UK) Ltd,09954M
Gloucester City Council,23UE,Community Safety Projects,FP500,Basic Pay -Admin /Prof Staff,2601,REDACTED,26/03/2014,381303,432.2,NET,Travail Employment Ltd,49371W
Gloucester City Council,23UE,Council Streetcare Team,HI101,General Repair/Maint Buildings,3000,Windfall way: Replace damaged gate post,26/03/2014,381321,102.88,NET,Enterprise (Aol) Ltd,06695G
Gloucester City Council,23UE,Countryside Unit,LP201,Maint Of Grounds - General,3030,Countryside unit: reduce tree size,26/03/2014,381248,125,NET,Jpu Services Ltd,11056K
Gloucester City Council,23UE,Countryside Unit,LP201,Printing,5300,Printing,26/03/2014,381305,396,NET,Squirty Ink,13834P
Gloucester City Council,23UE,Countryside Unit,LP201,Safety Equipment,5013,Wellies,26/03/2014,381295,54.99,NET,Screwfix Direct*,54672H
Gloucester City Council,23UE,Disabled Facilities Grants,CY013,Disabled Facility Grants,74,REDACTED,26/03/2014,381313,7995,CAP,L Coward & Son Ltd,47989M
Gloucester City Council,23UE,Disabled Facilities Grants,CY013,Disabled Facility Grants,74,REDACTED,26/03/2014,381118,682.25,CAP,Beard & Tandy,03160V
Gloucester City Council,23UE,Docks Complex - Castlemeads Cp,RB210,Contracted Services,6970,February 2014 variable services,26/03/2014,380668,3777,NET,Apcoa Parking (UK) Ltd,09954M
Gloucester City Council,23UE,Folk Museum,LM210,Exhibits And Collections,5038,perspex sheets,26/03/2014,380330,216,NET,Haden-Browne Plastics,19810W
Gloucester City Council,23UE,Forest Of Dean Cpe,PT744,Contracted Services,6970,February 2014 variable services,26/03/2014,380668,3404.77,NET,Apcoa Parking (UK) Ltd,09954M
Gloucester City Council,23UE,Forest Of Dean Off Street,PT742,Contracted Services,6970,February 2014 variable services,26/03/2014,380668,675.36,NET,Apcoa Parking (UK) Ltd,09954M
Gloucester City Council,23UE,Gis Development Work,RY555,Contract Payments,20,REDACTED,26/03/2014,381241,1250,CAP,Badenoch & Clark,01536P
Gloucester City Council,23UE,Gl1 Emergency Works,RY160,Contract Payments,20,GL1,26/03/2014,381301,100,CAP,Waylett Property Inspections,12810P
Gloucester City Council,23UE,Gloucester Guildhall,LA100,Maintenance Of Equipment,5030,Hire 03/03/14,26/03/2014,381279,452.2,NET,Unique Sound Systems,59571S
Gloucester City Council,23UE,Gloucester Guildhall,LA100,Operational Equipment <5000,5012,Hire 24th March 14,26/03/2014,381278,675.38,NET,Unique Sound Systems,59571S
Gloucester City Council,23UE,Guildhall Bar And Caf�,LA210,Operational Equipment <5000,5012,Chairs,26/03/2014,381302,383.88,NET,Nisbets,55372P
Gloucester City Council,23UE,REDACTED,REDACTED,REDACTED,REDACTED,REDACTED,26/03/2014,REDACTED,650,NET,REDACTED,REDACTED
Gloucester City Council,23UE,REDACTED,REDACTED,REDACTED,REDACTED,REDACTED,26/03/2014,REDACTED,174.56,NET,REDACTED,REDACTED
Gloucester City Council,23UE,REDACTED,REDACTED,REDACTED,REDACTED,REDACTED,26/03/2014,REDACTED,100,NET,REDACTED,REDACTED
Gloucester City Council,23UE,REDACTED,REDACTED,REDACTED,REDACTED,REDACTED,26/03/2014,REDACTED,214.24,NET,REDACTED,REDACTED
Gloucester City Council,23UE,REDACTED,REDACTED,REDACTED,REDACTED,REDACTED,26/03/2014,REDACTED,100,NET,REDACTED,REDACTED
Gloucester City Council,23UE,REDACTED,REDACTED,REDACTED,REDACTED,REDACTED,26/03/2014,REDACTED,100,NET,REDACTED,REDACTED
Gloucester City Council,23UE,REDACTED,REDACTED,REDACTED,REDACTED,REDACTED,26/03/2014,REDACTED,100,NET,REDACTED,REDACTED
Gloucester City Council,23UE,Herbert Reception Upgrade,RY201,Contract Payments,20,Herbert w/h reception refurbishment,26/03/2014,380349,1000,CAP,Rpa,01710Y
Gloucester City Council,23UE,Herbert Reception Upgrade,RY201,Contract Payments,20,SECURITY FEB 2014,26/03/2014,380610,4320,CAP,Nsgl Ltd,12539E
Gloucester City Council,23UE,Hkp Accomodation Review,RY163,Contract Payments,20,Lighting,26/03/2014,381293,1480,CAP,L Coward & Son Ltd,47989M
Gloucester City Council,23UE,Homelessness,CH120,Board And Lodging,5515,glosCityHomes-Feb14 Homeless voids,26/03/2014,381246,5083.63,NET,Gloucester City Homes,05244T
Gloucester City Council,23UE,Homelessness,CH120,Board And Lodging,5515,various clients,26/03/2014,381335,703.79,NET,Kalmwood Ltd,08568G
Gloucester City Council,23UE,Homelessness,CH120,Board And Lodging,5515,various clients,26/03/2014,381336,1003.68,NET,Dorchester House Trust,12298D
Gloucester City Council,23UE,Homelessness,CH120,Board And Lodging,5515,various clients,26/03/2014,381337,1070.94,NET,REDACTED,REDACTED
Gloucester City Council,23UE,Homelessness,CH120,Board And Lodging,5515,various clients,26/03/2014,381338,1678.69,NET,Carbrey Housing Ltd,11098G
Gloucester City Council,23UE,Homelessness,CH120,Board And Lodging,5515,various clients,26/03/2014,381339,1067.08,NET,Carbrey Housing Ltd,11098G
Gloucester City Council,23UE,Homelessness,CH120,Board And Lodging,5515,various clients,26/03/2014,381340,2417.08,NET,REDACTED,REDACTED
Gloucester City Council,23UE,Homelessness,CH120,Board And Lodging,5515,various clients,26/03/2014,381341,2591.92,NET,James Legge Property (Ltd),07844R
Gloucester City Council,23UE,Homelessness Prevention,CH122,Fees For Services Received,5350,REDACTED,26/03/2014,381329,550,NET,2 Let Glos Ltd,07066Y
Gloucester City Council,23UE,Housing Works In Default,HD500,Clearance And Cleansing Fees,5384,REDACTED,26/03/2014,381281,300,NET,Rj Contracting (Environmental) Ltd,07429H
Gloucester City Council,23UE,Investment Property,RB500,Internal Decs - Communal Areas,3050,Ranger centre call out 3/3/14,26/03/2014,380495,54,NET,Adt Fire & Security Plc,54086D
Gloucester City Council,23UE,Investment Property,RB500,Lift Maintenance,3051,lift maintenance,26/03/2014,381216,506.04,NET,Pickerings Europe Ltd*,58816U
Gloucester City Council,23UE,Investment Property,RB500,Repair/Maint Of Fixed Plant,3006,Arbor water boiler fault,26/03/2014,380667,100,NET,Hewer Facilities Mgt Ltd,05232A
Gloucester City Council,23UE,Investment Property,RB500,Repair/Maint Of Fixed Plant,3006,quarterly checks FEB14,26/03/2014,380665,2128.76,NET,Hewer Facilities Mgt Ltd,05232A
Gloucester City Council,23UE,Legal Services,RS200,Basic Pay -Admin /Prof Staff,2601,REDACTED,26/03/2014,381312,526.5,NET,Sellick Partnership Group Ltd,11057C
Gloucester City Council,23UE,Legal Services,RS200,Basic Pay - Temporary Staff,2751,REDACTED,26/03/2014,381300,1345.1,NET,Venn Group Ltd,04339P
Gloucester City Council,23UE,Museum Phase 2 Hlf,GY001,Contract Payments,20,Story of Gloucester project,26/03/2014,381247,1350,CAP,REDACTED,REDACTED
Gloucester City Council,23UE,Off Street Car Parks,PP110,Contracted Services,6970,February 2014 variable services,26/03/2014,380668,12183.21,NET,Apcoa Parking (UK) Ltd,09954M
Gloucester City Council,23UE,Postal Services,RS120,Postages,5400,Regeneration postage,26/03/2014,381145,1156.93,NET,Royal Mail S.Wales & South West,35830S
Gloucester City Council,23UE,Registration Of Electors,RS400,Fees For Services Received,5350,Elect reg: Storage of polling booths,26/03/2014,381153,235,NET,Armstrong Removals,04632N
Gloucester City Council,23UE,Safer Stronger Communities,FP841,Other Minor Supplies Services,5590,CCTV,26/03/2014,381291,3299.99,NET,Wireless Cctv Ltd,02059U
Gloucester City Council,23UE,Safer Stronger Communities,FP841,Other Minor Supplies Services,5590,Domain name gloscrimereduction renewal,26/03/2014,381249,80,NET,Icon.Net,52505Z
Gloucester City Council,23UE,Safer Stronger Communities,FP841,Other Minor Supplies Services,5590,Printing,26/03/2014,381306,198,NET,Squirty Ink,13834P
Gloucester City Council,23UE,Targeted Historic Grants,GY008,Contract Payments,20,Environ planning:Nicki's Hotel & Taverna,26/03/2014,381238,12382,CAP,Heronhurst Window & Door Centre Ltd,14384R
Gloucester City Council,23UE,Tourism Marketing,LT100,Window Cleaning,3610,3 monthly window cleaning serv,26/03/2014,381334,42.93,NET,Initial Facilities Window Cleaning,00442K
Gloucester City Council,23UE,Tourism Marketing,LT100,Window Cleaning,3610,Tourist info: weekly window cleaning,26/03/2014,381242,18,NET,Initial Facilities Window Cleaning,00442K
Gloucester City Council,23UE,Treasury Management,VR110,Consultants Fees,5349,Professional services,26/03/2014,380969,15330.83,NET,Capita Business Services Limited*,54095C
Gloucester City Council,23UE,Wake Room,HC501,Catering Provisions -Food,5110,Food,26/03/2014,381307,87.33,NET,3663,55585U
Gloucester City Council,23UE,Waterwells Park And Ride,PJ120,Contracted Services,6970,February 2014 variable services,26/03/2014,380668,372.48,NET,Apcoa Parking (UK) Ltd,09954M
Gloucester City Council,23UE,Website Rebuild,RY573,Consultants Fees,30,REDACTED,26/03/2014,381308,1267,CAP,Patzone It Solutions Ltd,13059R
Gloucester City Council,23UE,Asset Management,RS300,Charges For Services,9300,Publication,27/03/2014,381435,277.92,NET,Riba Enterprises,26860R
Gloucester City Council,23UE,Business Grants,GY007,Contract Payments,20,Grant 2013/14,27/03/2014,381441,750,CAP,F Norville Ltd,14380Z
Gloucester City Council,23UE,Business Transformation & Tech,RT700,Computer Hardware Maintenance,5426,SCANNER MAINT,27/03/2014,375364,1913.5,NET,Psu Technology Group Limited,05718S
Gloucester City Council,23UE,Cedar Upgrade 2011/12,RY250,Contract Payments,20,REDACTED,27/03/2014,381272,237.27,CAP,Advanced Business Solutions,06072N
Gloucester City Council,23UE,Cemeteries,HC300,Maint Of Grounds - General,3030,crem: goods,27/03/2014,381469,73.95,NET,Initial Washroom Solutions,24219P
Gloucester City Council,23UE,City Museum And Art Gallery,LM200,Publications For Sale,5064,GOODS FOR RESALE,27/03/2014,380825,223.41,NET,Rex International,11680M
Gloucester City Council,23UE,City Museum Catering,LM202,Catering Provisions -Food,5110,Old Spot Sausages 5/6/2013,27/03/2014,380107,17.15,NET,Farmhouse Cooked Meats Ltd,01217R
Gloucester City Council,23UE,Civica Contract Revs & Bens,RT250,Contracted Services,6970,April 2014 Revenues & Benefits service,27/03/2014,381588,138572.7,NET,Civica UK Ltd,10841X
Gloucester City Council,23UE,Council Streetcare Team,HI101,Fees For Services Received,5350,Barnwood Park: award app fee,27/03/2014,381463,307,NET,Keep Britain Tidy,10053H
Gloucester City Council,23UE,Council Streetcare Team,HI101,Operational Equipment <5000,5012,City centre: supply & install litter bin,27/03/2014,381331,578,NET,Enterprise (Aol) Ltd,06695G
Gloucester City Council,23UE,Crematorium,HC200,Memorial Plaques,5053,Crem: Site Vase Plaque,27/03/2014,381476,40,NET,F J Cambridge & Co Ltd,48841N
Gloucester City Council,23UE,Depot,PY109,Cap Repair/Maint Fixed Plant,14,"Kitchen Caddy, kerbside container etc",27/03/2014,381123,14490,CAP,Peter Ridley Waste Systems,14403N
Gloucester City Council,23UE,Docks Complex - Catering Servs,RB110,Catering Provisions -Food,5110,Food,27/03/2014,381399,21.58,NET,Total Produce Gloucester,12645E
Gloucester City Council,23UE,Docks Complex - Catering Servs,RB110,Catering Provisions -Food,5110,Food,27/03/2014,381400,8.64,NET,Total Produce Gloucester,12645E
Gloucester City Council,23UE,Docks Complex - Catering Servs,RB110,Catering Provisions -Food,5110,Food,27/03/2014,381401,8.64,NET,Total Produce Gloucester,12645E
Gloucester City Council,23UE,Docks Complex - Catering Servs,RB110,Catering Provisions -Food,5110,Food,27/03/2014,381402,10.53,NET,Total Produce Gloucester,12645E
Gloucester City Council,23UE,Docks Complex - Catering Servs,RB110,Catering Provisions -Food,5110,Food,27/03/2014,381403,8.64,NET,Total Produce Gloucester,12645E
Gloucester City Council,23UE,Docks Complex - Catering Servs,RB110,Catering Provisions -Food,5110,Food,27/03/2014,381404,15.76,NET,Total Produce Gloucester,12645E
Gloucester City Council,23UE,Docks Complex - Catering Servs,RB110,Catering Provisions -Food,5110,Food,27/03/2014,381405,64.25,NET,Total Produce Gloucester,12645E
Gloucester City Council,23UE,Docks Complex - Catering Servs,RB110,Catering Provisions -Food,5110,Food,27/03/2014,381406,8.64,NET,Total Produce Gloucester,12645E
Gloucester City Council,23UE,Docks Complex - Catering Servs,RB110,Catering Provisions -Food,5110,Food,27/03/2014,381407,1.65,NET,Total Produce Gloucester,12645E
Gloucester City Council,23UE,Docks Complex - Catering Servs,RB110,Catering Provisions -Food,5110,Food,27/03/2014,381408,20.14,NET,Total Produce Gloucester,12645E
Gloucester City Council,23UE,Docks Complex - Catering Servs,RB110,Catering Provisions -Food,5110,Food,27/03/2014,381409,15.76,NET,Total Produce Gloucester,12645E
Gloucester City Council,23UE,Docks Complex - Catering Servs,RB110,Catering Provisions -Food,5110,Food,27/03/2014,381410,29.69,NET,Total Produce Gloucester,12645E
Gloucester City Council,23UE,Docks Complex - Catering Servs,RB110,Catering Provisions -Food,5110,Food,27/03/2014,381411,15.84,NET,Total Produce Gloucester,12645E
Gloucester City Council,23UE,Docks Complex - Catering Servs,RB110,Catering Provisions -Food,5110,Food,27/03/2014,381412,58.86,NET,Total Produce Gloucester,12645E
Gloucester City Council,23UE,Docks Complex - Catering Servs,RB110,Catering Provisions -Food,5110,Food,27/03/2014,381413,8.64,NET,Total Produce Gloucester,12645E
Gloucester City Council,23UE,Docks Complex - Catering Servs,RB110,Catering Provisions -Food,5110,Food,27/03/2014,381414,11.68,NET,Total Produce Gloucester,12645E
Gloucester City Council,23UE,Docks Complex - Catering Servs,RB110,Catering Provisions -Food,5110,Food,27/03/2014,381415,8.64,NET,Total Produce Gloucester,12645E
Gloucester City Council,23UE,Docks Complex - Catering Servs,RB110,Catering Provisions -Food,5110,Food,27/03/2014,381416,23.16,NET,Total Produce Gloucester,12645E
Gloucester City Council,23UE,Docks Complex - Catering Servs,RB110,Catering Provisions -Food,5110,Food,27/03/2014,381417,68.69,NET,Total Produce Gloucester,12645E
Gloucester City Council,23UE,Docks Complex - Catering Servs,RB110,Catering Provisions -Food,5110,Food,27/03/2014,381418,83.76,NET,Total Produce Gloucester,12645E
Gloucester City Council,23UE,Docks Complex - Catering Servs,RB110,Catering Provisions -Food,5110,Food,27/03/2014,381419,5.09,NET,Total Produce Gloucester,12645E
Gloucester City Council,23UE,Docks Complex - Catering Servs,RB110,Catering Provisions -Food,5110,Food,27/03/2014,381420,21.8,NET,Total Produce Gloucester,12645E
Gloucester City Council,23UE,Docks Complex - Catering Servs,RB110,Catering Provisions -Food,5110,Food,27/03/2014,381421,24.84,NET,Total Produce Gloucester,12645E
Gloucester City Council,23UE,Docks Complex - Catering Servs,RB110,Catering Provisions -Food,5110,Food,27/03/2014,381422,48.41,NET,Total Produce Gloucester,12645E
Gloucester City Council,23UE,Docks Complex - Catering Servs,RB110,Catering Provisions -Food,5110,Food,27/03/2014,381423,6.34,NET,Total Produce Gloucester,12645E
Gloucester City Council,23UE,Docks Complex - Catering Servs,RB110,Catering Provisions -Food,5110,Food,27/03/2014,381424,23.02,NET,Total Produce Gloucester,12645E
Gloucester City Council,23UE,Docks Complex - Catering Servs,RB110,Catering Provisions -Food,5110,Food,27/03/2014,381425,31.58,NET,Total Produce Gloucester,12645E
Gloucester City Council,23UE,Docks Complex - Catering Servs,RB110,Catering Provisions -Food,5110,Food,27/03/2014,381426,16.86,NET,Total Produce Gloucester,12645E
Gloucester City Council,23UE,Docks Complex - Catering Servs,RB110,Catering Provisions -Food,5110,Food,27/03/2014,381427,44.68,NET,Total Produce Gloucester,12645E
Gloucester City Council,23UE,Docks Complex - Catering Servs,RB110,Catering Provisions -Food,5110,Food,27/03/2014,381428,32.39,NET,Total Produce Gloucester,12645E
Gloucester City Council,23UE,Docks Complex - Catering Servs,RB110,Catering Provisions -Food,5110,Food,27/03/2014,381429,55.05,NET,Total Produce Gloucester,12645E
Gloucester City Council,23UE,Docks Complex - Catering Servs,RB110,Catering Provisions -Food,5110,Food,27/03/2014,381430,23.02,NET,Total Produce Gloucester,12645E
Gloucester City Council,23UE,Docks Complex - Catering Servs,RB110,Catering Provisions -Food,5110,Food,27/03/2014,381431,23.02,NET,Total Produce Gloucester,12645E
Gloucester City Council,23UE,Docks Complex - Catering Servs,RB110,Catering Provisions -Food,5110,Food,27/03/2014,381432,3.69,NET,Total Produce Gloucester,12645E
Gloucester City Council,23UE,Docks Complex - Catering Servs,RB110,Catering Provisions -Food,5110,Food,27/03/2014,381433,16.6,NET,Total Produce Gloucester,12645E
Gloucester City Council,23UE,Docks Complex - Catering Servs,RB110,Catering Provisions -Food,5110,Food,27/03/2014,381434,53.74,NET,Total Produce Gloucester,12645E
Gloucester City Council,23UE,Docks Complex - Catering Servs,RB110,Catering Provisions -Food,5110,Food,27/03/2014,381437,2.7,NET,Total Produce Gloucester,12645E
Gloucester City Council,23UE,Docks Complex - Catering Servs,RB110,Catering Provisions -Food,5110,Food,27/03/2014,381443,15.84,NET,Total Produce Gloucester,12645E
Gloucester City Council,23UE,Docks Complex - Catering Servs,RB110,Catering Provisions -Food,5110,Food,27/03/2014,381444,9.89,NET,Total Produce Gloucester,12645E
Gloucester City Council,23UE,Docks Complex - Catering Servs,RB110,Catering Provisions -Food,5110,Food,27/03/2014,381445,1,NET,Total Produce Gloucester,12645E
Gloucester City Council,23UE,Docks Complex - Catering Servs,RB110,Catering Provisions -Food,5110,Food,27/03/2014,381446,9.02,NET,Total Produce Gloucester,12645E
Gloucester City Council,23UE,Docks Complex - Catering Servs,RB110,Catering Provisions -Food,5110,Food,27/03/2014,381447,13.99,NET,Total Produce Gloucester,12645E
Gloucester City Council,23UE,Docks Complex - Catering Servs,RB110,Catering Provisions -Food,5110,Food,27/03/2014,381448,46.83,NET,Total Produce Gloucester,12645E
Gloucester City Council,23UE,Docks Complex - Catering Servs,RB110,Catering Provisions -Food,5110,Food,27/03/2014,381449,24.22,NET,Total Produce Gloucester,12645E
Gloucester City Council,23UE,Docks Complex - Catering Servs,RB110,Catering Provisions -Food,5110,Food,27/03/2014,381450,39.35,NET,Total Produce Gloucester,12645E
Gloucester City Council,23UE,Docks Complex - Catering Servs,RB110,Catering Provisions -Food,5110,Food,27/03/2014,381451,8.64,NET,Total Produce Gloucester,12645E
Gloucester City Council,23UE,Docks Complex - Catering Servs,RB110,Catering Provisions -Food,5110,Food,27/03/2014,381452,9.38,NET,Total Produce Gloucester,12645E
Gloucester City Council,23UE,Docks Complex - Catering Servs,RB110,Catering Provisions -Food,5110,Food,27/03/2014,381454,570.68,NET,3663,55585U
Gloucester City Council,23UE,Economic Development,FP300,Grants To Voluntary Orgs-Rents,7100,sla 2011-12 Economic Devt Service,27/03/2014,342938,13500,NET,Gfirst Ltd,12918S
Gloucester City Council,23UE,Economic Development,FP300,Other Minor Supplies Services,5590,advert,27/03/2014,381475,348,NET,Commercial Property Monthly,13485T
Gloucester City Council,23UE,Folk Museum,LM210,Publications For Sale,5064,GOODS FOR RESALE,27/03/2014,380825,275.69,NET,Rex International,11680M
Gloucester City Council,23UE,Forest Of Dean Cpe,PT744,Contracted Services,6970,PCNS 2013/14,27/03/2014,381072,96,NET,Patrol,09431C
Gloucester City Council,23UE,Gloucester Guildhall,LA100,Maintenance Of Equipment,5030,Guildhall: Chain & Cable Lube,27/03/2014,381227,12,NET,Directa UK Ltd,05387T
Gloucester City Council,23UE,Green Transport Policy,PJ130,Management Fees,6001,CO-WHEELS CIC - Jan 2014,27/03/2014,381055,300.99,NET,Co-Wheels Cic,11534A
Gloucester City Council,23UE,Guildhall Bar And Caf�,LA210,Catering Provisions -Food,5110,Guildhall: foods,27/03/2014,381460,30,NET,Taynton Farm Foods,09653F
Gloucester City Council,23UE,Guildhall Bar And Caf�,LA210,Catering Provisions -Liquor,5111,Guildhall: drinks,27/03/2014,381472,596.56,NET,Cellar Supplies Cheltenham Ltd,01563L
Gloucester City Council,23UE,Guildhall Bar And Caf�,LA210,Catering Provisions -Liquor,5111,Late payment fee,27/03/2014,381457,15,NET,Boc Ltd,59172L
Gloucester City Council,23UE,Guildhall Bar And Caf�,LA210,Hire Of Equipment,5020,Chairs,27/03/2014,381282,63.98,NET,Nisbets,55372P
Gloucester City Council,23UE,Guildhall Bar And Caf�,LA210,Operational Equipment <5000,5012,Roman blinds for Bar/Cafe area,27/03/2014,381487,210.96,NET,Cotswold Interiors,13042J
Gloucester City Council,23UE,REDACTED,REDACTED,REDACTED,REDACTED,REDACTED,27/03/2014,REDACTED,1250,NET,REDACTED,REDACTED
Gloucester City Council,23UE,REDACTED,REDACTED,REDACTED,REDACTED,REDACTED,27/03/2014,REDACTED,120,NET,REDACTED,REDACTED
Gloucester City Council,23UE,REDACTED,REDACTED,REDACTED,REDACTED,REDACTED,27/03/2014,REDACTED,75,NET,REDACTED,REDACTED
Gloucester City Council,23UE,REDACTED,REDACTED,REDACTED,REDACTED,REDACTED,27/03/2014,REDACTED,110,NET,REDACTED,REDACTED
Gloucester City Council,23UE,REDACTED,REDACTED,REDACTED,REDACTED,REDACTED,27/03/2014,REDACTED,50,NET,REDACTED,REDACTED
Gloucester City Council,23UE,Homelessness,CH120,Board And Lodging,5515,REDACTED,27/03/2014,381473,245,NET,Connolly And Callaghan Ltd,07565Y
Gloucester City Council,23UE,Homelessness,CH120,Removal And Storage Fees,5513,REDACTED,27/03/2014,381466,180,NET,Advanced Removals & Storage Ltd,57142R
Gloucester City Council,23UE,Homelessness,CH120,Removal And Storage Fees,5513,REDACTED,27/03/2014,381465,60,NET,Advanced Removals & Storage Ltd,57142R
Gloucester City Council,23UE,Homelessness,CH120,Removal And Storage Fees,5513,REDACTED,27/03/2014,381471,72,NET,Advanced Removals & Storage Ltd,57142R
Gloucester City Council,23UE,Homelessness Prevention,CH122,Grants To Voluntary Orgs-Rents,7100,Housing: Qltly fee homeless emergencyBed,27/03/2014,381126,2379,NET,P3 (People Potential Possibilities),13809N
Gloucester City Council,23UE,Investment Property,RB500,Lift Maintenance,3051,City Museum inspection of lifts.,27/03/2014,381116,125.33,NET,Pickerings Europe Ltd*,58816U
Gloucester City Council,23UE,Investment Property,RB500,Lift Maintenance,3051,GL1 passenger lift inspection,27/03/2014,381148,281.22,NET,Pickerings Europe Ltd*,58816U
Gloucester City Council,23UE,Neighbourhood Partnerships,FP104,Fees For Services Received,5350,Ward Engagement Consultation,27/03/2014,381456,8051.62,NET,Gloucestershire Rural Community Council,10943M
Gloucester City Council,23UE,Nms Contract,HI102,Fees For Services Received,5350,Environ Srv: annual Memb LARAC,27/03/2014,381157,395,NET,Larac,56584L
Gloucester City Council,23UE,Parks Contract Management,LP100,Maint Of Grounds - General,3030,Play areas: spare parts for play areas,27/03/2014,381318,199.8,NET,Enterprise (Aol) Ltd,06695G
Gloucester City Council,23UE,Play Area Refurbishment,LY071,Contract Payments,20,refurbish play areas,27/03/2014,381455,28616.85,CAP,Greenfields Garden Services Ltd,48130G
Gloucester City Council,23UE,Rehousing,CH111,Fees For Services Received,5350,Medical report,27/03/2014,381464,20.5,NET,REDACTED,REDACTED
Gloucester City Council,23UE,Tea Room,HC500,Catering Provisions -Food,5110,Arbor: food,27/03/2014,380972,206.05,NET,Janes Pantry,24500W
Gloucester City Council,23UE,Tea Room,HC500,Catering Provisions -Food,5110,Arbor: Food w/e 23/3/14,27/03/2014,381235,62.71,NET,Janes Pantry,24500W
Gloucester City Council,23UE,Tree Planting Grant Funded,LY150,Contract Payments,20,Burton Way: tree Planting project,27/03/2014,381271,1248.39,CAP,Pearlbury Properties Ltd,12511D
Gloucester City Council,23UE,Wake Room,HC501,Catering Provisions -Food,5110,Arbor: foods,27/03/2014,381169,547.68,NET,3663,55585U
Gloucester City Council,23UE,Wake Room,HC501,General Repair/Maint Buildings,3000,"Crem: Rope tiebacks, fittings etc",27/03/2014,380890,175,NET,Barbara'S Curtains & Blinds,05180U
Gloucester City Council,23UE,Aspire Admin Charges,LC105,Fees For Services Received,5350,FEB14 payroll contributions,28/03/2014,381482,767,NET,Aspire Sports & Cultural Trust,08135V
Gloucester City Council,23UE,Aspire Admin Charges,LC105,Other Minor Income,9900,BAILIFF PAYMENTS 14/03/14,28/03/2014,381555,98.9,NET,Aspire Sports & Cultural Trust,08135V
Gloucester City Council,23UE,Blackfriars,LA609,Materials For Sale,5080,Artwork Sales,28/03/2014,381550,47.25,NET,REDACTED,REDACTED
Gloucester City Council,23UE,Blackfriars,LA609,Materials For Sale,5080,Artwork Sales,28/03/2014,381551,60,NET,REDACTED,REDACTED
Gloucester City Council,23UE,Blackfriars,LA609,Sale Of Goods And Services,9230,Artwork Sales,28/03/2014,381550,-7.5,NET,REDACTED,REDACTED
Gloucester City Council,23UE,Blackfriars,LA609,Sale Of Goods And Services,9230,Artwork Sales,28/03/2014,381551,-7.5,NET,REDACTED,REDACTED
Gloucester City Council,23UE,Building Control,PT400,Application Fees,9312,refund,28/03/2014,381587,48,NET,REDACTED,REDACTED
Gloucester City Council,23UE,Business Grants,GY007,Contract Payments,20,Showcase,28/03/2014,381565,600,CAP,7 Bamboos Rugby Ltd,14375S
Gloucester City Council,23UE,Cemeteries,HC300,Maint Of Grounds - General,3030,crem: Cambrain Green,28/03/2014,378650,378,NET,Allstone Sand & Gravel Aggregates Ltd,00940M
Gloucester City Council,23UE,Cems/Crems Admin,HC100,Security Services Fees,5351,Cash Handling Feb14,28/03/2014,381128,13.2,NET,G4s Cash Solutions (UK) Ltd,04290V
Gloucester City Council,23UE,City Museum And Art Gallery,LM200,Catering Provisions -Food,5110,Food,28/03/2014,381557,7.44,NET,Total Produce Gloucester,12645E
Gloucester City Council,23UE,City Museum And Art Gallery,LM200,Catering Provisions -Food,5110,Food,28/03/2014,381567,6.2,NET,Total Produce Gloucester,12645E
Gloucester City Council,23UE,City Museum And Art Gallery,LM200,Catering Provisions -Food,5110,Food,28/03/2014,381568,6.2,NET,Total Produce Gloucester,12645E
Gloucester City Council,23UE,City Museum And Art Gallery,LM200,Catering Provisions -Food,5110,Food,28/03/2014,381569,4.96,NET,Total Produce Gloucester,12645E
Gloucester City Council,23UE,Client Revs & Bens Contract,RT240,Bailiffs Fees,5368,"Fees direct, VAT only, 2 people",28/03/2014,380976,197.02,NET,Bristow & Sutor,05450M
Gloucester City Council,23UE,Client Revs & Bens Contract,RT240,Bailiffs Fees,5368,fees & extra VAT,28/03/2014,381228,42.5,NET,Bristow & Sutor,05450M
Gloucester City Council,23UE,Client Revs & Bens Contract,RT240,Bailiffs Fees,5368,VAT only,28/03/2014,381229,0,NET,Bristow & Sutor,05450M
Gloucester City Council,23UE,Client Revs & Bens Contract,RT240,Bailiffs Fees,5368,VAT ONLY,28/03/2014,380977,0,NET,Bristow & Sutor,05450M
Gloucester City Council,23UE,Client Revs & Bens Contract,RT240,Security Services Fees,5351,Cash Handling Feb14,28/03/2014,381128,3.3,NET,G4s Cash Solutions (UK) Ltd,04290V
Gloucester City Council,23UE,Council Streetcare Team,HI101,Signs / Nameplates,3039,Barnwood Park: Build&Install Noticeboard,28/03/2014,381461,119,NET,Greenfields Garden Services Ltd,48130G
Gloucester City Council,23UE,Countryside Unit,LP201,Maint Of Grounds - General,3030,Artwork,28/03/2014,381581,1200,NET,REDACTED,REDACTED
Gloucester City Council,23UE,Crematorium,HC200,Repair/Maint Of Fixed Plant,3006,Crem,28/03/2014,381577,930,NET,Lansford Access Ltd,26320F
Gloucester City Council,23UE,Disabled Facilities Grants,CY013,Renovation Grants,71,REDACTED,28/03/2014,381483,20074.45,CAP,Beard & Tandy,03160V
Gloucester City Council,23UE,Docks Complex - Telephones,RB120,Telephones And Fax,5410,ACCT 814639,28/03/2014,381553,184.23,NET,Virgin Media Business,01869B
Gloucester City Council,23UE,Docks Complex - Telephones,RB120,Telephones And Fax,5410,Folk Museum: TV & HSI charges,28/03/2014,381130,80,NET,Virgin Media Payments Ltd,09376J
Gloucester City Council,23UE,Docks Complex - Telephones,RB120,Telephones And Fax,5410,Phones - Revnue section,28/03/2014,381124,184.23,NET,Virgin Media Payments Ltd,09376J
Gloucester City Council,23UE,Electrical Investigatory Works,RY142,Contract Payments,20,Domestic monitoring contract MAR-MAY14,28/03/2014,380496,3146.25,CAP,Kingfisher Enviromental Services Ltd,04738V
Gloucester City Council,23UE,Gis Development Work,RY555,Contract Payments,20,REDACTED,28/03/2014,381225,1250,CAP,Badenoch & Clark,01536P
Gloucester City Council,23UE,Gloucester Guildhall,LA100,Security Services Fees,5351,Door Staff,28/03/2014,381556,395.5,NET,Nsgl Ltd,12539E
Gloucester City Council,23UE,Guildhall Bar And Caf�,LA210,Catering Provisions -Food,5110,Food,28/03/2014,381562,131.51,NET,Woodward Foodservice,10714F
Gloucester City Council,23UE,Guildhall Bar And Caf�,LA210,Catering Provisions -Food,5110,FOOD,28/03/2014,380883,4.96,NET,Total Produce Gloucester,12645E
Gloucester City Council,23UE,Guildhall Bar And Caf�,LA210,Catering Provisions -Food,5110,guildhall: various foods,28/03/2014,380895,137.71,NET,Woodward Foodservice,10714F
Gloucester City Council,23UE,Homelessness,CH120,Fees For Services Received,5350,medical reports 4/2-21/2/14,28/03/2014,380185,190,NET,Now Medical,03468L
Gloucester City Council,23UE,Homelessness,CH120,Fees For Services Received,5350,REDACTED,28/03/2014,381608,550,NET,REDACTED,REDACTED
Gloucester City Council,23UE,Homelessness,CH120,Rent In Advance,5516,REDACTED,28/03/2014,381489,364.6,NET,Steve Gooch Lettings,06370B
Gloucester City Council,23UE,Homelessness,CH120,Rent In Advance,5516,REDACTED,28/03/2014,381608,582.68,NET,REDACTED,REDACTED
Gloucester City Council,23UE,Investment Property,RB500,Lift Maintenance,3051,Folk Museum inspection of lifts,28/03/2014,381117,55.07,NET,Pickerings Europe Ltd*,58816U
Gloucester City Council,23UE,Legal Services,RS200,Basic Pay - Temporary Staff,2751,REDACTED,28/03/2014,381289,487.29,NET,Premiere Employment Ltd,55468Z
Gloucester City Council,23UE,Mortgage Rescue,CH128,Fees For Services Received,5350,REDACTED,28/03/2014,381438,383.8,NET,One To One Recruitment,04752H
Gloucester City Council,23UE,Parks Contract Management,LP100,Maint Of Grounds - General,3030,Chester Rd play replace cover roundabout,28/03/2014,381322,87.43,NET,Enterprise (Aol) Ltd,06695G
Gloucester City Council,23UE,Parks Contract Management,LP100,Maint Of Grounds - General,3030,St James Parkfit rubber handle on Piroue,28/03/2014,381319,97.2,NET,Enterprise (Aol) Ltd,06695G
Gloucester City Council,23UE,Publications,RC450,Subscriptions,5600,Membership 13/14,28/03/2014,381564,250,NET,Lg Communications,06024A
Gloucester City Council,23UE,Rehousing,CH111,Fees For Services Received,5350,medical reports 4/2-21/2/14,28/03/2014,380185,225,NET,Now Medical,03468L
Gloucester City Council,23UE,Tourism Marketing,LT100,Printing,5300,Tourist Info: English Tourism Wk leaflet,28/03/2014,381245,75,NET,Alpha Colour Printers Ltd,00945B
Gloucester City Council,23UE,Wake Room,HC501,Catering Provisions -Food,5110,Food,28/03/2014,381566,171.35,NET,3663,55585U
Gloucester City Council,23UE,Wake Room,HC501,Catering Provisions -Food,5110,Food,28/03/2014,381571,207.94,NET,3663,55585U
Gloucester City Council,23UE,Wake Room,HC501,Catering Provisions -Food,5110,Food,28/03/2014,381572,130,NET,3663,55585U
Gloucester City Council,23UE,Wake Room,HC501,Catering Provisions -Food,5110,Food,28/03/2014,381573,169.88,NET,3663,55585U
Gloucester City Council,23UE,Asset Management,RS300,Advertising And Publicity,5702,"Citizen, Echo, This is glos - 11-18 Feb",31/03/2014,380058,418.32,NET,Local World Ltd,08556P
Gloucester City Council,23UE,Barge Arm Car Spaces,RB551,Service Charges,3020,Barge Arm Car park: Service charge,31/03/2014,381596,1950,NET,Ash & Co Cs Llp (Barge Arm Car Park),12522Y
Gloucester City Council,23UE,Business Rent Grant Scheme,FP306,Business Grant,7116,Grant 2013/14,31/03/2014,381442,1250,NET,Sofab Sports Cic,14253H
Gloucester City Council,23UE,City Museum And Art Gallery,LM200,Exhibits And Collections,5038,100W GZ6.35 A1,31/03/2014,381676,98.8,NET,Lyco Direct Limited,51364C
Gloucester City Council,23UE,City Museum And Art Gallery,LM200,Publications For Sale,5064,BOOKS & GIFTS,31/03/2014,380802,185.06,NET,Mayfield Books & Gifts,12081H
Gloucester City Council,23UE,Civica Admin Charges,RT105,Postages,5400,ACCT 0870585007 W/E 07/03/14,31/03/2014,380857,1376.1,NET,Royal Mail S.Wales & South West,35830S
Gloucester City Council,23UE,Civica Admin Charges,RT105,Postages,5400,Postage Revenue section,31/03/2014,381129,2310.92,NET,Royal Mail S.Wales & South West,35830S
Gloucester City Council,23UE,Civica Contract Revs & Bens,RT250,Contracted Services,6970,Pension excess reclaim for Feb 2014,31/03/2014,380910,10188.78,NET,Civica UK Ltd,10841X
Gloucester City Council,23UE,Client Revs & Bens Contract,RT240,Bailiffs Fees,5368,VAT only,31/03/2014,381602,0,NET,Bristow & Sutor,05450M
Gloucester City Council,23UE,Client Revs & Bens Contract,RT240,Bailiffs Fees,5368,VAT only,31/03/2014,381603,0,NET,Bristow & Sutor,05450M
Gloucester City Council,23UE,Community Safety Projects,FP500,Other Minor Supplies Services,5590,Membership 14/15,31/03/2014,381579,199,NET,National Community Safety Network,53042K
Gloucester City Council,23UE,Contact Centre,RB300,Basic Pay -Admin /Prof Staff,2601,REDACTED,31/03/2014,380980,1203.5,NET,One To One Recruitment,04752H
Gloucester City Council,23UE,Development Management,PT200,Consultants Fees,5349,planning&Dev advice Re: Home Bargains,31/03/2014,379455,800,NET,Dpds Ltd,05404V
Gloucester City Council,23UE,Development Management,PT200,Employee Related Advertising,2920,Planning jobsite advert,31/03/2014,380525,1648.5,NET,Haymarket Media Group Ltd,56642Y
Gloucester City Council,23UE,Docks Complex - Services,RB100,Cleaning Materials,3600,The Docks: Hygiene related products,31/03/2014,381224,112.92,NET,Core Hygiene Ltd,03885P
Gloucester City Council,23UE,Dwelling Improvements,BY008,Contract Payments,20,Glos City Homes: Feb 14 Capital,31/03/2014,381478,992735.24,CAP,Gloucester City Homes,05244T
Gloucester City Council,23UE,Economic Development,FP300,Other Minor Supplies Services,5590,REDACTED,31/03/2014,381220,558.59,NET,Anderson Recruitment Ltd,14646H
Gloucester City Council,23UE,Employers Pension Contribs,ZR355,Pension Contribs Incl Backf,2901,PENSION SCHEME FEB/MAR14,31/03/2014,381131,25752.86,NET,Gloucestershire County Council,10614L
Gloucester City Council,23UE,Environmental Planning,LM340,Repair/Maint Of Monuments,3004,Aluminium Plaque,31/03/2014,381677,477.25,NET,Leander Architectural,02831Z
Gloucester City Council,23UE,Financial Services,RT200,Basic Pay - Temporary Staff,2751,REDACTED,31/03/2014,380809,561.22,NET,Robert Half Ltd,03959K
Gloucester City Council,23UE,Financial Services,RT200,Computer Software Maintenance,5427,REDACTED,31/03/2014,381273,314.25,NET,Advanced Business Solutions,06072N
Gloucester City Council,23UE,Financial Services,RT200,Consultants Fees,5349,REDACTED,31/03/2014,381284,3975,NET,Robert Half Ltd,03959K
Gloucester City Council,23UE,Financial Services,RT200,Consultants Fees,5349,REDACTED,31/03/2014,381283,2175,NET,Robert Half Ltd,03959K
Gloucester City Council,23UE,Folk Museum,LM210,Publications For Sale,5064,BOOKS & GIFTS,31/03/2014,380802,47.8,NET,Mayfield Books & Gifts,12081H
Gloucester City Council,23UE,General Drainage Works,PY241,Contract Payments,20,Rea Lane: Investigation & Procurement,31/03/2014,381316,2342,CAP,Mr M G Horton T/A H&T Property Maintenance,09210X
Gloucester City Council,23UE,Gf Lifelinks,CH180,Contracted Services,6970,Glos city Homes Management fee Mar14,31/03/2014,380159,5270.83,NET,Gloucester City Homes,05244T
Gloucester City Council,23UE,Gloucester Guildhall,LA100,General Repair/Maint Buildings,3000,Install new socket,31/03/2014,381668,350,NET,Ru Electrical Services,10389U
Gloucester City Council,23UE,REDACTED,REDACTED,REDACTED,REDACTED,REDACTED,31/03/2014,REDACTED,1579.02,NET,REDACTED,REDACTED
Gloucester City Council,23UE,Homelessness,CH120,Fees For Services Received,5350,Medical Report,31/03/2014,381669,20.5,NET,Gloucester Gp Consortium Company Ltd,11671N
Gloucester City Council,23UE,Homelessness,CH120,Rent In Advance,5516,REDACTED,31/03/2014,381649,484.6,NET,Carib Developments Ltd,12909T
Gloucester City Council,23UE,Homelessness Prevention,CH122,Grants To Voluntary Orgs-Rents,7100,Homeless supp service grant,31/03/2014,381654,14360.23,NET,Gloucester City Homes,05244T
Gloucester City Council,23UE,Mandatory Rent Allowances,DD100,Rent Allowances - Normal Payts,7200,REDACTED,31/03/2014,381649,500,NET,Carib Developments Ltd,12909T
Gloucester City Council,23UE,Mortgage Rescue,CH128,Fees For Services Received,5350,REDACTED,31/03/2014,381678,132.6,NET,One To One Recruitment,04752H
Gloucester City Council,23UE,Oxstalls Tc Court Refrubishmen,LY132,Contract Payments,20,Oxstalls Tennis Centre retention,31/03/2014,380528,905.74,CAP,Novus Property Solutions,39955E
Gloucester City Council,23UE,Play Area Refurbishment,LY071,Contract Payments,20,Sculptures for playgrounds,31/03/2014,381049,359.97,CAP,Playground Sculptures,11899D
Gloucester City Council,23UE,Postal Services,RS120,Postages,5400,ACCT 0074842000 W/E 01/03/14,31/03/2014,380832,84.72,NET,Royal Mail S.Wales & South West,35830S
Gloucester City Council,23UE,Rehousing,CH111,Fees For Services Received,5350,MEDICAL REPORT,31/03/2014,380854,20.5,NET,Partners In Health,06868K
Gloucester City Council,23UE,Solace Project,FP843,Other Minor Supplies Services,5590,NOV13 ASB salary,31/03/2014,381653,3250,NET,Gloucester City Homes,05244T
Gloucester City Council,23UE,Tourism Marketing,LT100,Advertising And Publicity,5702,tourism: meet & Greet leaflet & quiz,31/03/2014,381598,496,NET,Alpha Colour Printers Ltd,00945B
Gloucester City Council,23UE,Tourism Marketing,LT100,Exhibits And Collections,5038,Tourism: hanging baskets,31/03/2014,381600,120,NET,Bow Bells,12609J
Gloucester City Council,23UE,Tree Planting Grant Funded,LY150,Contract Payments,20,SITE SURVEY,31/03/2014,380392,195,CAP,Scci Alphatrack,14455T
Gloucester City Council,23UE,Wake Room,HC501,Catering Provisions -Food,5110,Arbor: Monthly coffee machine warranty,31/03/2014,381594,61.58,NET,Caffeica Ltd,11923J
Gloucester City Council,23UE,Wake Room,HC501,Other Minor Supplies Services,5590,WATER BOILER,31/03/2014,380821,419.99,NET,Nisbets,55372P
Gloucester City Council,23UE,Website Rebuild,RY573,Consultants Fees,30,New Daily Rate,31/03/2014,381660,1267,CAP,Patzone It Solutions Ltd,13059R
Gloucester City Council,23UE,REDACTED,REDACTED,REDACTED,REDACTED,REDACTED,31/03/2014,REDACTED,2030.02,NET,REDACTED,REDACTED
Gloucester City Council,23UE,Allotments,HI104,Operational Equipment <5000,5012,REFUND FOR ALLOTMENT TAPS,,381740,29.84,NET,REDACTED,REDACTED
Gloucester City Council,23UE,Blackfriars,LA609,Fees For Services Received,5350,Blackfriars: lighting,,381733,150,NET,REDACTED,REDACTED
Gloucester City Council,23UE,Business Transformation & Tech,RT700,Basic Pay - Temporary Staff,2751,BT&T: consultancy services,,381730,600,NET,Ffox Software Ltd,10665T
Gloucester City Council,23UE,Bus Station,RB400,General Repair/Maint Buildings,3000,bus station: to relay slabs,,381535,286.22,NET,Rf Gardiner Limited,12299B
Gloucester City Council,23UE,Cctv Revenue Budget,FP501,Security Equipment Serv/Repair,3038,Maintainance of CCTV,,381657,1726.67,NET,Quadrant Security Group Ltd,05109A
Gloucester City Council,23UE,Cemeteries,HC300,Maint Of Grounds - General,3030,Crem: repair toilet,,381534,65.21,NET,Rf Gardiner Limited,12299B
Gloucester City Council,23UE,City Centre Manager,PT310,Other Minor Supplies Services,5590,REDACTED,,380662,100,NET,Atcm,04754X
Gloucester City Council,23UE,Cleansing Services Admin,HI100,General Repair/Maint Buildings,3000,Aviation Garden: re-erect fence panels,,381323,26.42,NET,Rf Gardiner Limited,12299B
Gloucester City Council,23UE,Council Streetcare Team,HI101,General Repair/Maint Buildings,3000,Gloucester Park: fix hand dryer.,,381333,18.42,NET,Rf Gardiner Limited,12299B
Gloucester City Council,23UE,Council Streetcare Team,HI101,Maint Of Grounds - General,3030,REDACTED,,374101,137.09,NET,Enterprise (Aol) Ltd,06695G
Gloucester City Council,23UE,Crematorium,HC200,Memorial Plaques,5053,Crem: tablet,,381723,102,NET,The Columbaria Company,55078T
Gloucester City Council,23UE,Crematorium,HC200,Repair/Maint Of Fixed Plant,3006,Crem: repair lights,,381541,526.61,NET,Rf Gardiner Limited,12299B
Gloucester City Council,23UE,Docks Complex - Catering Servs,RB110,Catering Provisions -Food,5110,Food,,381725,89.83,NET,Janes Pantry,24500W
Gloucester City Council,23UE,Docks Complex - Services,RB100,General Repair/Maint Buildings,3000,Herbert: replace handle disabled toilet,,381064,95.63,NET,Rf Gardiner Limited,12299B
Gloucester City Council,23UE,Docks Complex - Services,RB100,General Repair/Maint Buildings,3000,Philpotts Wse: to sound proof voids,,381532,97.16,NET,Rf Gardiner Limited,12299B
Gloucester City Council,23UE,Docks Complex - Services,RB100,General Repair/Maint Buildings,3000,Repair Ladies toilet,,381040,123.07,NET,Rf Gardiner Limited,12299B
Gloucester City Council,23UE,Docks Complex - Services,RB100,Repair/Maint Of Fixed Plant,3006,Herbert: replace fan belts in archives,,381327,99.98,NET,Hewer Facilities Mgt Ltd,05232A
Gloucester City Council,23UE,Electrical Investigatory Works,RY142,Capital Fire Alarms,25,Bearland Lodge: remedial work fire alarm,,381037,467.26,CAP,Rf Gardiner Limited,12299B
Gloucester City Council,23UE,Environmental Planning,LM340,Repair/Maint Of Monuments,3004,books,,381737,503.95,NET,Bookpoint Ltd,52241L
Gloucester City Council,23UE,General Works Fund,RY203,Capital General Repairs & Main,13,Bearland Lodge: attend to lighitng fault,,381032,119.22,CAP,Rf Gardiner Limited,12299B
Gloucester City Council,23UE,General Works Fund,RY203,Capital General Repairs & Main,13,Bearland Lodge: Change light fittings,,381034,87.58,CAP,Rf Gardiner Limited,12299B
Gloucester City Council,23UE,General Works Fund,RY203,Capital General Repairs & Main,13,Bearland Lodge: disconnect lighting,,381320,317.32,CAP,Rf Gardiner Limited,12299B
Gloucester City Council,23UE,General Works Fund,RY203,Capital General Repairs & Main,13,Bearland Lodge: Pumbing works,,381315,227.93,CAP,Rf Gardiner Limited,12299B
Gloucester City Council,23UE,General Works Fund,RY203,Capital General Repairs & Main,13,Bearland Lodge: reconnect water system,,381537,1006.5,CAP,Rf Gardiner Limited,12299B
Gloucester City Council,23UE,General Works Fund,RY203,Capital General Repairs & Main,13,Bearland lodge: repair toilet,,381536,73.32,CAP,Rf Gardiner Limited,12299B
Gloucester City Council,23UE,General Works Fund,RY203,Capital General Repairs & Main,13,Bearland Lodge: to provide scaffolding,,381539,2638.72,CAP,Rf Gardiner Limited,12299B
Gloucester City Council,23UE,General Works Fund,RY203,Capital General Repairs & Main,13,Bearlands cottage: works,,381328,2627,CAP,Rf Gardiner Limited,12299B
Gloucester City Council,23UE,General Works Fund,RY203,Capital General Repairs & Main,13,Bearlands Lodge: refurb & alteration,,381547,2495.65,CAP,Rf Gardiner Limited,12299B
Gloucester City Council,23UE,General Works Fund,RY203,Capital General Repairs & Main,13,City Museum: new circuit for sump pump,,381041,457.26,CAP,Rf Gardiner Limited,12299B
Gloucester City Council,23UE,General Works Fund,RY203,Capital General Repairs & Main,13,City museum: to fix lock,,381543,36.84,CAP,Rf Gardiner Limited,12299B
Gloucester City Council,23UE,General Works Fund,RY203,Capital General Repairs & Main,13,Folk museum: disconnect electrics,,381033,78.84,CAP,Rf Gardiner Limited,12299B
Gloucester City Council,23UE,General Works Fund,RY203,Capital General Repairs & Main,13,Folk museum: handrails & spindles,,381531,252.85,CAP,Rf Gardiner Limited,12299B
Gloucester City Council,23UE,General Works Fund,RY203,Capital General Repairs & Main,13,Folk Museum: wire up display cabinet,,381544,215.24,CAP,Rf Gardiner Limited,12299B
Gloucester City Council,23UE,General Works Fund,RY203,Capital General Repairs & Main,13,Guildhall: check time clock & ext light,,381038,65.7,CAP,Rf Gardiner Limited,12299B
Gloucester City Council,23UE,General Works Fund,RY203,Contract Payments,20,Bearland Lodge: temp repair to valley,,381540,126.4,CAP,Rf Gardiner Limited,12299B
Gloucester City Council,23UE,Gloucester Guildhall,LA100,General Repair/Maint Buildings,3000,"Guildhall: studio, Henley - lighting etc",,381252,3335.93,NET,Connect Electrical Contracting Ltd,12405D
Gloucester City Council,23UE,Guildhall Bar And Caf�,LA210,Basic Pay - Duty Assistants,1511,Guildhall: coffee,,381727,141.6,NET,Ethical Addictions Ltd,11654N
Gloucester City Council,23UE,Guildhall Bar And Caf�,LA210,Operational Equipment <5000,5012,Tables,,381563,899.75,NET,Nisbets,55372P
Gloucester City Council,23UE,REDACTED,REDACTED,REDACTED,REDACTED,REDACTED,,REDACTED,440,NET,REDACTED,REDACTED
Gloucester City Council,23UE,REDACTED,REDACTED,REDACTED,REDACTED,REDACTED,,REDACTED,1460,NET,REDACTED,REDACTED
Gloucester City Council,23UE,REDACTED,REDACTED,REDACTED,REDACTED,REDACTED,,REDACTED,510,NET,REDACTED,REDACTED
Gloucester City Council,23UE,REDACTED,REDACTED,REDACTED,REDACTED,REDACTED,,REDACTED,750,NET,REDACTED,REDACTED
Gloucester City Council,23UE,REDACTED,REDACTED,REDACTED,REDACTED,REDACTED,,REDACTED,100,NET,REDACTED,REDACTED
Gloucester City Council,23UE,Hempsted Market/Car Boot,HM234,Sewerage And Environ Charges,3402,Markets service: toilets,,381722,432,NET,Abbey Loos Limited,10787B
Gloucester City Council,23UE,Homelessness,CH120,Rent In Advance,5516,rent in advance,,381743,364.6,NET,REDACTED,REDACTED
Gloucester City Council,23UE,Homelessness,CH120,Rent In Advance,5516,underpayment ria,,381744,100.72,NET,REDACTED,REDACTED
Gloucester City Council,23UE,Investment Property,RB500,General Repair/Maint Buildings,3000,Blocked urinals in function room,,379558,68,NET,Snape Construction Ltd,40958T
Gloucester City Council,23UE,Investment Property,RB500,General Repair/Maint Buildings,3000,City museum: repair leak in cafe area,,381068,464.61,NET,Rf Gardiner Limited,12299B
Gloucester City Council,23UE,Investment Property,RB500,General Repair/Maint Buildings,3000,Eastgate Mkt: repair drain in farmhse st,,381029,421.81,NET,Rf Gardiner Limited,12299B
Gloucester City Council,23UE,Investment Property,RB500,General Repair/Maint Buildings,3000,Folk Museum: isolate radiator,,381545,38.16,NET,Rf Gardiner Limited,12299B
Gloucester City Council,23UE,Investment Property,RB500,General Repair/Maint Buildings,3000,Guildhall: attned to lighting fault,,381039,79.26,NET,Rf Gardiner Limited,12299B
Gloucester City Council,23UE,Investment Property,RB500,General Repair/Maint Buildings,3000,Guildhall: repair leaks to kitchen,,381030,70.33,NET,Rf Gardiner Limited,12299B
Gloucester City Council,23UE,Investment Property,RB500,General Repair/Maint Buildings,3000,Guildhall: repair water leak,,381065,105.79,NET,Rf Gardiner Limited,12299B
Gloucester City Council,23UE,Investment Property,RB500,General Repair/Maint Buildings,3000,kerb repairs Esatgate car park,,381168,139.51,NET,Rf Gardiner Limited,12299B
Gloucester City Council,23UE,Investment Property,RB500,General Repair/Maint Buildings,3000,Shopmobility - repairs to doors,,381314,18.42,NET,Rf Gardiner Limited,12299B
Gloucester City Council,23UE,Investment Property,RB500,General Repair/Maint Buildings,3000,St Michaels Sq: repair pillar to wall,,381067,84.12,NET,Rf Gardiner Limited,12299B
Gloucester City Council,23UE,Investment Property,RB500,General Repair/Maint Buildings,3000,Westgate St Pitch&Putt-repair roof,,381028,975.54,NET,Rf Gardiner Limited,12299B
Gloucester City Council,23UE,Investment Property,RB500,General Repair/Maint Buildings,3000,Windfall Way Pavilion: replace gas meter,,381031,136.24,NET,Rf Gardiner Limited,12299B
Gloucester City Council,23UE,Kings Sq Paving Emerg Works,RY161,Contract Payments,20,Kings Square: To re-bed loose slabs,,381546,22.68,CAP,Rf Gardiner Limited,12299B
Gloucester City Council,23UE,Kings Sq Paving Emerg Works,RY161,Contract Payments,20,Kings Sq: repair potholes,,381591,462,CAP,Rf Gardiner Limited,12299B
Gloucester City Council,23UE,Mortgage Rescue,CH128,Fees For Services Received,5350,REDACTED,,381739,500,NET,Bruton Knowles,57534T
Gloucester City Council,23UE,Mortgage Rescue,CH128,Fees For Services Received,5350,REDACTED,,381681,387.6,NET,One To One Recruitment,04752H
Gloucester City Council,23UE,Nms Contract,HI102,Operational Equipment <5000,5012,Env protect:Domestic wheelie bin purchas,,381223,7174.44,NET,Enterprise (Aol) Ltd,06695G
Gloucester City Council,23UE,Northwarehouse,RB150,General Repair/Maint Buildings,3000,North Wse:erect scaffolding &repair Roof,,381538,5038.44,NET,Rf Gardiner Limited,12299B
Gloucester City Council,23UE,Off Street Car Parks,PP110,General Repair/Maint Buildings,3000,Eastgate car park: pump out flood,,381324,248.54,NET,Rf Gardiner Limited,12299B
Gloucester City Council,23UE,Off Street Car Parks,PP110,General Repair/Maint Buildings,3000,Eastgate Roof car park: lumps in tarmac,,381593,142.2,NET,Rf Gardiner Limited,12299B
Gloucester City Council,23UE,Off Street Car Parks,PP110,General Repair/Maint Buildings,3000,Eastgate Roof Top car Park: repair light,,381035,77.65,NET,Rf Gardiner Limited,12299B
Gloucester City Council,23UE,Off Street Car Parks,PP110,General Repair/Maint Buildings,3000,Kings Walk car park: repair lights,,381036,534.24,NET,Rf Gardiner Limited,12299B
Gloucester City Council,23UE,Off Street Car Parks,PP110,General Repair/Maint Buildings,3000,Longsmith St Car park: lighting faults,,381027,157.68,NET,Rf Gardiner Limited,12299B
Gloucester City Council,23UE,Off Street Car Parks,PP110,General Repair/Maint Buildings,3000,Longsmith St Car Park: lighting repairs,,381542,1006.12,NET,Rf Gardiner Limited,12299B
Gloucester City Council,23UE,Off Street Car Parks,PP110,General Repair/Maint Buildings,3000,Longsmith St Car pk: replace door closer,,381549,353.24,NET,Rf Gardiner Limited,12299B
Gloucester City Council,23UE,Off Street Car Parks,PP110,General Repair/Maint Buildings,3000,Westgate St Car Park - repir water main,,381592,184.57,NET,Rf Gardiner Limited,12299B
Gloucester City Council,23UE,Play Area Refurbishment,LY071,Contract Payments,20,Install play area at Matson park,,381058,558.48,CAP,Greenfields Garden Services Ltd,48130G
Gloucester City Council,23UE,Play Area Refurbishment,LY071,Contract Payments,20,Scott Avenue play area retainer,,381059,743.77,CAP,Greenfields Garden Services Ltd,48130G
Gloucester City Council,23UE,Retail Market - Landlord,HM300,Sewerage And Environ Charges,3402,Gloucester market: drain serivces,,381724,180,NET,Eezeeflow Drain Services,11587C
Gloucester City Council,23UE,Rugby World Cup,LT450,Events,5952,Portable rugby post for promo events,,381025,2626,NET,Hanman Split Ltd,56889J
Gloucester City Council,23UE,Stationery Services,RS150,Stationery,5302,Business support stationary,,381735,3.75,NET,Lyreco UK Ltd,11746G
Gloucester City Council,23UE,The Fleece,RB530,General Repair/Maint Buildings,3000,REDACTED,,381533,36.84,NET,Rf Gardiner Limited,12299B
Gloucester City Council,23UE,Tic Theatre Ticket Sales,LT107,Materials For Sale,5080,ticket sales,,381731,555,NET,REDACTED,REDACTED
Gloucester City Council,23UE,Tic Theatre Ticket Sales,LT107,Sale Of Goods And Services,9230,ticket sales,,381731,-46.25,NET,REDACTED,REDACTED
Gloucester City Council,23UE,Tic Trading,LT110,Materials For Sale,5080,Goods,,381728,767.5,NET,Sportfolio Europe Lp,14456R
Gloucester City Council,23UE,Tourism Marketing,LT100,Exhibits And Collections,5038,Tourism: braille document,,381729,42.45,NET,A2i Transcription Services,14578Z
Gloucester City Council,23UE,Tourism Marketing,LT100,Operational Equipment <5000,5012,"Tourism: clothes rail, leaflet mount",,381599,186.53,NET,Displaysense Ltd,05982W
Gloucester City Council,23UE,Training Schemes,ET100,Fees For Services Received,5350,Apprentices,,381309,3000,NET,The Mortgage Brain,01262RV
Gloucester City Council,23UE,Tree Planting Grant Funded,LY150,Contract Payments,20,supply of trees outside libary,,381277,2814,CAP,Greenfields Garden Services Ltd,48130G
Gloucester City Council,23UE,Tree Planting Grant Funded,LY150,Contract Payments,20,Tree planting Lilliesfield Ave & Robinsw,,380905,460,CAP,Greenfields Garden Services Ltd,48130G
Gloucester City Council,23UE,Tree Planting Grant Funded,LY150,Contract Payments,20,Tree planting Scott Avenue & watering,,380906,1277,CAP,Greenfields Garden Services Ltd,48130G
Gloucester City Council,23UE,Utilities,PT502,Electricity Supply,3110,ROMAN EXCAVATIONS,,380818,180.83,NET,Southern Electric,05714A
,,,,,,,,Sum:,4087396.08,,,
